Workbook

Sheet vvv (hidden)
D20: Наименование изделия | E20: Описание (кол-во и углы скруглений) | F20: Материал (ДСП, ДВП, МДФ), толщина, мм | G20: Размеры, мм | I20: Кол-во, шт. | J20: S, м2 | K20: Артикул пластика, наименование, тиснение поверхности | L20: Вид обратки | M20: Цена за м2, руб. | N20: Сумма, руб. | Q20: Kf | R20: Цена без kf | S20: Ed | T20: cm Цена | U20: Кнопка 1-4 | V20: Цена обратка
G21: ширина | H21: длина

Sheet Заказ
Q1: 13 | Y1: 3 | Z1: 1
D4: Заказчик
D5: Адрес
D6: Телефон
D7: Эл.почта
D8: Менеджер | E8: Тестовый
N12: 1.5
L13: Упаковка | N13: 0
L14: Срочность | M14: 0 | N14: =($N$18+G18)*M14 -> 0
L15: Скидка | M15: 0 | N15: =($N$18+G18)*M15 -> 0
L16: ИТОГО: | N16: =N13+N14-N15+SUM(N22:N36108) -> 0
E18: сумма доп.работ: | G18: 0 | I18: =SUM(I22:I24) -> 0 | J18: =SUM(J22:J24) -> 0 | N18: =SUM(N22:N24) -> 0
D20: Наименование изделия | E20: Описание (кол-во и углы скруглений) | F20: Материал (ДСП, ДВП, МДФ), толщина, мм | G20: Размеры, мм | I20: Кол-во, шт. | J20: S, м2 | K20: Артикул пластика, наименование, тиснение поверхности | L20: Вид обратки | M20: Цена за м2, руб. | N20: Сумма, руб. | Q20: Kf | R20: Цена без kf | S20: Ed | T20: cm Цена | U20: Кнопка 1-4 | V20: Цена обратка | Y20: mk
G21: ширина | H21: длина
A22: 1 | B22: 2 | C22: 1 | D22: Столешница | E22: 1 скругл. 180 град. | F22: ДСП 38 влаг. | G22: 500 | J22: =G22*H22*I22/ 1000000 -> 0 | L22: бумага | M22: 0,00 | N22: =J22*M22 -> 0 | S22: м.кв | U22: 1 | V22: 0 | Y22: c10.06.2021 11:41:27

Sheet dop (hidden)
I18: =#REF! ->  | J18: =#REF!*#REF!*#REF! ->  | N18: =#REF! -> 
E20: Позиция | F20: Сторона | G20: Размеры, мм | I20: Кол-во, шт. | J20: S, м2 | K20: Артикул пластика | L20: Вид обратки | M20: Цена | N20: Сумма | Y20: mk | AA20: Угол | AD20: фрезеровка\углы | AI20: фрезеровка\К | AN20: chekBox кромка | AS20: label кромка | AX20: tb_opt | BC20: Одинарные | BR20: Счетные: | CL20: тех_кромка | CQ20: алюминий | CZ20: склейка_сырец | DD20: наращивание_сырец
D21: Наименование | G21: ширина | H21: длина | AD21: 1 | AE21: 2 | AF21: 3 | AG21: 4 | AI21: ДлнЛ | AJ21: ДлнП | AK21: ШирВерх | AL21: ШирНиз | AN21: ДлнЛ | AO21: ДлнП | AP21: ШирВерх | AQ21: ШирНиз | AS21: ДлнЛ | AT21: ДлнП | AU21: ШирВерх | AV21: ШирНиз | AX21: 1 | AY21: 2 | AZ21: 3 | BA21: 4 | BC21: 1 | BD21: 2 | BE21: 3 | BF21: 4 | BG21: 5 | BH21: 6 | BI21: 7 | BJ21: 8 | BR21: 1 | BS21: 2 | BT21: 3 | BU21: 4 | BV21: 5 | BW21: 6 | BX21: 7 | BY21: 8 | BZ21: 9 | CA21: 10 | CB21: 11 | CC21: 12 | CL21: ДлнЛ | CM21: ДлнП | CN21: ШирВерх | CO21: ШирНиз | CQ21: ДлнЛ | CR21: ДлнП | CZ21: col | DD21: col

Sheet Сотрудники (hidden)
B1: ФИО | C1: Должность | D1: Пароль | E1: Права
B2: Андреев Д.В. | C2: Директор | D2: 111 | E2: Менеджер
B3: Кузнецов В.В. | C3: Админ | D3: 999 | E3: Старший менеджер
B4: Сидоров И.О. | C4: Кладовщик | D4: 222 | E4: Администратор
B5: Тестовый | C5: Инженер | D5: 1111 | E5: Менеджер
D6: 9999 | E6: Старший менеджер
E7: Администратор
E8: Менеджер
E9: Старший менеджер
D10: 789 | E10: Администратор
E11: Менеджер
E12: Старший менеджер

Sheet Заказчики (hidden)
B1: Заказчик | C1: Адрес | D1: Телефон | E1: Эл.почта | F1: Скидка %

Sheet izd (hidden)
E20: Описание (кол-во и углы скруглений) | F20: Материал (ДСП, ДВП, МДФ), толщина, мм | G20: Размеры, мм | I20: Кол-во, шт. | J20: S, м2 | K20: Артикул пластика, наименование, тиснение поверхности | L20: Вид обратки | M20: Цена за м2, руб. | N20: Сумма, руб. | Q20: Kf | R20: Цена без kf | S20: Ed | T20: cm Цена | U20: Кнопка 1-4 | V20: Цена обратка | W20: Доп | Y20: mk
D21: Наименование изделия | G21: ширина | H21: длина
A22: 1 | B22: 2 | D22: Панель | E22: без скруглений | F22: МДФ 16 | G22: 400 | H22: 1890 | I22: 1 | J22: =G22*H22*I22/ 1000000 -> 0.756 | K22: 0211/ERRE | L22: пластик | M22: 4103,00 | N22: =J22*M22 -> 3101.868 | Q22: 1.487541833 | R22: 2758,24 | T22: 2 | U22: 2 | Y22: c27.11.2020 10:19:4432
A23: 1 | B23: 2 | D23: Столешница | E23: 1 скругл. 180 град. | F23: ДСП 38 влаг. | G23: 595 | H23: 1300 | I23: 1 | J23: 0.7735 | K23: 3393/FLATTING | L23: бумага | M23: 5173,01 | N23: 4001.323235 | Q23: 133823260869565 | R23: 3865,55 | S23: м.кв | T23: 5 | U23: 1 | V23: 0 | Y23: c27.11.2020 10:31:47
A24: 1 | B24: 2 | D24: Столешница | E24: 1 скругл. 180 град. | F24: ДСП 38 влаг. | G24: 595 | H24: 4150 | I24: 1 | J24: 2.46925 | K24: 3393/FLATTING | L24: бумага | M24: 4214,26 | N24: 10406.06151 | Q24: 109020990719707 | R24: 3865,55 | T24: 5 | U24: 1 | Y24: c27.11.2020 10:32:1123
A25: 1 | B25: 2 | D25: Кромка пластик | E25: для заказчика | F25: - | G25: 45 | H25: 3000 | I25: 1 | J25: 0.135 | K25: 3393/FLATTING | L25: бумага | M25: 81,00 | Q25: 1 | R25: 81,00 | S25: м.п. | T25: 5 | Y25: c27.11.2020 10:32:2924
A26: 1 | B26: 2 | D26: Столешница | E26: 1 скругл. 180 град. | F26: ДСП 38 влаг. | G26: 500 | H26: 1200 | I26: 1 | J26: 0.6 | K26: 3195/ERRE | L26: бумага | M26: 4634,99 | N26: =J26*M26 -> 2780.994 | Q26: 133875 | R26: 3462,18 | S26: м.кв | T26: 4 | U26: 1 | V26: 0 | Y26: c27.11.2020 10:35:21
A27: 1 | B27: 2 | D27: Панель | E27: без скруглений | F27: МДФ 16 | G27: 896 | H27: 236 | I27: 1 | J27: 0.211456 | K27: 0028/LUCIDA | L27: пластик | M27: 4103,00 | N27: 867.603968 | Q27: 148754183266932 | R27: 2758,24 | S27: м.кв | T27: 2 | U27: 2 | V27: 0 | Y27: c27.11.2020 10:41:17
A28: 1 | B28: 2 | D28: Панель | E28: без скруглений | F28: МДФ 16 | G28: 896 | H28: 346 | I28: 4 | J28: 1.240064 | K28: 0028/LUCIDA | L28: пластик | M28: 4103,00 | N28: 5087.982592 | Q28: 148754183266932 | R28: 2758,24 | S28: м.кв | T28: 2 | U28: 2 | V28: 0 | Y28: c27.11.2020 10:41:43
A29: 1 | B29: 2 | D29: Панель | E29: без скруглений | F29: МДФ 16 | G29: 290 | H29: 936 | I29: 1 | J29: 0.27144 | K29: 0028/LUCIDA | L29: пластик | M29: 4103,00 | N29: 1113.71832 | Q29: 148754183266932 | R29: 2758,24 | T29: 2 | U29: 2 | Y29: c27.11.2020 10:42:0523
A30: 1 | B30: 2 | D30: Панель | E30: без скруглений | F30: МДФ 16 | G30: 390 | H30: 936 | I30: 2 | J30: 0.73008 | K30: 0028/LUCIDA | L30: пластик | M30: 4103,00 | N30: 2995.51824 | Q30: 148754183266932 | R30: 2758,24 | T30: 2 | U30: 2 | Y30: c27.11.2020 10:42:0624
A31: 1 | B31: 2 | D31: Панель | E31: без скруглений | F31: МДФ 16 | G31: 800 | H31: 236 | I31: 1 | J31: 0.1888 | K31: 0028/LUCIDA | L31: пластик | M31: 4103,00 | N31: 774.6464 | Q31: 148754183266932 | R31: 2758,24 | T31: 2 | U31: 2 | Y31: c27.11.2020 10:42:0625
A32: 1 | B32: 2 | D32: Панель | E32: без скруглений | F32: МДФ 16 | G32: 800 | H32: 346 | I32: 2 | J32: 0.5536 | K32: 0028/LUCIDA | L32: пластик | M32: 4103,00 | N32: 2271.4208 | Q32: 148754183266932 | R32: 2758,24 | T32: 2 | U32: 2 | Y32: c27.11.2020 10:42:0726
A33: 1 | B33: 2 | D33: Панель | E33: без скруглений | F33: МДФ 16 | G33: 146 | H33: 750 | I33: 1 | J33: 0.1095 | K33: 0028/LUCIDA | L33: пластик | M33: 4103,00 | N33: 449.2785 | Q33: 148754183266932 | R33: 2758,24 | T33: 2 | U33: 2 | Y33: c27.11.2020 10:42:0727
A34: 1 | B34: 2 | D34: Панель | E34: без скруглений | F34: МДФ 16 | G34: 596 | H34: 116 | I34: 1 | J34: 0.069136 | K34: 0028/LUCIDA | L34: пластик | M34: 4103,00 | N34: 283.665008 | Q34: 148754183266932 | R34: 2758,24 | T34: 2 | U34: 2 | Y34: c27.11.2020 10:42:0828
A35: 1 | B35: 2 | D35: Панель | E35: без скруглений | F35: МДФ 16 | G35: 290 | H35: 750 | I35: 1 | J35: 0.2175 | K35: 0028/LUCIDA | L35: пластик | M35: 4103,00 | N35: 892.4025 | Q35: 148754183266932 | R35: 2758,24 | T35: 2 | U35: 2 | Y35: c27.11.2020 10:42:0929
A36: 1 | B36: 2 | D36: Панель | E36: без скруглений | F36: МДФ 16 | G36: 276 | H36: 750 | I36: 1 | J36: 0.207 | K36: 0028/LUCIDA | L36: пластик | M36: 4103,00 | N36: 849.321 | Q36: 148754183266932 | R36: 2758,24 | T36: 2 | U36: 2 | Y36: c27.11.2020 10:45:5130
A37: 1 | B37: 2 | D37: Панель | E37: без скруглений | F37: МДФ 16 | G37: 596 | H37: 372 | I37: 2 | J37: 0.443424 | K37: 0028/LUCIDA | L37: пластик | M37: 4103,00 | N37: 1819.368672 | Q37: 148754183266932 | R37: 2758,24 | T37: 2 | U37: 2 | Y37: c27.11.2020 10:45:5231
A38: 1 | B38: 2 | D38: Панель | E38: без скруглений | F38: МДФ 16 | G38: 396 | H38: 750 | I38: 1 | J38: 0.297 | K38: 0028/LUCIDA | L38: пластик | M38: 4103,00 | N38: 1218.591 | Q38: 148754183266932 | R38: 2758,24 | T38: 2 | U38: 2 | Y38: c27.11.2020 10:45:5332
A39: 1 | B39: 2 | D39: Панель | E39: без скруглений | F39: МДФ 16 | G39: 100 | H39: 750 | I39: 2 | J39: 0.15 | K39: 0028/LUCIDA | L39: пластик | M39: 4103,00 | N39: 615.45 | Q39: 148754183266932 | R39: 2758,24 | T39: 2 | U39: 2 | Y39: c27.11.2020 10:45:5433
A40: 1 | B40: 2 | D40: Панель | E40: без скруглений | F40: МДФ 16 | G40: 446 | H40: 750 | I40: 1 | J40: 0.3345 | K40: 0028/LUCIDA | L40: пластик | M40: 4103,00 | N40: 1372.4535 | Q40: 148754183266932 | R40: 2758,24 | T40: 2 | U40: 2 | Y40: c27.11.2020 10:45:5534
A41: 1 | B41: 2 | D41: Панель | E41: без скруглений | F41: МДФ 16 | G41: 345 | H41: 343 | I41: 6 | J41: =G41*H41*I41/ 1000000 -> 0.71001 | K41: 681/Г | L41: пластик | M41: 3761,00 | N41: =J41*M41 -> 2670.34761 | Q41: 1.487724408 | R41: 2528,02 | S41: м.кв | T41: 1 | U41: 2 | V41: 0 | Y41: c07.12.2020 11:52:28
A42: 1 | B42: 2 | D42: Панель | E42: без скруглений | F42: МДФ 16 | G42: 500 | H42: 1000 | I42: 4 | J42: 2 | K42: 520/Г | L42: пластик | M42: 3761,00 | N42: 7522 | Q42: 1.487724408 | R42: 2528,02 | S42: м.кв | T42: 1 | U42: 2 | V42: 0 | Y42: c07.12.2020 11:54:14
A43: 1 | B43: 2 | D43: Панель | E43: без скруглений | F43: МДФ 16 | G43: 500 | H43: 1000 | I43: 5 | J43: 2.5 | K43: 017/МО | L43: пластик | M43: 3761,00 | N43: 9402.5 | Q43: 1.487724408 | R43: 2528,02 | S43: м.кв | T43: 1 | U43: 2 | V43: 0 | Y43: c07.12.2020 13:37:17
A44: 1 | B44: 2 | D44: Панель | E44: без скруглений | F44: ДСП 38 влаг. | G44: 600 | H44: 3100 | I44: 1 | J44: 1.86 | K44: 3237/ERRE | L44: бумага | M44: 5280,00 | N44: 9820.8 | Q44: 1.336708861 | R44: 3950,00 | S44: м.кв | T44: 4 | U44: 1 | V44: 0 | Y44: c11.12.2020 13:20:47
A45: 1 | B45: 2 | D45: Панель | E45: без скруглений | F45: ДСП 38 влаг. | G45: 600 | H45: 1500 | I45: 1 | J45: 0.9 | K45: 3237/ERRE | L45: бумага | M45: 5280,00 | N45: 4752 | Q45: 1.336708861 | R45: 3950,00 | T45: 4 | U45: 1 | Y45: c11.12.2020 13:21:1023
A46: 1 | B46: 2 | D46: Столешница | E46: 1 скругл. 180 град. | F46: ДСП 38 влаг. | G46: 595 | H46: 3000 | I46: 1 | J46: 1.785 | K46: 4587/ALEVE | L46: бумага | M46: 4445,38 | N46: 7935.0033 | Q46: 1 | R46: 4445,38 | S46: м.кв | T46: 5 | U46: 1 | V46: 0 | Y46: c11.12.2020 13:46:23
A47: 1 | B47: 2 | D47: Панель | E47: без скруглений | F47: ДСП/ДВП 4/6 | G47: 600 | H47: 3000 | I47: 1 | J47: 1.8 | K47: 4587/ALEVE | L47: бумага | M47: 2866,67 | N47: 5160.006 | Q47: 1 | R47: 2866,67 | S47: м.кв | T47: 5 | V47: 0 | Y47: c11.12.2020 13:47:1223
A48: 1 | B48: 2 | D48: Столешница | E48: 1 скругл. 180 град. | F48: ДСП 38 влаг. | G48: 595 | H48: 1600 | I48: 1 | J48: =G48*H48*I48/ 1000000 -> 0.952 | K48: 0509/ERRE | L48: бумага | M48: 5330,00 | N48: =J48*M48 -> 5074.16 | Q48: 1.338122363 | R48: 3983,19 | S48: м.кв | T48: 2 | U48: 1 | V48: 0 | Y48: c08.01.2021 17:51:41
A49: 1 | B49: 2 | D49: Столешница | E49: 1 скругл. 180 град. | F49: ДСП 38 влаг. | G49: 1200 | H49: 2600 | I49: 1 | J49: 3.12 | K49: 0509/ERRE | L49: бумага | M49: 6664,99 | N49: 20794.7688 | Q49: 1.673280591 | R49: 3983,19 | S49: м.кв | T49: 2 | V49: 0 | Y49: c08.01.2021 17:52:2423
A50: 1 | B50: 2 | D50: Панель | E50: без скруглений | F50: ДСП/ДВП 4/6 | G50: 600 | H50: 3000 | I50: 2 | J50: 3.6 | K50: 0509/ERRE | L50: бумага | M50: 2341,67 | N50: 8430.012 | Q50: 1 | R50: 2341,67 | S50: м.кв | T50: 2 | V50: 0 | Y50: c08.01.2021 17:53:2924
A51: 1 | B51: 2 | D51: Панель | E51: без скруглений | F51: ДСП 26 | G51: 555 | H51: 555 | I51: 5 | J51: 1.540125 | K51: 014/Г | L51: бумага | M51: 3880,00 | N51: 5975.685 | Q51: 1.361403509 | R51: 2850,00 | S51: м.кв | T51: 1 | U51: 1 | V51: 0 | Y51: c01.04.2021 13:51:52
A52: 1 | B52: 2 | D52: Экопанель | E52: без скруглений | F52: МДФ 16 | G52: 545 | H52: 344 | I52: 1 | J52: 0.18748 | K52: FN 0720 | L52: пластик | M52: 10272,00 | N52: 1925.79456 | Q52: 1 | R52: 10272,00 | S52: м.кв | T52: 8 | U52: 3 | V52: 0 | Y52: c01.04.2021 17:22:54
A53: 1 | B53: 2 | D53: Панель | E53: без скруглений | F53: Фанера 18 | G53: 353 | H53: 433 | I53: 1 | J53: 0.152849 | K53: FN 0720 | L53: бумага | M53: 15281,28 | N53: 2335.728367 | Q53: 1.381171804 | R53: 11064,00 | S53: м.кв | T53: 8 | U53: 2 | V53: - | Y53: c01.04.2021 17:23:51
A54: 1 | B54: 2 | D54: Панель | E54: без скруглений | F54: Фанера 18 | G54: 534 | H54: 434 | I54: 1 | J54: 0.231756 | K54: FN 0720 | L54: Обратка для Fenix Arpa | M54: 14242,00 | N54: 3300.668952 | Q54: 1 | R54: 11064,00 | S54: м.кв | T54: 8 | U54: 2 | V54: 3178 | Y54: c01.04.2021 17:25:43
A55: 1 | B55: 2 | D55: Панель | E55: без скруглений | F55: МДФ 16 | G55: 342 | H55: 322 | I55: 1 | J55: 0.110124 | K55: 0225/LUCIDA | L55: пластик | M55: 4720,00 | N55: 519.78528 | Q55: 1.487515152 | R55: 3173,08 | S55: м.кв | T55: 2 | U55: 2 | V55: 0 | Y55: c01.04.2021 17:49:32
A56: 1 | B56: 2 | D56: Столешница | E56: 1 скругл. 180 град. | F56: ДСП 38 влаг. | G56: 500 | H56: 3000 | I56: 1 | J56: =G56*H56*I56/ 1000000 -> 1.5 | K56: 017/Г | L56: бумага | M56: 6069,59 | N56: =J56*M56 -> 9104.385 | Q56: 1.337556818 | R56: 4537,82 | S56: м.кв | T56: 1 | U56: 1 | V56: 0 | Y56: c10.06.2021 11:09:52
A57: 1 | B57: 2 | D57: Панель | E57: без скруглений | F57: ДСП 16 | G57: 545 | H57: 214 | I57: 1 | J57: =G57*H57*I57/ 1000000 -> 0.11663 | K57: 017/Т | L57: пластик | M57: 3855,00 | N57: =J57*M57 -> 449.60865 | Q57: 1.416122449 | R57: 2722,22 | S57: м.кв | T57: 1 | U57: 2 | V57: 0 | Y57: c10.06.2021 11:14:39
A58: 1 | B58: 2 | D58: Панель | E58: без скруглений | F58: МДФ 16 | G58: 535 | H58: 323 | I58: 1 | J58: =G58*H58*I58/ 1000000 -> 0.172805 | K58: 682/СД | L58: пластик | M58: 4328,00 | N58: =J58*M58 -> 747.90004 | Q58: 1.29661893 | R58: 3337,91 | S58: м.кв | T58: 1 | U58: 2 | V58: 0 | Y58: c10.06.2021 11:17:05
A59: 1 | B59: 2 | D59: Столешница | E59: 1 скругл. 180 град. | F59: ДСП 38 влаг. | G59: 221 | H59: 2211 | I59: 1 | J59: =G59*H59*I59/ 1000000 -> 0.488631 | K59: 016/Т | L59: бумага | M59: 5605,01 | N59: =J59*M59 -> 2738.781641 | Q59: 1.235175926 | R59: 4537,82 | S59: м.кв | T59: 1 | U59: 1 | V59: 0 | Y59: c10.06.2021 11:18:16
A60: 1 | B60: 2 | D60: Столешница | E60: 1 скругл. 180 град. | F60: ДСП 38 влаг. | G60: 500 | J60: =G60*H60*I60/ 1000000 -> 0 | L60: бумага | M60: 0,00 | N60: =J60*M60 -> 0 | S60: м.кв | U60: 1 | V60: 0 | Y60: c10.06.2021 11:41:27

Sheet dop_2 (hidden)
E20: Позиция | F20: Сторона | G20: Размеры, мм | I20: Кол-во, шт. | J20: S, м2 | K20: Артикул пластика | L20: Вид обратки | M20: Цена | N20: Сумма
D21: Наименование | G21: ширина | H21: длина

Sheet Изделия (hidden)
A1: "Столешницы, стеновые панели" | B1: "Фасады HPL" | C1: "Экофасады" | D1: "Акрил" | F1: Пластик
F2: 1 | G2: 2 | H2: 3 | I2: 4
A3: Панель | B3: Панель | C3: Экопанель | D3: Панель Акрил | F3: 1 | G3: 1
A4: Столешница | B4: Фасад | C4: Экофасад | F4: 2 | G4: 2
A5: Угловой сегмент | B5: Карниз | C5: Панель CLEAF | F5: 3 | G5: 3
C6: Экофасад CLEAF | F6: 4 | G6: 4
F7: 5 | G7: 5
F8: 6 | G8: 6
F9: 7 | G9: 7
F10: 8 | G10: 8 | H10: 8
F11: 9 | G11: 9 | H11: 9
F12: 10 | G12: 10
I13: 11
I14: 12
I15: 13
H16: 14
H17: 15
H18: 16
F19: 17 | G19: 17
F20: 18 | H20: 18
F21: 19 | H21: 19
F22: 20 | H22: 20

Sheet Обратка (hidden)
B1: Материал | C1: Обратка
B2: ДСП/ДВП 4/6 | C2: бумага
B3: ДСП 8 | C3: бумага
B4: ДСП 16 | C4: пластик
B5: МДФ 16 | C5: пластик
B6: ДСП 18 | C6: без обратки
B7: МДФ 18 | C7: без обратки
B8: ДСП 26 | C8: бумага
B9: ДСП 38 влаг. | C9: бумага
B10: Фанера 18 | C10: бумага
B11: Фанера 38 | C11: бумага

Sheet Пластик (hidden)
B1: Пластик | C1: Цена | F1: Кромка пластик, цена за м.п.
F2: 15-24 | G2: 25-34 | H2: 35-59 | I2: 60-105 | J2: мм
B3: 410 LU | C3: 5 | F3: 43 | G3: 61 | H3: 81 | I3: 100
B4: 39/Г | C4: 1 | F4: 31 | G4: 44 | H4: 58 | I4: 70
B5: 39/МТ | C5: 1 | F5: 31 | G5: 44 | H5: 58 | I5: 70
B6: 39/ТЦ | C6: 1 | F6: 31 | G6: 44 | H6: 58 | I6: 70
B7: 004/ТС | C7: 1 | F7: 31 | G7: 44 | H7: 58 | I7: 70
B8: 014/Г | C8: 1 | F8: 31 | G8: 44 | H8: 58 | I8: 70
B9: 014/Т | C9: 1 | F9: 31 | G9: 44 | H9: 58 | I9: 70
B10: 016/Т | C10: 1 | F10: 31 | G10: 44 | H10: 58 | I10: 70
B11: 017/Г | C11: 1 | F11: 31 | G11: 44 | H11: 58 | I11: 70
B12: 017/МО | C12: 1 | F12: 31 | G12: 44 | H12: 58 | I12: 70
B13: 017/Т | C13: 1 | F13: 31 | G13: 44 | H13: 58 | I13: 70
B14: 017/ТИ | C14: 1 | F14: 31 | G14: 44 | H14: 58 | I14: 70
B15: 017/ТЦ | C15: 1 | F15: 31 | G15: 44 | H15: 58 | I15: 70
B16: 105/ТИ | C16: 1 | F16: 31 | G16: 44 | H16: 58 | I16: 70
B17: 106/ТИ | C17: 1 | F17: 31 | G17: 44 | H17: 58 | I17: 70
B18: 107/ТИ | C18: 1 | F18: 31 | G18: 44 | H18: 58 | I18: 70
B19: 520/Г | C19: 1 | F19: 31 | G19: 44 | H19: 58 | I19: 70
B20: 521/СД | C20: 1 | F20: 31 | G20: 44 | H20: 58 | I20: 70
B21: 522/СД | C21: 1 | F21: 31 | G21: 44 | H21: 58 | I21: 70
B22: 523/СД | C22: 1 | F22: 31 | G22: 44 | H22: 58 | I22: 70
B23: 681/Г | C23: 1 | F23: 31 | G23: 44 | H23: 58 | I23: 70
B24: 682/СД | C24: 1 | F24: 31 | G24: 44 | H24: 58 | I24: 70
B25: 683/ТП | C25: 1 | F25: 31 | G25: 44 | H25: 58 | I25: 70
B26: 685/Г | C26: 1 | F26: 31 | G26: 44 | H26: 58 | I26: 70
B27: 686/Г | C27: 1 | F27: 31 | G27: 44 | H27: 58 | I27: 70
B28: 686/ТП | C28: 1 | F28: 31 | G28: 44 | H28: 58 | I28: 70
B29: 688/ТП | C29: 1 | F29: 31 | G29: 44 | H29: 58 | I29: 70
B30: 690/Г | C30: 1 | F30: 31 | G30: 44 | H30: 58 | I30: 70
B31: 692/ТИ | C31: 1 | F31: 31 | G31: 44 | H31: 58 | I31: 70
B32: 693/ТИ | C32: 1 | F32: 31 | G32: 44 | H32: 58 | I32: 70
B33: 694/ТС | C33: 1 | F33: 31 | G33: 44 | H33: 58 | I33: 70
B34: 695/ТС | C34: 1 | F34: 31 | G34: 44 | H34: 58 | I34: 70
B35: 699/Г | C35: 1 | F35: 31 | G35: 44 | H35: 58 | I35: 70
B36: 701/ТС | C36: 1 | F36: 31 | G36: 44 | H36: 58 | I36: 70
B37: 702/ТС | C37: 1 | F37: 31 | G37: 44 | H37: 58 | I37: 70
B38: 704/ТС | C38: 1 | F38: 31 | G38: 44 | H38: 58 | I38: 70
B39: 706/Г | C39: 1 | F39: 31 | G39: 44 | H39: 58 | I39: 70
B40: 706/ТИ | C40: 1 | F40: 31 | G40: 44 | H40: 58 | I40: 70
B41: 706/ТС | C41: 1 | F41: 31 | G41: 44 | H41: 58 | I41: 70
B42: 707/Г | C42: 1 | F42: 31 | G42: 44 | H42: 58 | I42: 70
B43: 707/ТИ | C43: 1 | F43: 31 | G43: 44 | H43: 58 | I43: 70
B44: 707/ТС | C44: 1 | F44: 31 | G44: 44 | H44: 58 | I44: 70
B45: 708/ТИ | C45: 1 | F45: 31 | G45: 44 | H45: 58 | I45: 70
B46: 709/Г | C46: 1 | F46: 31 | G46: 44 | H46: 58 | I46: 70
B47: 709/ТС | C47: 1 | F47: 31 | G47: 44 | H47: 58 | I47: 70
B48: 710/Г | C48: 1 | F48: 31 | G48: 44 | H48: 58 | I48: 70
B49: 710/ТИ | C49: 1 | F49: 31 | G49: 44 | H49: 58 | I49: 70
B50: 710/ТС | C50: 1 | F50: 31 | G50: 44 | H50: 58 | I50: 70
B51: 711/Г | C51: 1 | F51: 31 | G51: 44 | H51: 58 | I51: 70
B52: 711/ТС | C52: 1 | F52: 31 | G52: 44 | H52: 58 | I52: 70
B53: 712/ТС | C53: 1 | F53: 31 | G53: 44 | H53: 58 | I53: 70
B54: 713/Г | C54: 1 | F54: 31 | G54: 44 | H54: 58 | I54: 70
B55: 713/ТИ | C55: 1 | F55: 31 | G55: 44 | H55: 58 | I55: 70
B56: 716/AND | C56: 1 | F56: 31 | G56: 44 | H56: 58 | I56: 70
B57: 716/Г | C57: 1 | F57: 31 | G57: 44 | H57: 58 | I57: 70
B58: 717/ТС | C58: 1 | F58: 31 | G58: 44 | H58: 58 | I58: 70
B59: 718/ТС | C59: 1 | F59: 31 | G59: 44 | H59: 58 | I59: 70
B60: 719/ТИ | C60: 1 | F60: 31 | G60: 44 | H60: 58 | I60: 70
B61: 777/ТП | C61: 1 | F61: 31 | G61: 44 | H61: 58 | I61: 70
B62: 779/Т | C62: 1 | F62: 31 | G62: 44 | H62: 58 | I62: 70
B63: 803/ТИ | C63: 1 | F63: 31 | G63: 44 | H63: 58 | I63: 70
B64: 805/ТИ | C64: 1 | F64: 31 | G64: 44 | H64: 58 | I64: 70
B65: 806/Г | C65: 1 | F65: 31 | G65: 44 | H65: 58 | I65: 70
B66: 806/Т | C66: 1 | F66: 31 | G66: 44 | H66: 58 | I66: 70
B67: 809/ТС | C67: 1 | F67: 31 | G67: 44 | H67: 58 | I67: 70
B68: 829/СД | C68: 1 | F68: 31 | G68: 44 | H68: 58 | I68: 70
B69: 844/Г | C69: 1 | F69: 31 | G69: 44 | H69: 58 | I69: 70
B70: 847/ТП | C70: 1 | F70: 31 | G70: 44 | H70: 58 | I70: 70
B71: 849/СД | C71: 1 | F71: 31 | G71: 44 | H71: 58 | I71: 70
B72: 898/ТС | C72: 1 | F72: 31 | G72: 44 | H72: 58 | I72: 70
B73: 899/ТП | C73: 1 | F73: 31 | G73: 44 | H73: 58 | I73: 70
B74: 901/Г | C74: 1 | F74: 31 | G74: 44 | H74: 58 | I74: 70
B75: 902/Т | C75: 1 | F75: 31 | G75: 44 | H75: 58 | I75: 70
B76: 905/ТС | C76: 1 | F76: 31 | G76: 44 | H76: 58 | I76: 70
B77: 910/Г | C77: 1 | F77: 31 | G77: 44 | H77: 58 | I77: 70
B78: 910/СМ | C78: 1 | F78: 31 | G78: 44 | H78: 58 | I78: 70
B79: 912/ТИ | C79: 1 | F79: 31 | G79: 44 | H79: 58 | I79: 70
B80: 920/Г | C80: 1 | F80: 31 | G80: 44 | H80: 58 | I80: 70
B81: 921/Г | C81: 1 | F81: 31 | G81: 44 | H81: 58 | I81: 70
B82: 923/ТС | C82: 1 | F82: 31 | G82: 44 | H82: 58 | I82: 70
B83: 924/ТС | C83: 1 | F83: 31 | G83: 44 | H83: 58 | I83: 70
B84: 925/Г | C84: 1 | F84: 31 | G84: 44 | H84: 58 | I84: 70
B85: 926/Г | C85: 1 | F85: 31 | G85: 44 | H85: 58 | I85: 70
B86: 927/Г | C86: 1 | F86: 31 | G86: 44 | H86: 58 | I86: 70
B87: 928/ТС | C87: 1 | F87: 31 | G87: 44 | H87: 58 | I87: 70
B88: 929/ТС | C88: 1 | F88: 31 | G88: 44 | H88: 58 | I88: 70
B89: 1113/Т | C89: 1 | F89: 31 | G89: 44 | H89: 58 | I89: 70
B90: 1113/Г | C90: 1 | F90: 31 | G90: 44 | H90: 58 | I90: 70
B91: 1113/МО | C91: 1 | F91: 31 | G91: 44 | H91: 58 | I91: 70
B92: 1113/ТИ | C92: 1 | F92: 31 | G92: 44 | H92: 58 | I92: 70
B93: 1113/ТЦ | C93: 1 | F93: 31 | G93: 44 | H93: 58 | I93: 70
B94: 1117/Т | C94: 1 | F94: 31 | G94: 44 | H94: 58 | I94: 70
B95: 1117/Г | C95: 1 | F95: 31 | G95: 44 | H95: 58 | I95: 70
B96: 1118/Г | C96: 1 | F96: 31 | G96: 44 | H96: 58 | I96: 70
B97: 1118/ТИ | C97: 1 | F97: 31 | G97: 44 | H97: 58 | I97: 70
B98: 1118/ТЦ | C98: 1 | F98: 31 | G98: 44 | H98: 58 | I98: 70
B99: 1139/Г | C99: 1 | F99: 31 | G99: 44 | H99: 58 | I99: 70
B100: 1139/Т | C100: 1 | F100: 31 | G100: 44 | H100: 58 | I100: 70
B101: 1140/Г | C101: 1 | F101: 31 | G101: 44 | H101: 58 | I101: 70
B102: 1147/Г | C102: 1 | F102: 31 | G102: 44 | H102: 58 | I102: 70
B103: 1147/Т | C103: 1 | F103: 31 | G103: 44 | H103: 58 | I103: 70
B104: 1148/ТЦ | C104: 1 | F104: 31 | G104: 44 | H104: 58 | I104: 70
B105: 1304/Г | C105: 1 | F105: 31 | G105: 44 | H105: 58 | I105: 70
B106: 1304/Т | C106: 1 | F106: 31 | G106: 44 | H106: 58 | I106: 70
B107: 2459/Г | C107: 1 | F107: 31 | G107: 44 | H107: 58 | I107: 70
B108: 2459/Т | C108: 1 | F108: 31 | G108: 44 | H108: 58 | I108: 70
B109: 2539/Г | C109: 1 | F109: 31 | G109: 44 | H109: 58 | I109: 70
B110: 2715/Г | C110: 1 | F110: 31 | G110: 44 | H110: 58 | I110: 70
B111: 2715/Т | C111: 1 | F111: 31 | G111: 44 | H111: 58 | I111: 70
B112: 2719/Г | C112: 1 | F112: 31 | G112: 44 | H112: 58 | I112: 70
B113: 2719/Т | C113: 1 | F113: 31 | G113: 44 | H113: 58 | I113: 70
B114: 2721/Г | C114: 1 | F114: 31 | G114: 44 | H114: 58 | I114: 70
B115: 2722/Г | C115: 1 | F115: 31 | G115: 44 | H115: 58 | I115: 70
B116: 2722/Т | C116: 1 | F116: 31 | G116: 44 | H116: 58 | I116: 70
B117: 2722/ТЦ | C117: 1 | F117: 31 | G117: 44 | H117: 58 | I117: 70
B118: 2726/Г | C118: 1 | F118: 31 | G118: 44 | H118: 58 | I118: 70
B119: 2727/Г | C119: 1 | F119: 31 | G119: 44 | H119: 58 | I119: 70
B120: 2727/ТЦ | C120: 1 | F120: 31 | G120: 44 | H120: 58 | I120: 70
B121: 2730/Г | C121: 1 | F121: 31 | G121: 44 | H121: 58 | I121: 70
B122: 2730/Т | C122: 1 | F122: 31 | G122: 44 | H122: 58 | I122: 70
B123: 2741/Г | C123: 1 | F123: 31 | G123: 44 | H123: 58 | I123: 70
B124: 2741/Т | C124: 1 | F124: 31 | G124: 44 | H124: 58 | I124: 70
B125: 2742/Г | C125: 1 | F125: 31 | G125: 44 | H125: 58 | I125: 70
B126: 2742/Т | C126: 1 | F126: 31 | G126: 44 | H126: 58 | I126: 70
B127: 2743/Г | C127: 1 | F127: 31 | G127: 44 | H127: 58 | I127: 70
B128: 2754/Г | C128: 1 | F128: 31 | G128: 44 | H128: 58 | I128: 70
B129: 2754/Т | C129: 1 | F129: 31 | G129: 44 | H129: 58 | I129: 70
B130: 2754/ТЦ | C130: 1 | F130: 31 | G130: 44 | H130: 58 | I130: 70
B131: 2760/Г | C131: 1 | F131: 31 | G131: 44 | H131: 58 | I131: 70
B132: 2762/Г | C132: 1 | F132: 31 | G132: 44 | H132: 58 | I132: 70
B133: 2762/Т | C133: 1 | F133: 31 | G133: 44 | H133: 58 | I133: 70
B134: 3006/ТП | C134: 1 | F134: 31 | G134: 44 | H134: 58 | I134: 70
B135: 6591/Г | C135: 1 | F135: 31 | G135: 44 | H135: 58 | I135: 70
B136: 6591/МТ | C136: 1 | F136: 31 | G136: 44 | H136: 58 | I136: 70
B137: 9115/СД | C137: 1 | F137: 31 | G137: 44 | H137: 58 | I137: 70
B138: 9727/ТП | C138: 1 | F138: 31 | G138: 44 | H138: 58 | I138: 70
B139: 9729/ТП | C139: 1 | F139: 31 | G139: 44 | H139: 58 | I139: 70
B140: 9738/СД | C140: 1 | F140: 31 | G140: 44 | H140: 58 | I140: 70
B141: 9740/Г | C141: 1 | F141: 31 | G141: 44 | H141: 58 | I141: 70
B142: 9740/ТП | C142: 1 | F142: 31 | G142: 44 | H142: 58 | I142: 70
B143: 9742/МТ | C143: 1 | F143: 31 | G143: 44 | H143: 58 | I143: 70
B144: 9745/СД | C144: 1 | F144: 31 | G144: 44 | H144: 58 | I144: 70
B145: 9746/СД | C145: 1 | F145: 31 | G145: 44 | H145: 58 | I145: 70
B146: 9747/СД | C146: 1 | F146: 31 | G146: 44 | H146: 58 | I146: 70
B147: 9906/СД | C147: 1 | F147: 31 | G147: 44 | H147: 58 | I147: 70
B148: 9906/ТП | C148: 1 | F148: 31 | G148: 44 | H148: 58 | I148: 70
B149: 410/L (Абет) | C149: 5 | F149: 43 | G149: 61 | H149: 81 | I149: 100
B150: 0001/CORALLO | C150: 3 | F150: 43 | G150: 61 | H150: 81 | I150: 100
B151: 0001/ERRE | C151: 2 | F151: 37 | G151: 52 | H151: 69 | I151: 85
B152: 0001/LUCIDA | C152: 1 | F152: 31 | G152: 44 | H152: 58 | I152: 70
B153: 0001/MIKA | C153: 3 | F153: 43 | G153: 61 | H153: 81 | I153: 100
B154: 0028/LUCIDA | C154: 2 | F154: 37 | G154: 52 | H154: 69 | I154: 85
B155: 0200/ERRE | C155: 2 | F155: 37 | G155: 52 | H155: 69 | I155: 85
B156: 0200/LUCIDA | C156: 2 | F156: 37 | G156: 52 | H156: 69 | I156: 85
B157: 0204/LUCIDA | C157: 2 | F157: 37 | G157: 52 | H157: 69 | I157: 85
B158: 0211/ERRE | C158: 2 | F158: 37 | G158: 52 | H158: 69 | I158: 85
B159: 0214/LUCIDA | C159: 1 | F159: 31 | G159: 44 | H159: 58 | I159: 70
B160: 0225/ERRE | C160: 2 | F160: 37 | G160: 52 | H160: 69 | I160: 85
B161: 0225/LUCIDA | C161: 2 | F161: 37 | G161: 52 | H161: 69 | I161: 85
B162: 0254/ERRE | C162: 2 | F162: 37 | G162: 52 | H162: 69 | I162: 85
B163: 0254/LUCIDA | C163: 2 | F163: 37 | G163: 52 | H163: 69 | I163: 85
B164: 0500/LUCIDA | C164: 2 | F164: 37 | G164: 52 | H164: 69 | I164: 85
B165: 0509/ERRE | C165: 2 | F165: 37 | G165: 52 | H165: 69 | I165: 85
B166: 0509/LUCIDA | C166: 1 | F166: 31 | G166: 44 | H166: 58 | I166: 70
B167: 0509/NAKED | C167: 3 | F167: 43 | G167: 61 | H167: 81 | I167: 100
B168: 0509/LOSA | C168: 5 | F168: 43 | G168: 61 | H168: 81 | I168: 100
B169: 0536/LUCIDA | C169: 2 | F169: 37 | G169: 52 | H169: 69 | I169: 85
B170: 0538/LUCIDA | C170: 2 | F170: 37 | G170: 52 | H170: 69 | I170: 85
B171: 0549/LUCIDA | C171: 2 | F171: 37 | G171: 52 | H171: 69 | I171: 85
B172: 0553/ERRE | C172: 2 | F172: 37 | G172: 52 | H172: 69 | I172: 85
B173: 0553/LUCIDA | C173: 2 | F173: 37 | G173: 52 | H173: 69 | I173: 85
B174: 0553/MIKA | C174: 3 | F174: 43 | G174: 61 | H174: 81 | I174: 100
B175: 0559/LUCIDA | C175: 2 | F175: 37 | G175: 52 | H175: 69 | I175: 85
B176: 0561/CORALLO | C176: 3 | F176: 43 | G176: 61 | H176: 81 | I176: 100
B177: 0561/ERRE | C177: 2 | F177: 37 | G177: 52 | H177: 69 | I177: 85
B178: 0561/LUCIDA | C178: 1 | F178: 31 | G178: 44 | H178: 58 | I178: 70
B179: 0564/LUCIDA | C179: 2 | F179: 37 | G179: 52 | H179: 69 | I179: 85
B180: 0570/LUCIDA | C180: 2 | F180: 37 | G180: 52 | H180: 69 | I180: 85
B181: 0571/ERRE | C181: 2 | F181: 37 | G181: 52 | H181: 69 | I181: 85
B182: 0571/LUCIDA | C182: 1 | F182: 31 | G182: 44 | H182: 58 | I182: 70
B183: 0573/LUCIDA | C183: 2 | F183: 37 | G183: 52 | H183: 69 | I183: 85
B184: 0593/ERRE | C184: 2 | F184: 37 | G184: 52 | H184: 69 | I184: 85
B185: 0593/LUCIDA | C185: 2 | F185: 37 | G185: 52 | H185: 69 | I185: 85
B186: 0594/LUCIDA | C186: 1 | F186: 31 | G186: 44 | H186: 58 | I186: 70
B187: 0595/ERRE | C187: 2 | F187: 37 | G187: 52 | H187: 69 | I187: 85
B188: 0595/LUCIDA | C188: 2 | F188: 37 | G188: 52 | H188: 69 | I188: 85
B189: 0605/ERRE | C189: 2 | F189: 37 | G189: 52 | H189: 69 | I189: 85
B190: 0605/LUCIDA | C190: 2 | F190: 37 | G190: 52 | H190: 69 | I190: 85
B191: 0619/ERRE | C191: 2 | F191: 37 | G191: 52 | H191: 69 | I191: 85
B192: 0619/LUCIDA | C192: 2 | F192: 37 | G192: 52 | H192: 69 | I192: 85
B193: 0637/ERRE | C193: 2 | F193: 37 | G193: 52 | H193: 69 | I193: 85
B194: 0648/ERRE | C194: 2 | F194: 37 | G194: 52 | H194: 69 | I194: 85
B195: 0648/LUCIDA | C195: 2 | F195: 37 | G195: 52 | H195: 69 | I195: 85
B196: 0660/ERRE | C196: 2 | F196: 37 | G196: 52 | H196: 69 | I196: 85
B197: 0660/LUCIDA | C197: 1 | F197: 31 | G197: 44 | H197: 58 | I197: 70
B198: 0661/LUCIDA | C198: 2 | F198: 37 | G198: 52 | H198: 69 | I198: 85
B199: 0670/LUCIDA | C199: 2 | F199: 37 | G199: 52 | H199: 69 | I199: 85
B200: 0675/LUCIDA | C200: 1 | F200: 31 | G200: 44 | H200: 58 | I200: 70
... 481 more rows

Sheet Прайс (hidden)
D1: Изделие | E1: Ед | F1: Описание | G1: Стандартный размер | H1: Материал | I1: Раздел | M1: Цена
I2: "Столешницы, стеновые панели" | J2: "Фасады HPL" | K2: "Экофасады" | L2: "Акрил" | M2: Слопалст, Arpa | N2: Arpa | O2: Arpa | P2: Arpa 4м (2) | Q2: Арпа 4м(3) | R2: бот 4 | S2: бот 4* | T2: FN NTM | U2: FN NTA | W2: ACR 001 | X2: ACR 002, 004 | Y2: ACR 003 | Z2: CLEAF 14 | AA2: CKEAF 15 | AB2: CKEAF 16 | AD2: US | AE2: SUP
I3: 1,2,3,4,5,6,7,8,9,10,17 18, 19, 20 | J3: 1,2,3,4,5,6,7,10,17 | K3: 8,9,10, 14,15,16, 18,19,20 | L3: 11,12,13 | M3: 1 | N3: 2 | O3: 3 | P3: 4 | Q3: 5 | R3: 6 | S3: 7 | T3: 8 | U3: 9 | V3: 10 | W3: 11 | X3: 12 | Y3: 13 | Z3: 14 | AA3: 15 | AB3: 16 | AC3: 17 | AD3: 18 | AE3: 19 | AF3: 20
A4: 1 | D4: Панель | E4: м.кв | F4: без скруглений | G4: любой размер | H4: ДСП 26 | I4: 1 | J4: 0 | K4: 0 | L4: 0 | M4: 3283.333333 | N4: 3761.111111 | O4: 4183.333333 | P4: 3761.111111 | Q4: 4183.333333 | R4: 4477.777778 | S4: 5858.333333 | T4: 8828 | U4: - | W4: - | X4: - | Y4: - | Z4: - | AA4: - | AB4: - | AD4: - | AE4: - | AF4: 0
H5: ДСП 38 влаг. | I5: 1 | J5: 0 | K5: 0 | L5: 0 | M5: 4288.888889 | N5: 4661.111111 | O5: 5069.444444 | P5: 4661.111111 | Q5: 5069.444444 | R5: 5425 | S5: 7097.222222 | T5: 10705 | U5: - | W5: - | X5: - | Y5: - | Z5: - | AA5: - | AB5: - | AD5: - | AE5: - | AF5: 0
H6: Фанера 18 | I6: 1 | J6: 1 | K6: 0 | L6: 0 | M6: 4288.888889 | N6: 4661.111111 | O6: 5069.444444 | P6: 4661.111111 | Q6: 5069.444444 | R6: 5425 | S6: 7097.222222 | T6: 11064 | U6: - | W6: - | X6: - | Y6: - | Z6: - | AA6: - | AB6: - | AD6: 5362 | AE6: 5689 | AF6: -
H7: Фанера 38 | I7: 1 | J7: 0 | K7: 0 | L7: 0 | T7: 14477 | U7: - | AD7: 7553 | AE7: 7847
H8: ДСП 16 | I8: 0 | J8: 1 | K8: 0 | L8: 0 | M8: 2722.222222 | N8: 3000 | O8: 3225 | P8: 3000 | Q8: 3225 | R8: 3450 | S8: 4516.666667 | T8: 9844 | U8: - | W8: - | X8: - | Y8: - | Z8: - | AA8: - | AB8: - | AD8: - | AE8: - | AF8: -
H9: МДФ 16 | I9: 0 | J9: 1 | K9: 0 | L9: 0 | M9: 3337.912088 | N9: 3653.846154 | O9: 3983.516484 | P9: 3653.846154 | Q9: 3983.516484 | R9: 4263.736264 | S9: 5576.923077 | T9: 10272 | U9: - | W9: - | X9: - | Y9: - | Z9: - | AA9: - | AB9: - | AD9: - | AE9: - | AF9: -
H10: ДСП/ДВП 4/6 | I10: 1 | J10: 0 | K10: 0 | L10: 0 | M10: 2388.888889 | N10: 2627.777778 | O10: 3200 | P10: 2627.777778 | Q10: 3200 | R10: 3425 | S10: 4480.555556 | T10: 8472 | U10: - | W10: - | X10: - | Y10: - | Z10: - | AA10: - | AB10: - | AD10: - | AE10: - | AF10: 0
H11: ДСП 8 | I11: 1 | J11: 0 | K11: 0 | L11: 0 | M11: 2388.888889 | N11: 2627.777778 | O11: 3200 | P11: 2627.777778 | Q11: 3200 | R11: 3425 | S11: 4480.555556 | T11: 8472 | U11: - | W11: - | X11: - | Y11: - | Z11: - | AA11: - | AB11: - | AD11: - | AE11: - | AF11: -
A13: 1 | D13: Экопанель | E13: м.кв | F13: без скруглений | G13: любой размер | H13: ДСП 16 | I13: 0 | J13: 0 | K13: 1 | L13: 0 | M13: - | N13: - | O13: - | P13: - | Q13: - | T13: 9844 | U13: - | V13: - | W13: - | X13: - | Y13: - | Z13: - | AA13: - | AB13: - | AC13: - | AD13: 4800 | AE13: 5400 | AF13: 0
H14: МДФ 16 | I14: 0 | J14: 0 | K14: 1 | L14: 0 | M14: - | N14: - | O14: - | P14: - | Q14: - | T14: 10272 | U14: - | V14: - | W14: - | X14: - | Y14: - | Z14: - | AA14: - | AB14: - | AC14: - | AD14: 4800 | AE14: 5400 | AF14: 0
A15: 1 | D15: Столешница | E15: м.кв | F15: 1 скругл. 180 град. | H15: ДСП 26 | I15: 1 | J15: 0 | K15: 0 | L15: 0 | M15: 3444.444444 | N15: 3944.444444 | O15: 4388.888889 | P15: 3944.444444 | Q15: 4388.888889 | R15: 4697.222222 | S15: 6144.444444 | T15: - | U15: - | W15: - | X15: - | Y15: - | Z15: - | AA15: - | AB15: - | AD15: - | AE15: - | AF15: 0
H16: ДСП 38 влаг. | I16: 1 | J16: 0 | K16: 0 | L16: 0 | M16: 4537.815126 | N16: 4929.971989 | O16: 5210.084034 | P16: 4929.971989 | Q16: 5210.084034 | R16: 6066.619419 | S16: 7294.117647 | T16: - | U16: - | W16: - | X16: - | Y16: - | Z16: - | AA16: - | AB16: - | AD16: - | AE16: - | AF16: 0
H17: Фанера 18 | I17: 1 | M17: 4537.815126 | N17: 4929.971989 | O17: 5210.084034 | P17: 4929.971989 | Q17: 5210.084034 | R17: 6066.619419 | S17: 7294.117647 | T17: - | AD17: 5362 | AE17: 5689
H18: Фанера 38 | I18: 1 | J18: 0 | K18: 0 | L18: 0 | T18: - | U18: - | W18: - | X18: - | Y18: - | Z18: - | AA18: - | AB18: - | AD18: 7553 | AE18: 7847 | AF18: 0
F19: 2 скругл. 180 град. | H19: ДСП 26 | I19: 1 | J19: 0 | K19: 0 | L19: 0 | M19: 3945.454545 | N19: 4521.212121 | O19: 5030.30303 | P19: 4521.212121 | Q19: 5030.30303 | R19: 5381.818182 | S19: 7042.424242 | T19: - | U19: - | W19: - | X19: - | Y19: - | Z19: - | AA19: - | AB19: - | AD19: - | AE19: - | AF19: 0
H20: ДСП 38 влаг. | I20: 1 | J20: 0 | K20: 0 | L20: 0 | M20: 5212.121212 | N20: 5678.787879 | O20: 6369.69697 | P20: 5678.787879 | Q20: 6369.69697 | R20: 6818.181818 | S20: 8921.212121 | T20: - | U20: - | W20: - | X20: - | Y20: - | Z20: - | AA20: - | AB20: - | AD20: - | AE20: - | AF20: 0
H21: Фанера 18 | I21: 1 | M21: 5212.121212 | N21: 5678.787879 | O21: 6369.69697 | P21: 5678.787879 | Q21: 6369.69697 | R21: 6818.181818 | S21: 8921.212121 | T21: - | AD21: 5362 | AE21: 5689
H22: Фанера 38 | I22: 1 | J22: 0 | K22: 0 | L22: 0 | T22: - | U22: - | W22: - | X22: - | Y22: - | Z22: - | AA22: - | AB22: - | AD22: 7553 | AE22: 7847 | AF22: 0
A23: 1 | D23: Угловой сегмент | E23: шт | F23: 1 скругл. 180 град. | H23: ДСП 26 | I23: 1 | J23: 0 | K23: 0 | L23: 0 | M23: 4500 | N23: 5100 | O23: 5800 | P23: 5100 | Q23: 5800 | R23: 6210 | S23: 8120 | T23: - | U23: - | W23: - | X23: - | Y23: - | Z23: - | AA23: - | AB23: - | AF23: 0
H24: ДСП 38 влаг. | I24: 1 | J24: 0 | K24: 0 | L24: 0 | M24: 5600 | N24: 6200 | O24: 7000 | P24: 6200 | Q24: 7000 | R24: 7490 | S24: 9800 | T24: - | U24: - | W24: - | X24: - | Y24: - | Z24: - | AA24: - | AB24: - | AF24: 0
F25: без скруглений | H25: ДСП 26 | I25: 1 | J25: 0 | K25: 0 | L25: 0 | M25: 4500 | N25: 5100 | O25: 5800 | P25: 5100 | Q25: 5800 | R25: 6210 | S25: 8120 | T25: - | U25: - | W25: - | X25: - | Y25: - | Z25: - | AA25: - | AB25: - | AF25: 0
H26: ДСП 38 влаг. | I26: 1 | J26: 0 | K26: 0 | L26: 0 | M26: 5600 | N26: 6200 | O26: 7000 | P26: 6200 | Q26: 7000 | R26: 7490 | S26: 9800 | T26: - | U26: - | W26: - | X26: - | Y26: - | Z26: - | AA26: - | AB26: - | AF26: 0
A27: 1 | D27: Карниз | E27: м.кв | F27: 1 скругл. 90 град. | G27: любые размеры | H27: ДСП 16 | I27: 0 | J27: 1 | K27: 0 | L27: 0 | M27: 4657.722222 | N27: 5133 | O27: 5517.975 | P27: 5133 | Q27: 5517.975 | R27: 5905.25 | S27: 7728 | T27: - | U27: - | W27: - | X27: - | Y27: - | Z27: - | AA27: - | AB27: - | AD27: 0 | AE27: 0 | AF27: 0
H28: Фанера 18 | I28: 0 | J28: 1 | K28: 0 | T28: - | AD28: 5362 | AE28: 5689
H29: МДФ 16 | I29: 0 | J29: 1 | K29: 0 | L29: 0 | M29: 5711.167582 | N29: 6251.730769 | O29: 6815.796703 | P29: 6251.730769 | Q29: 6815.796703 | R29: 6629.75 | S29: 8671 | T29: - | U29: - | W29: - | X29: - | Y29: - | Z29: - | AA29: - | AB29: - | AD29: 0 | AE29: 0 | AF29: 0
A30: 1 | D30: Фасад | E30: м.кв | F30: 2 скругл. 90 град. | G30: любые размеры | H30: ДСП 16 | I30: 0 | J30: 1 | K30: 0 | L30: 0 | M30: 4657.722222 | N30: 5133 | O30: 5517.975 | P30: 5133 | Q30: 5517.975 | R30: 5905.25 | S30: 7728 | T30: - | U30: - | W30: - | X30: - | Y30: - | Z30: - | AA30: - | AB30: - | AD30: 0 | AE30: 0 | AF30: 0
H31: Фанера 18 | I31: 0 | J31: 1 | K31: 0 | T31: - | AD31: 5362 | AE31: 5689
H32: МДФ 16 | I32: 0 | J32: 1 | K32: 0 | L32: 0 | M32: 5711.167582 | N32: 6251.730769 | O32: 6815.796703 | P32: 6251.730769 | Q32: 6815.796703 | R32: 6629.75 | S32: 8671 | T32: - | U32: - | W32: - | X32: - | Y32: - | Z32: - | AA32: - | AB32: - | AD32: 0 | AE32: 0 | AF32: 0
A33: 1 | D33: Экофасад | E33: м.кв | F33: Модель № 1 | G33: любые размеры | H33: МДФ 16 | I33: 0 | J33: 0 | K33: 1 | L33: 0 | M33: - | N33: - | O33: - | P33: - | Q33: - | T33: 10700 | U33: - | V33: 0 | W33: - | X33: - | Y33: - | Z33: - | AA33: - | AB33: - | AC33: 0 | AD33: 5600 | AE33: 6300 | AF33: 0
F34: Модель № 2 | H34: МДФ 16 | I34: 0 | J34: 0 | K34: 1 | L34: 0 | M34: - | N34: - | O34: - | P34: - | Q34: - | T34: 10700 | U34: - | V34: 0 | W34: - | X34: - | Y34: - | Z34: - | AA34: - | AB34: - | AC34: 0 | AD34: 5600 | AE34: 6300 | AF34: 0
F35: Модель № 3 | H35: МДФ 16 | I35: 0 | J35: 0 | K35: 1 | L35: 0 | M35: - | N35: - | O35: - | P35: - | Q35: - | T35: 10700 | U35: - | V35: 0 | W35: - | X35: - | Y35: - | Z35: - | AA35: - | AB35: - | AC35: 0 | AD35: 5600 | AE35: 6300 | AF35: 0
F36: Модель № 4 | H36: МДФ 16 | I36: 0 | J36: 0 | K36: 1 | L36: 0 | M36: - | N36: - | O36: - | P36: - | Q36: - | T36: 11200 | U36: - | V36: 0 | W36: - | X36: - | Y36: - | Z36: - | AA36: - | AB36: - | AC36: 0 | AD36: 5600 | AE36: 6300 | AF36: 0
F37: Модель № 5 | H37: МДФ 16 | I37: 0 | J37: 0 | K37: 1 | L37: 0 | M37: - | N37: - | O37: - | P37: - | Q37: - | T37: 12800 | U37: - | V37: 0 | W37: - | X37: - | Y37: - | Z37: - | AA37: - | AB37: - | AC37: 0 | AD37: 8900 | AE37: 9770 | AF37: 0
E38: шт | F38: Модель № 6 | H38: МДФ 16 | I38: 0 | J38: 0 | K38: 1 | L38: 0 | T38: 12800 | U38: - | AD38: 8900 | AE38: 9770
F39: Модель № 7 | H39: МДФ 16 | I39: 0 | J39: 0 | K39: 1 | L39: 0 | M39: - | N39: - | O39: - | P39: - | Q39: - | T39: 12800 | U39: - | V39: 0 | W39: - | X39: - | Y39: - | Z39: - | AA39: - | AB39: - | AC39: 0 | AD39: 8900 | AE39: 9770 | AF39: 0
F40: Модель № 8 | H40: МДФ 16 | I40: 0 | J40: 0 | K40: 1 | L40: 0 | M40: - | N40: - | O40: - | P40: - | Q40: - | T40: 12800 | U40: - | V40: 0 | W40: - | X40: - | Y40: - | Z40: - | AA40: - | AB40: - | AC40: 0 | AD40: 8900 | AE40: 9770 | AF40: 0
F41: Модель № 9 | H41: МДФ 16 | I41: 0 | J41: 0 | K41: 1 | L41: 0 | M41: - | N41: - | O41: - | P41: - | Q41: - | T41: 13400 | U41: - | V41: 0 | W41: - | X41: - | Y41: - | Z41: - | AA41: - | AB41: - | AC41: 0 | AD41: 9150 | AE41: 10240 | AF41: 0
F42: Модель № 10 | H42: МДФ 16 | I42: 0 | J42: 0 | K42: 1 | L42: 0 | M42: - | N42: - | O42: - | P42: - | Q42: - | T42: 13400 | U42: - | V42: 0 | W42: - | X42: - | Y42: - | Z42: - | AA42: - | AB42: - | AC42: 0 | AD42: 9150 | AE42: 10240 | AF42: 0
E43: м.кв | H43: МДФ 16 | I43: 0 | J43: 0 | K43: 1 | L43: 0 | M43: - | N43: - | O43: - | P43: - | Q43: - | T43: - | U43: - | V43: 0 | W43: - | X43: - | Y43: - | Z43: - | AA43: - | AB43: - | AC43: 0 | AD43: 0 | AE43: 0 | AF43: 0
H44: МДФ 16 | I44: 0 | J44: 0 | K44: 1 | L44: 0 | M44: - | N44: - | O44: - | P44: - | Q44: - | T44: - | U44: - | V44: 0 | W44: - | X44: - | Y44: - | Z44: - | AA44: - | AB44: - | AC44: 0 | AD44: 0 | AE44: 0 | AF44: 0
H45: МДФ 16 | I45: 0 | J45: 0 | K45: 1 | L45: 0 | M45: - | N45: - | O45: - | P45: - | Q45: - | T45: - | U45: - | V45: 0 | W45: - | X45: - | Y45: - | Z45: - | AA45: - | AB45: - | AC45: 0 | AD45: 0 | AE45: 0 | AF45: 0
H46: МДФ 16 | I46: 0 | J46: 0 | K46: 1 | L46: 0 | M46: - | N46: - | O46: - | P46: - | Q46: - | T46: - | U46: - | V46: 0 | W46: - | X46: - | Y46: - | Z46: - | AA46: - | AB46: - | AC46: 0 | AD46: 0 | AE46: 0 | AF46: 0
H47: МДФ 16 | I47: 0 | J47: 0 | K47: 1 | L47: 0 | M47: - | N47: - | O47: - | P47: - | Q47: - | T47: - | U47: - | V47: 0 | W47: - | X47: - | Y47: - | Z47: - | AA47: - | AB47: - | AC47: 0 | AD47: 0 | AE47: 0 | AF47: 0
H48: МДФ 16 | I48: 0 | J48: 0 | K48: 1 | L48: 0 | M48: - | N48: - | O48: - | P48: - | Q48: - | T48: - | U48: - | V48: 0 | W48: - | X48: - | Y48: - | Z48: - | AA48: - | AB48: - | AC48: 0 | AD48: 0 | AE48: 0 | AF48: 0
A49: 1 | D49: Панель Акрил | E49: м.кв | F49: без скруглений | H49: МДФ 18 | I49: 0 | J49: 0 | K49: 0 | L49: 1 | M49: - | N49: - | O49: - | P49: - | Q49: - | T49: - | U49: - | V49: - | W49: 5250 | X49: 5450 | Y49: 5600 | Z49: - | AA49: - | AB49: - | AC49: - | AD49: - | AE49: - | AF49: -
A50: 1 | D50: Панель CLEAF | E50: м.кв | F50: без скруглений | H50: ДСП 18 | I50: 0 | J50: 0 | K50: 1 | L50: 0 | M50: - | N50: - | O50: - | P50: - | Q50: - | T50: - | U50: - | V50: - | W50: - | X50: - | Y50: - | Z50: 5396 | AA50: 5931 | AB50: 6622 | AD50: - | AE50: - | AF50: -
A51: 1 | D51: Экофасад CLEAF | E51: м.кв | F51: Модель № 1 | H51: ДСП 18 | I51: 0 | J51: 0 | K51: 1 | L51: 0 | M51: - | N51: - | O51: - | P51: - | Q51: - | T51: - | U51: - | V51: - | W51: - | X51: - | Y51: - | Z51: 7750 | AA51: 8257 | AB51: 8903 | AD51: - | AE51: - | AF51: -
F52: Модель № 2 | H52: ДСП 18 | I52: 0 | J52: 0 | K52: 1 | L52: 0 | M52: - | N52: - | O52: - | P52: - | Q52: - | T52: - | U52: - | V52: - | W52: - | X52: - | Y52: - | Z52: 7750 | AA52: 8257 | AB52: 8903 | AD52: - | AE52: - | AF52: -
F53: Модель № 3 | H53: ДСП 18 | I53: 0 | J53: 0 | K53: 1 | L53: 0 | M53: - | N53: - | O53: - | P53: - | Q53: - | T53: - | U53: - | V53: - | W53: - | X53: - | Y53: - | Z53: 7750 | AA53: 8257 | AB53: 8903 | AD53: - | AE53: - | AF53: -
F54: Модель № 4 | H54: ДСП 18 | I54: 0 | J54: 0 | K54: 1 | L54: 0 | M54: - | N54: - | O54: - | P54: - | Q54: - | T54: - | U54: - | V54: - | W54: - | X54: - | Y54: - | Z54: 8050 | AA54: 8557 | AB54: 9203 | AD54: - | AE54: - | AF54: -
H55: ДСП 18 | I55: 0 | J55: 0 | K55: 1 | L55: 0 | M55: - | N55: - | O55: - | P55: - | Q55: - | T55: - | U55: - | V55: - | W55: - | X55: - | Y55: - | AD55: - | AE55: - | AF55: -
H56: ДСП 18 | I56: 0 | J56: 0 | K56: 1 | L56: 0 | M56: - | N56: - | O56: - | P56: - | Q56: - | T56: - | U56: - | V56: - | W56: - | X56: - | Y56: - | AD56: - | AE56: - | AF56: -
H57: ДСП 18 | I57: 0 | J57: 0 | K57: 1 | L57: 0 | M57: - | N57: - | O57: - | P57: - | Q57: - | T57: - | U57: - | V57: - | W57: - | X57: - | Y57: - | AD57: - | AE57: - | AF57: -
H58: ДСП 18 | I58: 0 | J58: 0 | K58: 1 | L58: 0 | M58: - | N58: - | O58: - | P58: - | Q58: - | T58: - | U58: - | V58: - | W58: - | X58: - | Y58: - | AD58: - | AE58: - | AF58: -
H59: ДСП 18 | I59: 0 | J59: 0 | K59: 1 | L59: 0 | M59: - | N59: - | O59: - | P59: - | Q59: - | T59: - | U59: - | V59: - | W59: - | X59: - | Y59: - | AD59: - | AE59: - | AF59: -
H60: ДСП 18 | I60: 0 | J60: 0 | K60: 1 | L60: 0 | M60: - | N60: - | O60: - | P60: - | Q60: - | T60: - | U60: - | V60: - | W60: - | X60: - | Y60: - | AD60: - | AE60: - | AF60: -
A61: 1 | D61: Рамка под стекло | E61: м.п. | F61: МФ 33-8 серебро | G61: 35 | H61: - | I61: 0 | J61: 1 | K61: 0 | L61: 0 | M61: - | N61: - | O61: - | P61: - | Q61: -
F62: МФ 1-10 серебро | G62: 76 | H62: - | I62: 0 | J62: 1 | K62: 0 | L62: 0 | M62: - | N62: - | O62: - | P62: - | Q62: -
F63: F1-33 серебро | G63: 44 | H63: - | I63: 0 | J63: 1 | K63: 0 | L63: 0 | M63: - | N63: - | O63: - | P63: - | Q63: -
F64: F1-33 шампань | G64: 52 | H64: - | I64: 0 | J64: 1 | K64: 0 | L64: 0 | M64: - | N64: - | O64: - | P64: - | Q64: -
F65: F1-33 черный | G65: 31 | H65: - | I65: 0 | J65: 1 | K65: 0 | L65: 0 | M65: - | N65: - | O65: - | P65: - | Q65: -
F66: F1-12 серебро | G66: 45 | H66: - | I66: 0 | J66: 1 | K66: 0 | L66: 0 | M66: - | N66: - | O66: - | P66: - | Q66: -
F67: F1-12 шампань | G67: 42 | H67: - | I67: 0 | J67: 1 | K67: 0 | L67: 0 | M67: - | N67: - | O67: - | P67: - | Q67: -
F68: F1-12 золото | G68: 38 | H68: - | I68: 0 | J68: 1 | K68: 0 | L68: 0 | M68: - | N68: - | O68: - | P68: - | Q68: -
F69: F1-11 серебро | G69: 33 | H69: - | I69: 0 | J69: 1 | K69: 0 | L69: 0 | M69: - | N69: - | O69: - | P69: - | Q69: -
F70: F1-11 шампань | G70: 32 | H70: - | I70: 0 | J70: 1 | K70: 0 | L70: 0 | M70: - | N70: - | O70: - | P70: - | Q70: -
F71: F1-11 золото | G71: 31 | H71: - | I71: 0 | J71: 1 | K71: 0 | L71: 0 | M71: - | N71: - | O71: - | P71: - | Q71: -
F72: F1-10 серебро | G72: 52 | H72: - | I72: 0 | J72: 1 | K72: 0 | L72: 0 | M72: - | N72: - | O72: - | P72: - | Q72: -
F73: F1-10 шампань | G73: 51 | H73: - | I73: 0 | J73: 1 | K73: 0 | L73: 0 | M73: - | N73: - | O73: - | P73: - | Q73: -
F74: F1-10 золото | G74: 65 | H74: - | I74: 0 | J74: 1 | K74: 0 | L74: 0 | M74: - | N74: - | O74: - | P74: - | Q74: -
A75: 1 | D75: Отбортовка | E75: м.п. | F75: для заказчика | H75: - | I75: 1 | J75: 0 | K75: 0 | L75: 0 | M75: - | N75: - | O75: - | P75: - | Q75: -
A76: 1 | D76: Кромка пластик | E76: м.п. | F76: для заказчика | H76: - | I76: 1 | J76: 0 | K76: 0 | L76: 0 | M76: - | N76: - | O76: - | P76: - | Q76: -
D77: Радиусный фасад | E77: шт | F77: Выпуклый R-280 | H77: МДФ 16 | I77: 0 | J77: 1 | K77: 1 | L77: 0 | M77: - | N77: - | O77: - | P77: - | Q77: -
F78: Выпуклый R-300 | H78: МДФ 16 | I78: 0 | J78: 1 | K78: 1 | L78: 0 | M78: - | N78: - | O78: - | P78: - | Q78: -
F79: Вогнутый R-280 | H79: МДФ 16 | I79: 0 | J79: 1 | K79: 1 | L79: 0 | M79: - | N79: - | O79: - | P79: - | Q79: -
F80: Вогнутый R-300 | H80: МДФ 16 | I80: 0 | J80: 1 | K80: 1 | L80: 0 | M80: - | N80: - | O80: - | P80: - | Q80: -
F81: Выпуклый R-280 с постформингом | H81: МДФ 16 | I81: 0 | J81: 1 | K81: 0 | L81: 0 | M81: - | N81: - | O81: - | P81: - | Q81: -
F82: Выпуклый R-300 с постформингом | H82: МДФ 16 | I82: 0 | J82: 1 | K82: 0 | L82: 0 | M82: - | N82: - | O82: - | P82: - | Q82: -
A83: 1 | D83: Плита заказчика | F83: 1 скругл. 180 град. | H83: - | I83: 1 | J83: 1 | K83: 0 | L83: 0 | M83: - | N83: - | O83: - | P83: - | Q83: - | R83: - | S83: - | T83: - | U83: - | V83: - | W83: - | X83: - | Y83: - | Z83: - | AA83: - | AB83: - | AC83: - | AD83: - | AE83: - | AF83: -
F84: без скруглений | H84: - | I84: 1 | J84: 1 | K84: 0 | L84: 0 | M84: - | N84: - | O84: - | P84: - | Q84: - | R84: - | S84: - | T84: - | U84: - | V84: - | W84: - | X84: - | Y84: - | Z84: - | AA84: - | AB84: - | AC84: - | AD84: - | AE84: - | AF84: -

Sheet Коэфициенты (hidden)
A1: Группа | D1: Изделие | E1: Группа | F1: Материал | G1: Ширина | I1: Длина | K1: Коэф
K2: Слопалст, Arpa | L2: Arpa | M2: Arpa | N2: Arpa 4м (2) | O2: Арпа 4м(3) | R2: FN NTM | S2: FN NTA | U2: ACR 001 | V2: ACR 002, 004 | W2: ACR 003 | X2: CLEAF 14 | Y2: CKEAF 15 | Z2: CKEAF 16 | AB2: US | AC2: SUP
A4: 1 | D4: Панель | E4: 2 | F4: ДСП 26 | K4: - | L4: - | M4: - | N4: - | O4: - | R4: - | S4: - | T4: - | U4: - | V4: - | W4: - | X4: - | Y4: - | Z4: - | AA4: - | AB4: - | AC4: - | AD4: -
H5: 600 | J5: 3000 | K5: 1 | L5: 1 | M5: 1 | N5: 1 | O5: 1 | P5: 1 | Q5: 1 | R5: 1 | S5: - | T5: - | U5: - | V5: - | W5: - | X5: - | Y5: - | Z5: - | AA5: - | AB5: - | AC5: - | AD5: -
K6: - | L6: - | M6: - | N6: - | O6: - | P6: - | Q6: - | R6: - | S6: - | T6: - | U6: - | V6: - | W6: - | X6: - | Y6: - | Z6: - | AA6: - | AB6: - | AC6: - | AD6: -
K7: - | L7: - | M7: - | N7: - | O7: - | P7: - | Q7: - | R7: 1 | S7: - | T7: - | U7: - | V7: - | W7: - | X7: - | Y7: - | Z7: - | AA7: - | AB7: - | AC7: - | AD7: -
G8: < | H8: 601 | I8: < | J8: 3001 | K8: 1.300507614 | L8: 1.265583456 | M8: 1.258565737 | N8: 1.265583456 | O8: 1.258565737 | P8: 1.25866005 | Q8: 1.258036984 | S8: - | T8: - | U8: - | V8: - | W8: - | X8: - | Y8: - | Z8: - | AA8: - | AB8: - | AC8: - | AD8: -
G9: < | H9: 601 | I9: > | J9: 3000 | K9: - | L9: - | M9: - | N9: - | O9: - | P9: - | Q9: - | R9: - | S9: - | T9: - | U9: - | V9: - | W9: - | X9: - | Y9: - | Z9: - | AA9: - | AB9: - | AC9: - | AD9: -
G10: > | H10: 600 | I10: < | J10: 3001 | K10: 1.624873096 | L10: 1.581979321 | M10: 1.572908367 | N10: 1.581979321 | O10: 1.572908367 | P10: 1.572208437 | Q10: 1.572972973 | T10: - | U10: - | V10: - | W10: - | X10: - | Y10: - | Z10: - | AA10: - | AB10: - | AC10: - | AD10: -
G11: > | H11: 600 | I11: > | J11: 3000 | K11: - | L11: - | M11: - | N11: - | O11: - | P11: - | Q11: - | R11: - | S11: - | T11: - | U11: - | V11: - | W11: - | X11: - | Y11: - | Z11: - | AA11: - | AB11: - | AC11: - | AD11: -
E12: 2 | F12: ДСП 38 влаг. | K12: - | L12: - | M12: - | N12: - | O12: - | P12: - | Q12: - | R12: - | S12: - | T12: - | U12: - | V12: - | W12: - | X12: - | Y12: - | Z12: - | AA12: - | AB12: - | AC12: - | AD12: -
H13: 600 | J13: 3000 | K13: 1 | L13: 1 | M13: 1 | N13: 1 | O13: 1 | P13: 1 | Q13: 1 | R13: 1 | S13: - | T13: - | U13: - | V13: - | W13: - | X13: - | Y13: - | Z13: - | AA13: - | AB13: - | AC13: - | AD13: -
H14: 600 | J14: 4150 | K14: - | L14: - | M14: - | N14: 1.083906544 | O14: 1.090476976 | R14: - | S14: - | T14: - | U14: - | V14: - | W14: - | X14: - | Y14: - | Z14: - | AA14: - | AB14: - | AC14: - | AD14: -
K15: - | L15: - | M15: - | N15: - | O15: - | P15: - | Q15: - | R15: - | S15: - | T15: - | U15: - | V15: - | W15: - | X15: - | Y15: - | Z15: - | AA15: - | AB15: - | AC15: - | AD15: -
H16: 1200 | J16: 3000 | K16: 1 | L16: 1 | M16: 1 | N16: 1 | O16: 1 | P16: 1 | Q16: 1 | R16: 1 | S16: - | T16: - | U16: - | V16: - | W16: - | X16: - | Y16: - | Z16: - | AA16: - | AB16: - | AC16: - | AD16: -
K17: - | L17: - | M17: - | N17: - | O17: - | P17: - | Q17: - | R17: - | S17: - | T17: - | U17: - | V17: - | W17: - | X17: - | Y17: - | Z17: - | AA17: - | AB17: - | AC17: - | AD17: -
G18: < | H18: 601 | I18: < | J18: 3001 | K18: 1.305699482 | L18: 1.302264601 | M18: 1.347287671 | N18: 1.302264601 | O18: 1.347287671 | P18: 1.347465438 | Q18: 1.347710372 | S18: - | T18: - | U18: - | V18: - | W18: - | X18: - | Y18: - | Z18: - | AA18: - | AB18: - | AC18: - | AD18: -
G19: < | H19: 601 | I19: > | J19: 3001 | K19: - | L19: - | M19: - | N19: 1.302264601 | O19: 1.347287671 | P19: - | Q19: - | R19: - | S19: - | T19: - | U19: - | V19: - | W19: - | X19: - | Y19: - | Z19: - | AA19: - | AB19: - | AC19: - | AD19: -
G20: > | H20: 600 | I20: < | J20: 3001 | K20: 1.633290155 | L20: 1.628367104 | M20: 1.68460274 | N20: 1.628367104 | O20: 1.68460274 | P20: 1.684792627 | Q20: 1.685166341 | S20: - | T20: - | U20: - | V20: - | W20: - | X20: - | Y20: - | Z20: - | AA20: - | AB20: - | AC20: - | AD20: -
G21: > | H21: 600 | I21: > | J21: 3001 | K21: - | L21: - | M21: - | N21: 1.758164482 | O21: 1.819726027 | P21: - | Q21: - | R21: - | S21: - | T21: - | U21: - | V21: - | W21: - | X21: - | Y21: - | Z21: - | AA21: - | AB21: - | AC21: - | AD21: -
E22: 2 | F22: Фанера 18 | H22: 1300 | J22: 1500 | K22: - | L22: - | M22: - | N22: - | O22: - | P22: - | Q22: - | S22: - | T22: - | U22: - | V22: - | W22: - | X22: - | Y22: - | Z22: - | AA22: - | AB22: - | AC22: - | AD22: -
H23: 600 | J23: 3000 | K23: 1 | L23: 1 | M23: 1 | N23: 1 | O23: 1 | P23: 1 | Q23: 1 | R23: 1 | S23: - | T23: - | U23: - | V23: - | W23: - | X23: - | Y23: - | Z23: - | AA23: - | AB23: - | AC23: - | AD23: -
G24: < | H24: 601 | I24: < | J24: 3001 | K24: 1.305699482 | L24: 1.302264601 | M24: 1.347287671 | N24: 1.302264601 | O24: 1.347287671 | P24: 1.347465438 | Q24: 1.347710372 | R24: 1 | S24: - | T24: - | U24: - | V24: - | W24: - | X24: - | Y24: - | Z24: - | AA24: - | AB24: - | AC24: - | AD24: -
G25: < | H25: 601 | I25: > | J25: 3001 | K25: - | L25: - | M25: - | N25: 1.302264601 | O25: 1.347287671 | P25: - | Q25: - | R25: - | S25: - | T25: - | U25: - | V25: - | W25: - | X25: - | Y25: - | Z25: - | AA25: - | AB25: - | AC25: - | AD25: -
G26: > | H26: 600 | I26: < | J26: 3001 | K26: 1.633290155 | L26: 1.628367104 | M26: 1.68460274 | N26: 1.628367104 | O26: 1.68460274 | P26: 1.684792627 | Q26: 1.685166341 | R26: 1 | S26: - | T26: - | U26: - | V26: - | W26: - | X26: - | Y26: - | Z26: - | AA26: - | AB26: - | AC26: - | AD26: -
G27: > | H27: 600 | I27: > | J27: 3000 | K27: - | L27: - | M27: - | N27: 1.758164482 | O27: 1.819726027 | P27: - | Q27: - | R27: - | S27: -
G28: > | H28: 1200 | I28: < | J28: 4200 | K28: - | L28: - | M28: - | N28: - | O28: - | P28: - | Q28: - | R28: 1 | S28: - | T28: - | U28: - | V28: - | W28: - | X28: - | Y28: - | Z28: - | AA28: - | AB28: - | AC28: - | AD28: -
G29: < | H29: 1200 | I29: > | J29: 4200 | K29: - | L29: - | M29: - | N29: - | O29: - | P29: - | Q29: - | R29: - | S29: - | T29: - | U29: - | V29: - | W29: - | X29: - | Y29: - | Z29: - | AA29: - | AB29: - | AC29: - | AD29: -
E30: 2 | F30: Фанера 38 | H30: 1300 | J30: 1500 | K30: 1 | L30: 1 | M30: 1 | N30: 1 | O30: 1 | P30: 1 | Q30: 1 | R30: 1
H31: 600 | J31: 3000 | K31: 1 | L31: 1 | M31: 1 | N31: 1 | O31: 1 | P31: 1 | Q31: 1 | R31: 1
G32: < | H32: 601 | I32: < | J32: 3001 | K32: 1.339383508 | L32: 1.355811244 | M32: 1.380064489 | N32: 1.355811244 | O32: 1.380064489 | P32: 1.380064489 | Q32: 1.380064489 | R32: 1
G33: < | H33: 601 | I33: > | J33: 3001 | K33: 1.339383508 | L33: 1.355811244 | M33: 1.380064489 | N33: 1.355811244 | O33: 1.380064489 | P33: 1.380064489 | Q33: 1.380064489 | R33: -
G34: > | H34: 600 | I34: < | J34: 3001 | K34: 1.339383508 | L34: 1.355811244 | M34: 1.380064489 | N34: 1.355811244 | O34: 1.380064489 | P34: 1.380064489 | Q34: 1.380064489 | R34: 1
G35: > | H35: 600 | I35: > | J35: 3000 | K35: 1.339383508 | L35: 1.355811244 | M35: 1.380064489 | N35: 1.355811244 | O35: 1.380064489 | P35: 1.380064489 | Q35: 1.380064489 | R35: -
G36: > | H36: 1200 | I36: < | J36: 4200 | K36: - | L36: - | M36: - | N36: - | O36: - | P36: - | Q36: - | R36: - | S36: - | T36: - | U36: - | V36: - | W36: - | X36: - | Y36: - | Z36: - | AA36: - | AB36: - | AC36: - | AD36: -
G37: < | H37: 1200 | I37: > | J37: 4200 | K37: - | L37: - | M37: - | N37: - | O37: - | P37: - | Q37: - | R37: - | S37: - | T37: - | U37: - | V37: - | W37: - | X37: - | Y37: - | Z37: - | AA37: - | AB37: - | AC37: - | AD37: -
E38: 2 | F38: ДСП 16 | H38: 1200 | J38: 3000 | K38: 1 | L38: 1 | M38: 1 | N38: 1 | O38: 1 | P38: 1 | Q38: 1 | R38: - | S38: - | T38: - | U38: - | V38: - | W38: - | X38: - | Y38: - | Z38: - | AA38: - | AB38: - | AC38: - | AD38: -
H39: 600 | J39: 3000 | K39: 1 | L39: 1 | M39: 1 | N39: 1 | O39: 1 | P39: 1 | Q39: 1
H40: 1200 | J40: 1500 | K40: 1 | L40: 1 | M40: 1 | N40: 1 | O40: 1 | P40: 1 | Q40: 1 | R40: - | S40: - | T40: - | U40: - | V40: - | W40: - | X40: - | Y40: - | Z40: - | AA40: - | AB40: - | AC40: - | AD40: -
G41: < | H41: 1201 | I41: < | J41: 3001 | K41: 1.416122449 | L41: 1.402 | M41: 1.48744186 | N41: 1.402 | O41: 1.48744186 | P41: 1.488405797 | Q41: 1.487822878 | R41: - | S41: - | T41: - | U41: - | V41: - | W41: - | X41: - | Y41: - | Z41: - | AA41: - | AB41: - | AC41: - | AD41: -
E42: 2 | F42: МДФ 16 | H42: 1300 | J42: 2800 | K42: 1 | L42: 1 | M42: 1 | N42: 1 | O42: 1 | P42: 1 | Q42: 1 | R42: - | S42: - | T42: - | U42: - | V42: - | W42: - | X42: - | Y42: - | Z42: - | AA42: - | AB42: - | AC42: - | AD42: -
H43: 650 | J43: 2800 | K43: 1 | L43: 1 | M43: 1 | N43: 1 | O43: 1 | P43: 1 | Q43: 1 | R43: - | S43: - | T43: - | U43: - | V43: - | W43: - | X43: - | Y43: - | Z43: - | AA43: - | AB43: - | AC43: - | AD43: -
G44: < | H44: 1301 | I44: < | J44: 2801 | K44: 1.29661893 | L44: 1.291789474 | M44: 1.352071724 | N44: 1.291789474 | O44: 1.352071724 | P44: 1.352100515 | Q44: 1.352 | R44: - | S44: - | T44: - | U44: - | V44: - | W44: - | X44: - | Y44: - | Z44: - | AA44: - | AB44: - | AC44: - | AD44: -
E45: 2 | F45: ДСП/ДВП 4/6 | K45: - | L45: - | M45: - | N45: - | O45: - | P45: - | Q45: - | R45: - | S45: - | T45: - | U45: - | V45: - | W45: - | X45: - | Y45: - | Z45: - | AA45: - | AB45: - | AC45: - | AD45: -
H46: 600 | J46: 3000 | K46: 1 | L46: 1 | M46: 1 | N46: 1 | O46: 1 | P46: 1 | Q46: 1 | R46: 1 | S46: 1 | T46: - | U46: - | V46: - | W46: - | X46: - | Y46: - | Z46: - | AA46: - | AB46: - | AC46: - | AD46: -
H47: 1200 | J47: 3000 | K47: 1 | L47: 1 | M47: 1 | N47: 1 | O47: 1 | P47: 1 | Q47: 1 | R47: 1 | S47: 1 | T47: - | U47: - | V47: - | W47: - | X47: - | Y47: - | Z47: - | AA47: - | AB47: - | AC47: - | AD47: -
H48: 600 | J48: 4150 | K48: - | L48: - | M48: - | N48: - | O48: - | P48: - | Q48: - | R48: 1 | S48: 1 | T48: - | U48: - | V48: - | W48: - | X48: - | Y48: - | Z48: - | AA48: - | AB48: - | AC48: - | AD48: -
G49: < | H49: 601 | I49: < | J49: 3001 | K49: 1.339534884 | L49: 1.29577167 | M49: 1.296875 | N49: 1.29577167 | O49: 1.296875 | P49: 1.296350365 | Q49: 1.296714197 | R49: 1 | S49: 1 | T49: - | U49: - | V49: - | W49: - | X49: - | Y49: - | Z49: - | AA49: - | AB49: - | AC49: - | AD49: -
G50: < | H50: 601 | I50: > | J50: 3001 | K50: - | L50: - | M50: - | N50: - | O50: - | P50: - | Q50: - | R50: - | S50: - | T50: - | U50: - | V50: - | W50: - | X50: - | Y50: - | Z50: - | AA50: - | AB50: - | AC50: - | AD50: -
G51: > | H51: 601 | I51: < | J51: 3001 | K51: 1.674418605 | L51: 1.619238901 | M51: 1.621875 | N51: 1.619238901 | O51: 1.621875 | P51: 1.62189781 | Q51: 1.622566646 | R51: 1 | S51: 1 | T51: - | U51: - | V51: - | W51: - | X51: - | Y51: - | Z51: - | AA51: - | AB51: - | AC51: - | AD51: -
G52: > | H52: 601 | I52: > | J52: 3001 | K52: - | L52: - | M52: - | N52: - | O52: - | P52: - | Q52: - | R52: - | S52: - | T52: - | U52: - | V52: - | W52: - | X52: - | Y52: - | Z52: - | AA52: - | AB52: - | AC52: - | AD52: -
G53: > | H53: 1200 | I53: > | J53: 3000 | K53: - | L53: - | M53: - | N53: - | O53: - | P53: - | Q53: - | R53: - | S53: - | T53: - | U53: - | V53: - | W53: - | X53: - | Y53: - | Z53: - | AA53: - | AB53: - | AC53: - | AD53: -
E54: 2 | F54: ДСП 8 | K54: - | L54: - | M54: - | N54: - | O54: - | P54: - | Q54: - | R54: 1 | S54: 1 | T54: - | U54: - | V54: - | W54: - | X54: - | Y54: - | Z54: - | AA54: - | AB54: - | AC54: - | AD54: -
H55: 600 | J55: 3000 | K55: 1 | L55: 1 | M55: 1 | N55: 1 | O55: 1 | P55: 1 | Q55: 1 | R55: 1 | S55: 1 | T55: - | U55: - | V55: - | W55: - | X55: - | Y55: - | Z55: - | AA55: - | AB55: - | AC55: - | AD55: -
H56: 1200 | J56: 3000 | K56: 1 | L56: 1 | M56: 1 | N56: 1 | O56: 1 | P56: 1 | Q56: 1 | R56: - | S56: - | T56: - | U56: - | V56: - | W56: - | X56: - | Y56: - | Z56: - | AA56: - | AB56: - | AC56: - | AD56: -
H57: 600 | J57: 4150 | K57: - | L57: - | M57: - | N57: 1.318562107 | O57: 1.208042874 | P57: - | Q57: - | R57: 1 | S57: 1 | T57: - | U57: - | V57: - | W57: - | X57: - | Y57: - | Z57: - | AA57: - | AB57: - | AC57: - | AD57: -
K58: - | L58: - | M58: - | N58: - | O58: - | P58: - | Q58: - | R58: 1 | S58: 1 | T58: - | U58: - | V58: - | W58: - | X58: - | Y58: - | Z58: - | AA58: - | AB58: - | AC58: - | AD58: -
K59: - | L59: - | M59: - | N59: - | O59: - | P59: - | Q59: - | R59: - | S59: - | T59: - | U59: - | V59: - | W59: - | X59: - | Y59: - | Z59: - | AA59: - | AB59: - | AC59: - | AD59: -
G60: < | H60: 601 | I60: < | J60: 3001 | K60: 1.339534884 | L60: 1.29577167 | M60: 1.296875 | N60: 1.29577167 | O60: 1.296875 | P60: 1.296350365 | Q60: 1.296714197 | R60: 1 | S60: 1 | T60: - | U60: - | V60: - | W60: - | X60: - | Y60: - | Z60: - | AA60: - | AB60: - | AC60: - | AD60: -
G61: < | H61: 601 | I61: > | J61: 3001 | K61: - | L61: - | M61: - | N61: 1.29577167 | O61: 1.296875 | P61: 1.296350365 | Q61: 1.296714197 | R61: - | S61: - | T61: - | U61: - | V61: - | W61: - | X61: - | Y61: - | Z61: - | AA61: - | AB61: - | AC61: - | AD61: -
G62: > | H62: 601 | I62: < | J62: 3001 | K62: 1.674418605 | L62: 1.619238901 | M62: 1.621875 | N62: 1.619238901 | O62: 1.621875 | P62: 1.62189781 | Q62: 1.622566646 | R62: 1 | S62: 1 | T62: - | U62: - | V62: - | W62: - | X62: - | Y62: - | Z62: - | AA62: - | AB62: - | AC62: - | AD62: -
G63: > | H63: 601 | I63: > | J63: 3001 | K63: - | L63: - | M63: - | N63: 1.748625793 | O63: 1.753125 | P63: - | Q63: - | R63: - | S63: - | T63: - | U63: - | V63: - | W63: - | X63: - | Y63: - | Z63: - | AA63: - | AB63: - | AC63: - | AD63: -
A64: 1 | D64: Экопанель | E64: 2 | F64: ДСП 16 | G64: > | H64: 1300 | I64: < | J64: 3000 | K64: - | L64: - | M64: - | N64: - | O64: - | P64: - | Q64: - | R64: - | S64: - | T64: - | U64: - | V64: - | W64: - | X64: - | Y64: - | Z64: - | AA64: - | AB64: - | AC64: - | AD64: -
G65: < | H65: 1300 | I65: > | J65: 3000 | K65: - | L65: - | M65: - | N65: - | O65: - | P65: - | Q65: - | R65: - | S65: - | T65: - | U65: - | V65: - | W65: - | X65: - | Y65: - | Z65: - | AA65: - | AB65: - | AC65: - | AD65: -
G66: < | H66: 1300 | I66: < | J66: 3000 | K66: - | L66: - | M66: - | N66: - | O66: - | P66: - | Q66: - | R66: 1 | S66: 1 | T66: - | U66: - | V66: - | W66: - | X66: - | Y66: - | Z66: - | AA66: - | AB66: 1 | AC66: 1 | AD66: -
E67: 2 | F67: МДФ 16 | G67: > | H67: 1300 | I67: < | J67: 2800 | K67: - | L67: - | M67: - | N67: - | O67: - | P67: - | Q67: - | R67: - | S67: - | T67: - | U67: - | V67: - | W67: - | X67: - | Y67: - | Z67: - | AA67: - | AB67: - | AC67: - | AD67: -
G68: < | H68: 1300 | I68: > | J68: 2800 | K68: - | L68: - | M68: - | N68: - | O68: - | P68: - | Q68: - | R68: - | S68: - | T68: - | U68: - | V68: - | W68: - | X68: - | Y68: - | Z68: - | AA68: - | AB68: - | AC68: - | AD68: -
G69: < | H69: 1300 | I69: < | J69: 2800 | K69: - | L69: - | M69: - | N69: - | O69: - | P69: - | Q69: - | R69: 1 | S69: 1 | T69: - | U69: - | V69: - | W69: - | X69: - | Y69: - | Z69: - | AA69: - | AB69: 1 | AC69: 1 | AD69: -
A70: 1 | D70: Столешница | E70: 2 | F70: ДСП 26 | K70: - | L70: - | M70: - | N70: - | O70: - | P70: - | Q70: - | R70: - | S70: - | T70: - | U70: - | V70: - | W70: - | X70: - | Y70: - | Z70: - | AA70: - | AB70: - | AC70: - | AD70: -
H71: 600 | J71: 3000 | K71: 1 | L71: 1 | M71: 1 | N71: 1 | O71: 1 | P71: 1 | Q71: 1 | R71: - | S71: - | T71: - | U71: - | V71: - | W71: - | X71: - | Y71: - | Z71: - | AA71: - | AB71: - | AC71: - | AD71: -
K72: - | L72: - | M72: - | N72: - | O72: - | P72: - | Q72: - | R72: - | S72: - | T72: - | U72: - | V72: - | W72: - | X72: - | Y72: - | Z72: - | AA72: - | AB72: - | AC72: - | AD72: -
G73: < | H73: 601 | I73: < | J73: 3001 | K73: 1.239677419 | L73: 1.206760563 | M73: 1.199620253 | N73: 1.206760563 | O73: 1.199620253 | P73: 1.19964518 | Q73: 1.199457505 | R73: - | S73: - | T73: - | U73: - | V73: - | W73: - | X73: - | Y73: - | Z73: - | AA73: - | AB73: - | AC73: - | AD73: -
G74: < | H74: 601 | I74: > | J74: 3001 | K74: - | L74: - | M74: - | N74: - | O74: - | P74: - | Q74: - | R74: - | S74: - | T74: - | U74: - | V74: - | W74: - | X74: - | Y74: - | Z74: - | AA74: - | AB74: - | AC74: - | AD74: -
G75: > | H75: 601 | I75: < | J75: 3001 | K75: 1.548870968 | L75: 1.508450704 | M75: 1.499240506 | N75: 1.508450704 | O75: 1.499240506 | P75: 1.498758131 | Q75: 1.499728752 | R75: - | S75: - | T75: - | U75: - | V75: - | W75: - | X75: - | Y75: - | Z75: - | AA75: - | AB75: - | AC75: - | AD75: -
G76: > | H76: 601 | I76: > | J76: 3001 | K76: - | L76: - | M76: - | N76: - | O76: - | P76: - | Q76: - | R76: - | S76: - | T76: - | U76: - | V76: - | W76: - | X76: - | Y76: - | Z76: - | AA76: - | AB76: - | AC76: - | AD76: -
E77: 2 | F77: ДСП 38 влаг. | R77: - | S77: - | T77: - | U77: - | V77: - | W77: - | X77: - | Y77: - | Z77: - | AA77: - | AB77: - | AC77: - | AD77: -
H78: 595 | J78: 3000 | K78: 1 | L78: 1 | M78: 1 | N78: 1 | O78: 1 | P78: 1 | Q78: 1 | R78: - | S78: - | T78: - | U78: - | V78: - | W78: - | X78: - | Y78: - | Z78: - | AA78: - | AB78: - | AC78: - | AD78: -
H79: 595 | J79: 4150 | K79: - | L79: - | M79: - | N79: 1.084337349 | O79: 1.088223863 | P79: - | Q79: - | R79: - | S79: - | T79: - | U79: - | V79: - | W79: - | X79: - | Y79: - | Z79: - | AA79: - | AB79: - | AC79: - | AD79: -
R80: - | S80: - | T80: - | U80: - | V80: - | W80: - | X80: - | Y80: - | Z80: - | AA80: - | AB80: - | AC80: - | AD80: -
R81: - | S81: - | T81: - | U81: - | V81: - | W81: - | X81: - | Y81: - | Z81: - | AA81: - | AB81: - | AC81: - | AD81: -
G82: < | H82: 596 | I82: < | J82: 3001 | K82: 1.235175926 | L82: 1.243414773 | M82: 1.313798387 | N82: 1.243414773 | O82: 1.313798387 | P82: 1.207426986 | Q82: 1.314072581 | R82: - | S82: - | T82: - | U82: - | V82: - | W82: - | X82: - | Y82: - | Z82: - | AA82: - | AB82: - | AC82: - | AD82: -
G83: < | H83: 596 | I83: > | J83: 3001 | K83: - | L83: - | M83: - | N83: 1.243414773 | O83: 1.313798387 | P83: - | Q83: - | R83: - | S83: - | T83: - | U83: - | V83: - | W83: - | X83: - | Y83: - | Z83: - | AA83: - | AB83: - | AC83: - | AD83: -
G84: > | H84: 596 | I84: < | J84: 3001 | K84: 1.544796296 | L84: 1.554775568 | M84: 1.642008065 | N84: 1.554775568 | O84: 1.642008065 | P84: 1.509077687 | Q84: 1.642419355 | R84: - | S84: - | T84: - | U84: - | V84: - | W84: - | X84: - | Y84: - | Z84: - | AA84: - | AB84: - | AC84: - | AD84: -
G85: > | H85: 596 | I85: > | J85: 3001 | K85: - | L85: - | M85: - | N85: 1.679522727 | O85: 1.773483871 | P85: - | Q85: - | R85: - | S85: - | T85: - | U85: - | V85: - | W85: - | X85: - | Y85: - | Z85: - | AA85: - | AB85: - | AC85: - | AD85: -
E86: 2 | F86: Фанера 18 | H86: 600 | J86: 1500 | R86: - | S86: - | T86: - | U86: - | V86: - | W86: - | X86: - | Y86: - | Z86: - | AA86: - | AB86: - | AC86: - | AD86: -
H87: 600 | J87: 3000 | K87: 1 | L87: 1 | M87: 1 | N87: 1 | O87: 1 | P87: 1 | Q87: 1 | R87: - | S87: - | T87: - | U87: - | V87: - | W87: - | X87: - | Y87: - | Z87: - | AA87: - | AB87: - | AC87: - | AD87: -
R88: - | S88: - | T88: - | U88: - | V88: - | W88: - | X88: - | Y88: - | Z88: - | AA88: - | AB88: - | AC88: - | AD88: -
R89: - | S89: - | T89: - | U89: - | V89: - | W89: - | X89: - | Y89: - | Z89: - | AA89: - | AB89: - | AC89: - | AD89: -
R90: - | S90: - | T90: - | U90: - | V90: - | W90: - | X90: - | Y90: - | Z90: - | AA90: - | AB90: - | AC90: - | AD90: -
G91: < | H91: 601 | I91: < | J91: 3001 | K91: 1.235175926 | L91: 1.243414773 | M91: 1.313798387 | N91: 1.243414773 | O91: 1.313798387 | P91: 1.207426986 | Q91: 1.314072581 | R91: - | S91: - | T91: - | U91: - | V91: - | W91: - | X91: - | Y91: - | Z91: - | AA91: - | AB91: - | AC91: - | AD91: -
G92: < | H92: 601 | I92: > | J92: 3000 | K92: - | L92: - | M92: - | N92: 1.243414773 | O92: 1.313798387 | P92: - | Q92: - | R92: - | S92: - | T92: - | U92: - | V92: - | W92: - | X92: - | Y92: - | Z92: - | AA92: - | AB92: - | AC92: - | AD92: -
G93: > | H93: 600 | I93: < | J93: 3001 | K93: 1.544796296 | L93: 1.554775568 | M93: 1.642008065 | N93: 1.554775568 | O93: 1.642008065 | P93: 1.509077687 | Q93: 1.642419355 | R93: - | S93: - | T93: - | U93: - | V93: - | W93: - | X93: - | Y93: - | Z93: - | AA93: - | AB93: - | AC93: - | AD93: -
G94: > | H94: 601 | I94: > | J94: 3000 | N94: 1.679522727 | O94: 1.773483871 | R94: - | S94: - | T94: - | U94: - | V94: - | W94: - | X94: - | Y94: - | Z94: - | AA94: - | AB94: - | AC94: - | AD94: -
E95: 2 | F95: Фанера 38 | H95: 600 | J95: 1500 | K95: - | L95: - | M95: - | N95: - | O95: - | P95: - | Q95: - | R95: - | S95: - | T95: - | U95: - | V95: - | W95: - | X95: - | Y95: - | Z95: - | AA95: - | AB95: - | AC95: - | AD95: -
H96: 600 | J96: 3000 | K96: 1 | L96: 1 | M96: 1 | N96: 1 | O96: 1 | P96: 1 | Q96: 1 | R96: - | S96: - | T96: - | U96: - | V96: - | W96: - | X96: - | Y96: - | Z96: - | AA96: - | AB96: - | AC96: - | AD96: -
H97: 600 | J97: 4150 | K97: - | L97: - | M97: - | N97: - | O97: - | P97: - | Q97: - | R97: - | S97: - | T97: - | U97: - | V97: - | W97: - | X97: - | Y97: - | Z97: - | AA97: - | AB97: - | AC97: - | AD97: -
H98: 1200 | J98: 3000 | K98: - | L98: - | M98: - | N98: - | O98: - | P98: - | Q98: - | R98: - | S98: - | T98: - | U98: - | V98: - | W98: - | X98: - | Y98: - | Z98: - | AA98: - | AB98: - | AC98: - | AD98: -
G99: < | H99: 1200 | I99: > | J99: 4150 | K99: - | L99: - | M99: - | N99: - | O99: - | P99: - | Q99: - | R99: - | S99: - | T99: - | U99: - | V99: - | W99: - | X99: - | Y99: - | Z99: - | AA99: - | AB99: - | AC99: - | AD99: -
G100: < | H100: 600 | I100: < | J100: 3000 | K100: 1.339383508 | L100: 1.355811244 | M100: 1.380064489 | N100: 1.355811244 | O100: 1.380064489 | P100: 1.380064489 | Q100: 1.380064489 | R100: - | S100: - | T100: - | U100: - | V100: - | W100: - | X100: - | Y100: - | Z100: - | AA100: - | AB100: - | AC100: - | AD100: -
G101: < | H101: 600 | I101: > | J101: 3000 | K101: - | L101: - | M101: - | N101: 1.355811244 | O101: 1.380064489 | P101: - | Q101: - | R101: - | S101: - | T101: - | U101: - | V101: - | W101: - | X101: - | Y101: - | Z101: - | AA101: - | AB101: - | AC101: - | AD101: -
G102: > | H102: 600 | I102: < | J102: 3000 | K102: 1.339383508 | L102: 1.355811244 | M102: 1.380064489 | N102: 1.355811244 | O102: 1.380064489 | P102: 1.380064489 | Q102: 1.380064489 | R102: - | S102: - | T102: - | U102: - | V102: - | W102: - | X102: - | Y102: - | Z102: - | AA102: - | AB102: - | AC102: - | AD102: -
G103: > | H103: 1201 | I103: < | J103: 4150 | K103: - | L103: - | M103: - | N103: - | O103: - | P103: - | Q103: - | R103: - | S103: - | T103: - | U103: - | V103: - | W103: - | X103: - | Y103: - | Z103: - | AA103: - | AB103: - | AC103: - | AD103: -
A104: 2 | D104: Столешница | E104: 2 | F104: ДСП 26 | R104: - | S104: - | T104: - | U104: - | V104: - | W104: - | X104: - | Y104: - | Z104: - | AA104: - | AB104: - | AC104: - | AD104: -
H105: 550 | J105: 3000 | K105: 1 | L105: 1 | M105: 1 | N105: 1 | O105: 1 | P105: 1 | Q105: 1 | R105: - | S105: - | T105: - | U105: - | V105: - | W105: - | X105: - | Y105: - | Z105: - | AA105: - | AB105: - | AC105: - | AD105: -
G106: < | H106: 551 | I106: < | J106: 3001 | K106: 1.244470046 | L106: 1.210958445 | M106: 1.202710843 | N106: 1.210958445 | O106: 1.202710843 | P106: 1.203125 | Q106: 1.202710843 | R106: - | S106: - | T106: - | U106: - | V106: - | W106: - | X106: - | Y106: - | Z106: - | AA106: - | AB106: - | AC106: - | AD106: -
G107: < | H107: 551 | I107: > | J107: 3001 | K107: - | L107: - | M107: - | N107: - | O107: - | P107: - | Q107: - | R107: - | S107: - | T107: - | U107: - | V107: - | W107: - | X107: - | Y107: - | Z107: - | AA107: - | AB107: - | AC107: - | AD107: -
G108: > | H108: 551 | I108: < | J108: 3001 | K108: 1.556221198 | L108: 1.512868633 | M108: 1.503885542 | N108: 1.512868633 | O108: 1.503885542 | P108: 1.504138514 | Q108: 1.503743546 | R108: - | S108: - | T108: - | U108: - | V108: - | W108: - | X108: - | Y108: - | Z108: - | AA108: - | AB108: - | AC108: - | AD108: -
G109: > | H109: 551 | I109: > | J109: 3001 | K109: - | L109: - | M109: - | N109: - | O109: - | P109: - | Q109: - | R109: - | S109: - | T109: - | U109: - | V109: - | W109: - | X109: - | Y109: - | Z109: - | AA109: - | AB109: - | AC109: - | AD109: -
E110: 2 | F110: ДСП 38 влаг. | R110: - | S110: - | T110: - | U110: - | V110: - | W110: - | X110: - | Y110: - | Z110: - | AA110: - | AB110: - | AC110: - | AD110: -
H111: 550 | J111: 3000 | K111: 1 | L111: 1 | M111: 1 | N111: 1 | O111: 1 | P111: 1 | Q111: 1 | R111: - | S111: - | T111: - | U111: - | V111: - | W111: - | X111: - | Y111: - | Z111: - | AA111: - | AB111: - | AC111: - | AD111: -
K112: - | L112: - | M112: - | N112: - | O112: - | P112: - | Q112: - | R112: - | S112: - | T112: - | U112: - | V112: - | W112: - | X112: - | Y112: - | Z112: - | AA112: - | AB112: - | AC112: - | AD112: -
G113: < | H113: 551 | I113: < | J113: 3001 | K113: 1.236540698 | L113: 1.229135539 | M113: 1.233182683 | N113: 1.229135539 | O113: 1.233182683 | P113: 1.232733333 | Q113: 1.233016304 | R113: - | S113: - | T113: - | U113: - | V113: - | W113: - | X113: - | Y113: - | Z113: - | AA113: - | AB113: - | AC113: - | AD113: -
G114: < | H114: 551 | I114: > | J114: 3001 | K114: - | L114: - | M114: - | N114: 1.414034152 | O114: 1.419219791 | P114: - | Q114: - | R114: - | S114: - | T114: - | U114: - | V114: - | W114: - | X114: - | Y114: - | Z114: - | AA114: - | AB114: - | AC114: - | AD114: -
G115: > | H115: 551 | I115: < | J115: 3001 | K115: 1.546395349 | L115: 1.537299893 | M115: 1.541674596 | N115: 1.537299893 | O115: 1.541674596 | P115: 1.541466667 | Q115: 1.54127038 | R115: - | S115: - | T115: - | U115: - | V115: - | W115: - | X115: - | Y115: - | Z115: - | AA115: - | AB115: - | AC115: - | AD115: -
G116: > | H116: 551 | I116: > | J116: 3001 | K116: - | L116: - | M116: - | N116: 1.660565635 | O116: 1.665699334 | P116: - | Q116: - | R116: - | S116: - | T116: - | U116: - | V116: - | W116: - | X116: - | Y116: - | Z116: - | AA116: - | AB116: - | AC116: - | AD116: -
E117: 2 | F117: Фанера 18 | H117: 500 | J117: 1500
H118: 500 | J118: 3000
H119: 600 | J119: 3000
G120: < | H120: 501 | I120: < | J120: 3001 | K120: 1.007946172 | L120: 1.074292988 | M120: 1.098 | N120: 1.074292988 | O120: 1.098 | P120: 1.098 | Q120: 1.098
G121: > | H121: 501 | I121: > | J121: 3001 | K121: - | L121: - | M121: - | N121: 1.074292988 | O121: 1.098 | P121: - | Q121: -
G122: > | H122: 501 | I122: < | J122: 3001 | K122: 1.007946172 | L122: 1.074292988 | M122: 1.098 | N122: 1.074292988 | O122: 1.098 | P122: 1.098 | Q122: 1.098
G123: > | H123: 501 | I123: > | J123: 3001 | K123: - | L123: - | M123: - | N123: 1.074292988 | O123: 1.098 | P123: - | Q123: -
E124: 2 | F124: Фанера 38 | H124: 500 | J124: 1500 | K124: - | L124: - | M124: - | N124: - | O124: - | P124: - | Q124: - | R124: - | S124: - | T124: - | U124: - | V124: - | W124: - | X124: - | Y124: - | Z124: - | AA124: - | AB124: - | AC124: - | AD124: -
H125: 500 | J125: 3000 | K125: - | L125: - | M125: - | N125: - | O125: - | P125: - | Q125: - | R125: - | S125: - | T125: - | U125: - | V125: - | W125: - | X125: - | Y125: - | Z125: - | AA125: - | AB125: - | AC125: - | AD125: -
H126: 600 | J126: 3000 | K126: 1 | L126: 1 | M126: 1 | N126: 1 | O126: 1 | P126: 1 | Q126: 1 | R126: - | S126: - | T126: - | U126: - | V126: - | W126: - | X126: - | Y126: - | Z126: - | AA126: - | AB126: - | AC126: - | AD126: -
G127: < | H127: 501 | I127: < | J127: 3001 | K127: 1.339383508 | L127: 1.355811244 | M127: 1.380064489 | N127: 1.355811244 | O127: 1.380064489 | P127: 1.380064489 | Q127: 1.380064489 | R127: - | S127: - | T127: - | U127: - | V127: - | W127: - | X127: - | Y127: - | Z127: - | AA127: - | AB127: - | AC127: - | AD127: -
G128: > | H128: 501 | I128: > | J128: 3001 | K128: - | L128: - | M128: - | N128: 1.355811244 | O128: 1.380064489 | P128: - | Q128: - | R128: - | S128: - | T128: - | U128: - | V128: - | W128: - | X128: - | Y128: - | Z128: - | AA128: - | AB128: - | AC128: - | AD128: -
G129: > | H129: 501 | I129: < | J129: 3001 | K129: 1.339383508 | L129: 1.355811244 | M129: 1.380064489 | N129: 1.355811244 | O129: 1.380064489 | P129: 1.380064489 | Q129: 1.380064489 | R129: - | S129: - | T129: - | U129: - | V129: - | W129: - | X129: - | Y129: - | Z129: - | AA129: - | AB129: - | AC129: - | AD129: -
G130: > | H130: 501 | I130: > | J130: 3001 | K130: - | L130: - | M130: - | N130: 1.355811244 | O130: 1.380064489 | P130: - | Q130: - | R130: - | S130: - | T130: - | U130: - | V130: - | W130: - | X130: - | Y130: - | Z130: - | AA130: - | AB130: - | AC130: - | AD130: -
A131: 1 | D131: Угловой сегмент | E131: 2 | F131: ДСП 26 | H131: 900 | J131: 900 | K131: 1 | L131: 1 | M131: 1 | N131: 1 | O131: 1 | P131: 1 | Q131: 1 | R131: - | S131: - | T131: - | U131: - | V131: - | W131: - | X131: - | Y131: - | Z131: - | AA131: - | AB131: - | AC131: - | AD131: -
H132: 850 | J132: 850 | K132: 1 | L132: 1 | M132: 1 | N132: 1 | O132: 1 | P132: 1 | Q132: 1 | R132: - | S132: - | T132: - | U132: - | V132: - | W132: - | X132: - | Y132: - | Z132: - | AA132: - | AB132: - | AC132: - | AD132: -
G133: < | H133: 1300 | I133: < | J133: 3000 | K133: 1.315555556 | L133: 1.284313725 | M133: 1.246551724 | N133: 1.284313725 | O133: 1.246551724 | P133: 1.246376812 | Q133: 1.246921182 | R133: - | S133: - | T133: - | U133: - | V133: - | W133: - | X133: - | Y133: - | Z133: - | AA133: - | AB133: - | AC133: - | AD133: -
E134: 2 | F134: ДСП 38 влаг. | H134: 900 | J134: 900 | K134: 1 | L134: 1 | M134: 1 | N134: 1 | O134: 1 | P134: 1 | Q134: 1 | R134: - | S134: - | T134: - | U134: - | V134: - | W134: - | X134: - | Y134: - | Z134: - | AA134: - | AB134: - | AC134: - | AD134: -
H135: 850 | J135: 850 | K135: 1 | L135: 1 | M135: 1 | N135: 1 | O135: 1 | P135: 1 | Q135: 1 | R135: - | S135: - | T135: - | U135: - | V135: - | W135: - | X135: - | Y135: - | Z135: - | AA135: - | AB135: - | AC135: - | AD135: -
G136: < | H136: 1300 | I136: < | J136: 3000 | K136: 1.269642857 | L136: 1.274193548 | M136: 1.241428571 | N136: 1.274193548 | O136: 1.241428571 | P136: 1.241655541 | Q136: 1.241836735 | R136: - | S136: - | T136: - | U136: - | V136: - | W136: - | X136: - | Y136: - | Z136: - | AA136: - | AB136: - | AC136: - | AD136: -
E137: 2 | F137: ДСП 26 | H137: 900 | J137: 900 | K137: 1 | L137: 1 | M137: 1 | N137: 1 | O137: 1 | P137: 1 | Q137: 1 | R137: - | S137: - | T137: - | U137: - | V137: - | W137: - | X137: - | Y137: - | Z137: - | AA137: - | AB137: - | AC137: - | AD137: -
H138: 850 | J138: 850 | K138: 1 | L138: 1 | M138: 1 | N138: 1 | O138: 1 | P138: 1 | Q138: 1 | R138: - | S138: - | T138: - | U138: - | V138: - | W138: - | X138: - | Y138: - | Z138: - | AA138: - | AB138: - | AC138: - | AD138: -
G139: < | H139: 1300 | I139: < | J139: 3000 | K139: 1.315555556 | L139: 1.284313725 | M139: 1.246551724 | N139: 1.284313725 | O139: 1.246551724 | P139: 1.246376812 | Q139: 1.246921182 | R139: - | S139: - | T139: - | U139: - | V139: - | W139: - | X139: - | Y139: - | Z139: - | AA139: - | AB139: - | AC139: - | AD139: -
E140: 2 | F140: ДСП 38 влаг. | H140: 900 | J140: 900 | K140: 1 | L140: 1 | M140: 1 | N140: 1 | O140: 1 | P140: 1 | Q140: 1 | R140: - | S140: - | T140: - | U140: - | V140: - | W140: - | X140: - | Y140: - | Z140: - | AA140: - | AB140: - | AC140: - | AD140: -
H141: 850 | J141: 850 | K141: 1 | L141: 1 | M141: 1 | N141: 1 | O141: 1 | P141: 1 | Q141: 1 | R141: - | S141: - | T141: - | U141: - | V141: - | W141: - | X141: - | Y141: - | Z141: - | AA141: - | AB141: - | AC141: - | AD141: -
G142: < | H142: 1300 | I142: < | J142: 3000 | K142: 1.269642857 | L142: 1.274193548 | M142: 1.241428571 | N142: 1.274193548 | O142: 1.241428571 | P142: 1.241655541 | Q142: 1.241836735 | R142: - | S142: - | T142: - | U142: - | V142: - | W142: - | X142: - | Y142: - | Z142: - | AA142: - | AB142: - | AC142: - | AD142: -
A144: 1 | D144: Карниз | E144: 2 | F144: ДСП 16 | G144: < | H144: 1201 | I144: < | J144: 3001 | K144: 1 | L144: 1 | M144: 1 | N144: 1 | O144: 1 | P144: 1 | Q144: 1 | R144: - | S144: - | T144: 1 | U144: - | V144: - | W144: - | X144: - | Y144: - | Z144: - | AA144: 1 | AB144: 1 | AC144: 1 | AD144: -
G145: > | H145: 1200 | I145: < | J145: 3000 | K145: - | L145: - | M145: - | N145: - | O145: - | P145: - | Q145: - | R145: - | S145: - | T145: - | U145: - | V145: - | W145: - | X145: - | Y145: - | Z145: - | AA145: - | AB145: - | AC145: - | AD145: -
G146: < | H146: 1200 | I146: > | J146: 3000 | K146: - | L146: - | M146: - | N146: - | O146: - | P146: - | Q146: - | R146: - | S146: - | T146: - | U146: - | V146: - | W146: - | X146: - | Y146: - | Z146: - | AA146: - | AB146: - | AC146: - | AD146: -
E147: 2 | F147: Фанера 18 | G147: < | H147: 1201 | I147: < | J147: 3001
G148: > | H148: 1200 | I148: < | J148: 3000
G149: < | H149: 1200 | I149: > | J149: 3000
E150: 2 | F150: МДФ 16 | G150: < | H150: 1301 | I150: < | J150: 2801 | K150: 1 | L150: 1 | M150: 1 | N150: 1 | O150: 1 | P150: 1 | Q150: 1 | R150: - | S150: - | T150: 1 | U150: - | V150: - | W150: - | X150: - | Y150: - | Z150: - | AA150: 1 | AB150: 1 | AC150: 1 | AD150: -
G151: > | H151: 1200 | I151: < | J151: 2800 | K151: - | L151: - | M151: - | N151: - | O151: - | P151: - | Q151: - | R151: - | S151: - | T151: - | U151: - | V151: - | W151: - | X151: - | Y151: - | Z151: - | AA151: - | AB151: - | AC151: - | AD151: -
G152: < | H152: 1200 | I152: > | J152: 2800 | K152: - | L152: - | M152: - | N152: - | O152: - | P152: - | Q152: - | R152: - | S152: - | T152: - | U152: - | V152: - | W152: - | X152: - | Y152: - | Z152: - | AA152: - | AB152: - | AC152: - | AD152: -
A153: 1 | D153: Фасад | E153: 2 | F153: ДСП 16 | G153: < | H153: 1201 | I153: < | J153: 3001 | K153: 1 | L153: 1 | M153: 1 | N153: 1 | O153: 1 | P153: 1 | Q153: 1 | R153: - | S153: - | T153: 1 | U153: - | V153: - | W153: - | X153: - | Y153: - | Z153: - | AA153: 1 | AB153: 1 | AC153: 1 | AD153: -
G154: > | H154: 1200 | I154: < | J154: 3000 | K154: - | L154: - | M154: - | N154: - | O154: - | P154: - | Q154: - | R154: - | S154: - | T154: - | U154: - | V154: - | W154: - | X154: - | Y154: - | Z154: - | AA154: - | AB154: - | AC154: - | AD154: -
G155: < | H155: 1200 | I155: > | J155: 3000 | K155: - | L155: - | M155: - | N155: - | O155: - | P155: - | Q155: - | R155: - | S155: - | T155: - | U155: - | V155: - | W155: - | X155: - | Y155: - | Z155: - | AA155: - | AB155: - | AC155: - | AD155: -
E156: 2 | F156: Фанера 18 | G156: < | H156: 1201 | I156: < | J156: 3001
G157: > | H157: 1200 | I157: < | J157: 3000
G158: < | H158: 1200 | I158: > | J158: 3000
E159: 2 | F159: МДФ 16 | G159: < | H159: 1301 | I159: < | J159: 2801 | K159: 1 | L159: 1 | M159: 1 | N159: 1 | O159: 1 | P159: 1 | Q159: 1 | R159: - | S159: - | T159: 1 | U159: - | V159: - | W159: - | X159: - | Y159: - | Z159: - | AA159: 1 | AB159: 1 | AC159: 1 | AD159: -
G160: > | H160: 1200 | I160: < | J160: 2800 | K160: - | L160: - | M160: - | N160: - | O160: - | P160: - | Q160: - | R160: - | S160: - | T160: - | U160: - | V160: - | W160: - | X160: - | Y160: - | Z160: - | AA160: - | AB160: - | AC160: - | AD160: -
G161: < | H161: 1200 | I161: > | J161: 2800 | K161: - | L161: - | M161: - | N161: - | O161: - | P161: - | Q161: - | R161: - | S161: - | T161: - | U161: - | V161: - | W161: - | X161: - | Y161: - | Z161: - | AA161: - | AB161: - | AC161: - | AD161: -
A162: 1 | D162: Экофасад | E162: 2 | F162: МДФ 16 | G162: < | H162: 1301 | I162: < | J162: 2801 | K162: - | L162: - | M162: - | N162: - | O162: - | R162: 1 | S162: 1 | T162: - | U162: - | V162: - | W162: - | X162: - | Y162: - | Z162: - | AA162: - | AB162: 1 | AC162: 1 | AD162: -
G163: > | H163: 1200 | I163: < | J163: 2800 | K163: - | L163: - | M163: - | N163: - | O163: - | R163: - | S163: - | T163: - | U163: - | V163: - | W163: - | X163: - | Y163: - | Z163: - | AA163: - | AB163: - | AC163: - | AD163: -
G164: < | H164: 1200 | I164: > | J164: 2800 | K164: - | L164: - | M164: - | N164: - | O164: - | R164: - | S164: - | T164: - | U164: - | V164: - | W164: - | X164: - | Y164: - | Z164: - | AA164: - | AB164: - | AC164: - | AD164: -
A178: 1 | D178: Панель Акрил | E178: 2 | F178: МДФ 18 | G178: < | H178: 1201 | I178: < | J178: 2801 | K178: - | L178: - | M178: - | N178: - | O178: - | R178: - | S178: - | T178: - | U178: 1 | V178: 1 | W178: 1 | X178: - | Y178: - | Z178: - | AA178: - | AB178: - | AC178: - | AD178: -
G179: > | H179: 1200 | I179: < | J179: 2800 | K179: - | L179: - | M179: - | N179: - | O179: - | R179: - | S179: - | T179: - | U179: - | V179: - | W179: - | X179: - | Y179: - | Z179: - | AA179: - | AB179: - | AC179: - | AD179: -
G180: < | H180: 1200 | I180: > | J180: 2800 | K180: - | L180: - | M180: - | N180: - | O180: - | R180: - | S180: - | T180: - | U180: - | V180: - | W180: - | X180: - | Y180: - | Z180: - | AA180: - | AB180: - | AC180: - | AD180: -
A181: 1 | D181: Панель CLEAF | E181: 2 | F181: ДСП 18 | G181: < | H181: 2001 | I181: < | J181: 2801 | K181: - | L181: - | M181: - | N181: - | O181: - | R181: - | S181: - | T181: - | U181: - | V181: - | W181: - | X181: 1 | Y181: 1 | Z181: 1 | AA181: - | AB181: - | AC181: - | AD181: -
A182: 1 | D182: Экофасад CLEAF | E182: 2 | F182: ДСП 18 | G182: < | H182: 2001 | I182: < | J182: 2801 | K182: - | L182: - | M182: - | N182: - | O182: - | R182: - | S182: - | T182: - | U182: - | V182: - | W182: - | X182: 1 | Y182: 1 | Z182: 1 | AA182: - | AB182: - | AC182: - | AD182: -
G183: < | H183: 2000 | I183: > | J183: 2800 | K183: - | L183: - | M183: - | N183: - | O183: - | R183: - | S183: - | T183: - | U183: - | V183: - | W183: - | X183: - | Y183: - | Z183: - | AA183: - | AB183: - | AC183: - | AD183: -
A193: 1 | D193: Рамка под стекло | E193: 2 | F193: -
F194: -
F195: -
F196: -
F197: -
F198: -
F199: -
F200: -
F201: -
F202: -
F203: -
F204: -
F205: -
F206: -
A207: 1 | D207: Отбортовка | E207: 2 | F207: - | G207: > | H207: 1 | I207: < | J207: 4200 | K207: 1 | L207: 1 | M207: 1 | N207: 1 | O207: 1 | R207: 1 | S207: 1 | T207: 1 | U207: - | V207: - | W207: - | X207: - | Y207: - | Z207: - | AA207: - | AB207: - | AC207: - | AD207: -
A208: 1 | D208: Кромка пластик | E208: 2 | F208: - | H208: 45 | J208: 3000 | K208: 1 | L208: 1 | M208: 1 | N208: 1 | O208: 1 | R208: 1 | S208: 1 | T208: 1 | U208: - | V208: - | W208: - | X208: - | Y208: - | Z208: - | AA208: - | AB208: - | AC208: - | AD208: -
F209: - | H209: 15 | J209: 3000 | K209: 1 | L209: 1 | M209: 1 | N209: 1 | O209: 1
F210: - | H210: 23 | J210: 3000 | K210: 1 | L210: 1 | M210: 1 | N210: 1 | O210: 1
A219: д | D219: Только длина | G219: Длина | U219: - | V219: - | W219: - | X219: - | Y219: - | Z219: - | AA219: - | AB219: - | AC219: - | AD219: -
A220: 1 | D220: Радиусный фасад | E220: 2 | F220: МДФ 16 | G220: > | H220: 0 | I220: < | J220: 901 | K220: - | L220: - | M220: - | N220: - | O220: - | R220: - | S220: - | T220: - | AA220: -
G221: > | H221: 900 | I221: < | J221: 1201 | K221: - | L221: - | M221: - | N221: - | O221: - | R221: - | S221: - | T221: - | U221: - | V221: - | W221: - | X221: - | Y221: - | Z221: - | AA221: - | AB221: - | AC221: - | AD221: -
G222: > | H222: 1200 | I222: < | J222: 1501 | K222: - | L222: - | M222: - | N222: - | O222: - | R222: - | S222: - | T222: - | AA222: -
G223: > | H223: 1500 | I223: < | J223: 1801 | K223: - | L223: - | M223: - | N223: - | O223: - | R223: - | S223: - | T223: - | U223: - | V223: - | W223: - | X223: - | Y223: - | Z223: - | AA223: - | AB223: - | AC223: - | AD223: -
G224: > | H224: 1800 | K224: - | L224: - | M224: - | N224: - | O224: -
K225: - | L225: - | M225: - | N225: - | O225: - | R225: - | S225: - | T225: - | U225: - | V225: - | W225: - | X225: - | Y225: - | Z225: - | AA225: - | AB225: - | AC225: - | AD225: -
A226: д | D226: Плита заказчика | E226: 2 | F226: - | K226: - | L226: - | M226: - | N226: - | O226: - | R226: - | S226: - | T226: - | U226: - | V226: - | W226: - | X226: - | Y226: - | Z226: - | AA226: - | AB226: - | AC226: - | AD226: -
F227: -

Sheet доп_работы (hidden)
D1: Изделие | F1: Описание | G1: Стандартный размер | H1: Материал | M1: Кромление Пластик, цена за м.п. | N1: Кромление ПВХ цена за м.п. | O1: Кромление 3D цена за м.п. | P1: Кромление технической кромкой с учетом кромки цена за м.п. | R1: Наращивае плиты по краю цена за 1 м.п. | S1: Деталировка цена за 1 ед. | T1: Еврозапил цена за 1 ед. | U1: Вырез под мойку цена за 1 ед. | V1: Вырез под варочную панель цена за 1 ед. | W1: Изготовление шаблона цена за 1 ед. | X1: Сложная фрезеровка по шаблону цена за 1 ед. | Y1: Спил цена за 1 ед. | Z1: Присадка под петли цена за 1 ед. | AA1: Запил под 45 град. цена за 1 ед. | AB1: Выборка под стекло | AC1: Присадка под стяжки цена за 1 ед. | AE1: Вырез под стекло с обработкой кромкий цена за 1 ед. | AF1: Вырез под стекло с обработкой ал. профля цена за 1 ед. | AG1: Обработка фасадов в алюм. Профиль цена за 1 ед. | AH1: Сборка фасадов с алюм. профиля цена за 1 ед. | AI1: Паз под ручку цена за 1 ед. | AJ1: Установка ручки цена за 1 ед. | AL1: Фрезеровка цена за 1 ед. | AM1: Фрезеровка цена за 1 ед. | AN1: Фрезеровка цена за 1 ед. | AO1: Фрезеровка цена за 1 ед. | AP1: Кромление Криволинейное Пластик цена за м.п. | AQ1: Кромление Криволинейное ПВХ цена за м.п. | AR1: Кромление Криволинейное 3D цена за м.п. | AT1: Склейка
I3: кат. | K3: коэф | M3: Кромка Пластик | N3: Кромка ПВХ | O3: Кромка 3D | AL3: R ≤ 70 | AM3: 70 > R ≤ 200 | AN3: 200 > R ≤ 500 | AO3: R > 500 | AP3: Кромление Криволинейное Кромка Пластик | AQ3: Кромление Криволинейное Кромка ПВХ | AR3: Кромление Криволинейное Кромка 3D
A4: 1 | D4: Панель | F4: без скруглений | H4: ДСП 26 | M4: 218 | N4: 218 | O4: 218 | P4: 145 | R4: 400 | S4: 70 | T4: 2400 | U4: 920 | V4: 920 | W4: 970 | X4: 2625 | Y4: 145 | Z4: - | AA4: 300 | AB4: - | AC4: 145 | AE4: - | AF4: - | AG4: - | AH4: - | AI4: - | AJ4: - | AL4: 145 | AM4: 218 | AN4: 360 | AO4: 500 | AP4: 360 | AQ4: 360 | AR4: 360 | AT4: 1000
H7: ДСП 38 влаг. | M7: 218 | N7: 218 | O7: 218 | P7: 145 | R7: 400 | S7: 110 | T7: 2400 | U7: 920 | V7: 920 | W7: 970 | X7: 2625 | Y7: 145 | Z7: - | AA7: 300 | AB7: - | AC7: 145 | AE7: - | AF7: - | AG7: - | AH7: - | AI7: - | AJ7: - | AL7: 145 | AM7: 218 | AN7: 360 | AO7: 500 | AP7: 360 | AQ7: 360 | AR7: 360 | AT7: 1000
S8: 182
H10: Фанера 18 | M10: 0 | N10: 0 | O10: 0 | P10: 0 | R10: 400 | S10: 0 | T10: 2400 | U10: 920 | V10: 920 | W10: 840 | X10: 2625 | Y10: 125 | Z10: 63 | AA10: 125 | AB10: 250 | AC10: 145 | AE10: - | AF10: - | AG10: - | AH10: - | AI10: 300 | AJ10: 55 | AL10: 125 | AM10: 188 | AN10: 313 | AO10: 436 | AP10: 313 | AQ10: 313 | AR10: 313 | AT10: 1400
H11: Фанера 38 | M11: 0 | N11: 0 | O11: 0 | P11: 0 | R11: 400 | S11: 0 | T11: 2400 | U11: 920 | V11: 920 | W11: 970 | X11: 2625 | Y11: 145 | Z11: - | AA11: 300 | AB11: - | AC11: 145 | AE11: - | AF11: - | AG11: - | AH11: - | AI11: - | AJ11: - | AL11: 145 | AM11: 218 | AN11: 360 | AO11: 500 | AP11: 360 | AQ11: 360 | AR11: 360 | AT11: 1400
G12: любой размер | H12: ДСП 16 | M12: 63 | N12: 63 | O12: 188 | P12: 63 | R12: - | S12: 56 | T12: - | U12: - | V12: - | W12: 840 | X12: 2625 | Y12: 125 | Z12: 63 | AA12: 125 | AB12: 250 | AC12: - | AE12: 950 | AF12: 950 | AG12: 300 | AH12: - | AI12: 125 | AJ12: 55 | AL12: 125 | AM12: 188 | AN12: 313 | AO12: 436 | AP12: 313 | AQ12: 313 | AR12: 313 | AT12: 1000
H13: МДФ 16 | M13: 63 | N13: 63 | O13: 188 | P13: 63 | R13: 400 | S13: 56 | T13: - | U13: - | V13: - | W13: 840 | X13: 2625 | Y13: 125 | Z13: 63 | AA13: 125 | AB13: 250 | AC13: - | AE13: 950 | AF13: 950 | AG13: 300 | AH13: - | AI13: 125 | AJ13: 55 | AL13: 125 | AM13: 188 | AN13: 313 | AO13: 436 | AP13: 313 | AQ13: 313 | AR13: 313 | AT13: 1000
H14: ДСП/ДВП 4/6 | M14: 188 | N14: 63 | O14: - | P14: 63 | R14: 400 | S14: 56 | T14: - | U14: - | V14: - | W14: 840 | X14: 2625 | Y14: 125 | Z14: - | AA14: 125 | AB14: - | AC14: - | AE14: - | AF14: - | AG14: - | AH14: - | AI14: - | AJ14: - | AL14: 125 | AM14: 188 | AN14: 313 | AO14: 436 | AP14: 313 | AQ14: 313 | AR14: 313 | AT14: 1000
S15: 47
H17: ДСП 8 | M17: 188 | N17: 63 | O17: - | P17: 63 | R17: - | S17: 47 | T17: - | U17: - | V17: - | W17: 840 | X17: 2625 | Y17: 125 | Z17: - | AA17: - | AB17: - | AC17: - | AE17: - | AF17: - | AG17: - | AH17: - | AI17: - | AJ17: - | AL17: 125 | AM17: 188 | AN17: 313 | AO17: 436 | AP17: 313 | AQ17: 313 | AR17: 313 | AT17: 1000
S18: 158
A20: 1 | D20: Экопанель | F20: без скруглений | G20: любой размер | H20: ДСП 16 | M20: 0 | N20: 0 | O20: 188 | P20: - | R20: - | S20: 0 | T20: - | U20: - | V20: - | W20: 840 | X20: 2625 | Y20: 125 | Z20: 63 | AA20: 125 | AB20: 250 | AC20: - | AE20: 950 | AF20: 950 | AG20: 300 | AH20: - | AI20: 125 | AJ20: 55 | AL20: 125 | AM20: 188 | AN20: 313 | AO20: 436 | AP20: 313 | AQ20: 313 | AR20: 313 | AT20: 1000
H23: МДФ 16 | M23: 0 | N23: 0 | O23: 188 | P23: - | R23: - | S23: 0 | T23: - | U23: - | V23: - | W23: 840 | X23: 2625 | Y23: 125 | Z23: 63 | AA23: 125 | AB23: 250 | AC23: - | AE23: 950 | AF23: 950 | AG23: 300 | AH23: - | AI23: 125 | AJ23: 55 | AL23: 125 | AM23: 188 | AN23: 313 | AO23: 436 | AP23: 313 | AQ23: 313 | AR23: 313 | AT23: 1000
A26: 1 | D26: Столешница | F26: 1 скругл. 180 град. | H26: ДСП 26 | M26: 218 | N26: 218 | O26: 218 | P26: 145 | R26: - | S26: 70 | T26: 2400 | U26: 920 | V26: 920 | W26: 970 | X26: 2625 | Y26: 145 | Z26: - | AA26: 300 | AB26: - | AC26: 145 | AE26: - | AF26: - | AG26: - | AH26: - | AI26: - | AJ26: - | AL26: 145 | AM26: 218 | AN26: 360 | AO26: 500 | AP26: 360 | AQ26: 360 | AR26: 360 | AT26: 1000
H27: ДСП 38 влаг. | M27: 218 | N27: 218 | O27: 218 | P27: 145 | R27: - | S27: 110 | T27: 2400 | U27: 920 | V27: 920 | W27: 970 | X27: 2625 | Y27: 145 | Z27: - | AA27: 300 | AB27: - | AC27: 145 | AE27: - | AF27: - | AG27: - | AH27: - | AI27: - | AJ27: - | AL27: 145 | AM27: 218 | AN27: 360 | AO27: 500 | AP27: 360 | AQ27: 360 | AR27: 360 | AT27: 1000
M28: 218 | N28: 218 | O28: 218 | P28: 145 | R28: - | S28: 182 | T28: 2400 | U28: 920 | V28: 920 | W28: 970 | X28: 2625 | Y28: 145 | Z28: - | AA28: 300 | AB28: - | AC28: 145 | AE28: - | AF28: - | AG28: - | AH28: - | AI28: - | AJ28: - | AL28: 145 | AM28: 218 | AN28: 360 | AO28: 500 | AP28: 360 | AQ28: 360 | AR28: 360 | AT28: 1000
H29: Фанера 18 | M29: 0 | N29: 0 | O29: 0 | P29: 0 | R29: 400 | S29: 0 | T29: 2400 | U29: 920 | V29: 920 | W29: 970 | X29: 2625 | Y29: 125 | Z29: - | AA29: 125 | AB29: - | AC29: 145 | AL29: 125 | AM29: 188 | AN29: 313 | AO29: 436 | AP29: 313 | AQ29: 313 | AR29: 313 | AT29: 1400
H30: Фанера 38 | M30: 0 | N30: 0 | O30: 0 | P30: 0 | R30: 400 | S30: 0 | T30: 2400 | U30: 920 | V30: 920 | W30: 970 | X30: 2625 | Y30: 145 | Z30: - | AA30: 300 | AB30: - | AC30: 145 | AE30: - | AF30: - | AG30: - | AH30: - | AI30: - | AJ30: - | AL30: 145 | AM30: 218 | AN30: 360 | AO30: 500 | AP30: 360 | AQ30: 360 | AR30: 360 | AT30: 1400
A31: 1 | D31: Столешница | F31: 2 скругл. 180 град. | H31: ДСП 26 | M31: 218 | N31: 218 | O31: 218 | P31: 145 | R31: - | S31: 70 | T31: 2400 | U31: 920 | V31: 920 | W31: 970 | X31: 2625 | Y31: 145 | Z31: - | AA31: 300 | AB31: - | AC31: 145 | AE31: - | AF31: - | AG31: - | AH31: - | AI31: - | AJ31: - | AL31: 125 | AM31: 188 | AN31: 313 | AO31: 436 | AP31: 313 | AQ31: 313 | AR31: 313 | AT31: 1000
H32: ДСП 38 влаг. | M32: 218 | N32: 218 | O32: 218 | P32: 145 | R32: - | S32: 110 | T32: 2400 | U32: 920 | V32: 920 | W32: 970 | X32: 2625 | Y32: 145 | Z32: - | AA32: 300 | AB32: - | AC32: 145 | AE32: - | AF32: - | AG32: - | AH32: - | AI32: - | AJ32: - | AL32: 125 | AM32: 188 | AN32: 313 | AO32: 436 | AP32: 313 | AQ32: 313 | AR32: 313 | AT32: 1000
M33: 218 | N33: 218 | O33: 218 | P33: 145 | R33: - | S33: 182 | T33: 2400 | U33: 920 | V33: 920 | W33: 970 | X33: 2625 | Y33: 145 | Z33: - | AA33: 300 | AB33: - | AC33: 145 | AE33: - | AF33: - | AG33: - | AH33: - | AI33: - | AJ33: - | AL33: 145 | AM33: 218 | AN33: 360 | AO33: 500 | AP33: 360 | AQ33: 360 | AR33: 360 | AT33: 1000
H34: Фанера 18 | M34: 0 | N34: 0 | O34: 0 | P34: 0 | R34: 400 | S34: 0 | T34: 2400 | U34: 920 | V34: 920 | W34: 970 | X34: 2625 | Y34: 125 | Z34: - | AA34: 125 | AB34: - | AC34: 145 | AL34: 125 | AM34: 188 | AN34: 313 | AO34: 436 | AP34: 313 | AQ34: 313 | AR34: 313 | AT34: 1400
H35: Фанера 38 | M35: 0 | N35: 0 | O35: 0 | P35: 0 | R35: 400 | S35: 0 | T35: 2400 | U35: 920 | V35: 920 | W35: 970 | X35: 2625 | Y35: 145 | Z35: - | AA35: 300 | AB35: - | AC35: 145 | AE35: - | AF35: - | AG35: - | AH35: - | AI35: - | AJ35: - | AL35: 145 | AM35: 218 | AN35: 360 | AO35: 500 | AP35: 360 | AQ35: 360 | AR35: 360 | AT35: 1400
A36: 1 | D36: Угловой сегмент | F36: 1 скругл. 180 град. | H36: ДСП 26 | M36: 218 | N36: 218 | O36: 218 | P36: 145 | R36: - | S36: 182 | T36: - | U36: 920 | V36: 920 | W36: 970 | X36: 2625 | Y36: 145 | Z36: - | AA36: 300 | AB36: - | AC36: 145 | AE36: - | AF36: - | AG36: - | AH36: - | AI36: - | AJ36: - | AL36: 145 | AM36: 218 | AN36: 360 | AO36: 500 | AP36: 360 | AQ36: 360 | AR36: 360 | AT36: 1000
H37: ДСП 38 влаг. | M37: 218 | N37: 218 | O37: 218 | P37: 145 | R37: - | S37: 182 | T37: - | U37: 920 | V37: 920 | W37: 970 | X37: 2625 | Y37: 145 | Z37: - | AA37: 300 | AB37: - | AC37: 145 | AE37: - | AF37: - | AG37: - | AH37: - | AI37: - | AJ37: - | AL37: 145 | AM37: 218 | AN37: 360 | AO37: 500 | AP37: 360 | AQ37: 360 | AR37: 360 | AT37: 1000
A38: 1 | D38: Угловой сегмент | F38: без скруглений | H38: ДСП 26 | M38: 218 | N38: 218 | O38: 218 | P38: 145 | R38: - | S38: 182 | T38: - | U38: 920 | V38: 920 | W38: 970 | X38: 2625 | Y38: 145 | Z38: - | AA38: 300 | AB38: - | AC38: 145 | AE38: - | AF38: - | AG38: - | AH38: - | AI38: - | AJ38: - | AL38: 145 | AM38: 218 | AN38: 360 | AO38: 500 | AP38: 360 | AQ38: 360 | AR38: 360 | AT38: 1000
H39: ДСП 38 влаг. | M39: 218 | N39: 218 | O39: 218 | P39: 145 | R39: - | S39: 182 | T39: - | U39: 920 | V39: 920 | W39: 970 | X39: 2625 | Y39: 145 | Z39: - | AA39: 300 | AB39: - | AC39: 145 | AE39: - | AF39: - | AG39: - | AH39: - | AI39: - | AJ39: - | AL39: 145 | AM39: 218 | AN39: 360 | AO39: 500 | AP39: 360 | AQ39: 360 | AR39: 360 | AT39: 1000
A40: 1 | D40: Карниз | F40: 1 скругл. 90 град. | G40: любые размеры | H40: ДСП 16 | M40: 63 | N40: 63 | O40: 188 | P40: - | R40: - | S40: 56 | T40: - | U40: - | V40: - | W40: 840 | X40: 2625 | Y40: 125 | Z40: 63 | AA40: 125 | AB40: 250 | AC40: - | AE40: 950 | AF40: 950 | AG40: - | AH40: - | AI40: 125 | AJ40: 55 | AL40: 125 | AM40: 188 | AN40: 313 | AO40: 436 | AP40: 313 | AQ40: 313 | AR40: 313 | AT40: -
H41: Фанера 18 | M41: 0 | N41: 0 | O41: 0 | P41: 0 | R41: - | S41: 0 | T41: - | U41: - | V41: - | W41: 840 | X41: 2625 | Y41: 125 | Z41: 63 | AA41: 125 | AB41: 250 | AC41: - | AE41: - | AF41: - | AG41: - | AH41: - | AI41: - | AJ41: - | AL41: 125 | AM41: 188 | AN41: 313 | AO41: 436 | AP41: 313 | AQ41: 313 | AR41: 313 | AT41: -
H42: МДФ 16 | M42: 63 | N42: 63 | O42: 188 | P42: - | R42: - | S42: 56 | T42: - | U42: - | V42: - | W42: 840 | X42: 2625 | Y42: 125 | Z42: 63 | AA42: 125 | AB42: 250 | AC42: - | AE42: 950 | AF42: 950 | AG42: - | AH42: - | AI42: 125 | AJ42: 55 | AL42: 125 | AM42: 188 | AN42: 313 | AO42: 436 | AP42: 313 | AQ42: 313 | AR42: 313 | AT42: -
A43: 1 | D43: Фасад | F43: 2 скругл. 90 град. | G43: любые размеры | H43: ДСП 16 | M43: 63 | N43: 63 | O43: 188 | P43: - | R43: - | S43: 56 | T43: - | U43: - | V43: - | W43: 840 | X43: 2625 | Y43: 125 | Z43: 63 | AA43: 125 | AB43: 250 | AC43: - | AE43: 950 | AF43: 950 | AG43: - | AH43: - | AI43: 125 | AJ43: 55 | AL43: 125 | AM43: 188 | AN43: 313 | AO43: 436 | AP43: 313 | AQ43: 313 | AR43: 313 | AT43: -
H44: Фанера 18 | M44: 0 | N44: 0 | O44: 0 | P44: 0 | R44: - | S44: 0 | T44: - | U44: - | V44: - | W44: 840 | X44: 2625 | Y44: 125 | Z44: 63 | AA44: 125 | AB44: 250 | AC44: - | AE44: - | AF44: - | AG44: - | AH44: - | AI44: - | AJ44: - | AL44: 125 | AM44: 188 | AN44: 313 | AO44: 436 | AP44: 313 | AQ44: 313 | AR44: 313 | AT44: -
H45: МДФ 16 | M45: 63 | N45: 63 | O45: 188 | P45: - | R45: - | S45: 56 | T45: - | U45: - | V45: - | W45: 840 | X45: 2625 | Y45: 125 | Z45: 63 | AA45: 125 | AB45: 250 | AC45: - | AE45: 950 | AF45: 950 | AG45: - | AH45: - | AI45: 125 | AJ45: 55 | AL45: 125 | AM45: 188 | AN45: 313 | AO45: 436 | AP45: 313 | AQ45: 313 | AR45: 313 | AT45: -
A46: 1 | D46: Экофасад | F46: Модель № 1 | G46: любые размеры | H46: МДФ 16 | M46: 0 | N46: 0 | O46: 0 | P46: - | R46: - | S46: 0 | T46: - | U46: - | V46: - | W46: - | X46: - | Y46: 125 | Z46: 63 | AA46: 125 | AB46: - | AC46: - | AE46: - | AF46: - | AG46: - | AH46: - | AI46: 125 | AJ46: 55 | AL46: 125 | AM46: 188 | AN46: 313 | AO46: 436 | AP46: 313 | AQ46: 313 | AR46: 313 | AT46: -
D47: Экофасад | F47: Модель № 2 | H47: МДФ 16 | M47: 0 | N47: 0 | O47: 0 | P47: - | R47: - | S47: 0 | T47: - | U47: - | V47: - | W47: - | X47: - | Y47: 125 | Z47: 63 | AA47: 125 | AB47: - | AC47: - | AE47: - | AF47: - | AG47: - | AH47: - | AI47: 125 | AJ47: 55 | AL47: 125 | AM47: 188 | AN47: 313 | AO47: 436 | AP47: 313 | AQ47: 313 | AR47: 313 | AT47: -
D48: Экофасад | F48: Модель № 3 | H48: МДФ 16 | M48: 0 | N48: 0 | O48: 0 | P48: - | R48: - | S48: 0 | T48: - | U48: - | V48: - | W48: - | X48: - | Y48: 125 | Z48: 63 | AA48: 125 | AB48: - | AC48: - | AE48: - | AF48: - | AG48: - | AH48: - | AI48: 125 | AJ48: 55 | AL48: 125 | AM48: 188 | AN48: 313 | AO48: 436 | AP48: 313 | AQ48: 313 | AR48: 313 | AT48: -
D49: Экофасад | F49: Модель № 4 | H49: МДФ 16 | M49: 0 | N49: 0 | O49: 0 | P49: - | R49: - | S49: 0 | T49: - | U49: - | V49: - | W49: - | X49: - | Y49: 125 | Z49: 63 | AA49: 125 | AB49: - | AC49: - | AE49: - | AF49: - | AG49: - | AH49: - | AI49: 125 | AJ49: 55 | AL49: 125 | AM49: 188 | AN49: 313 | AO49: 436 | AP49: 313 | AQ49: 313 | AR49: 313 | AT49: -
D50: Экофасад | F50: Модель № 5 | H50: МДФ 16 | M50: 0 | N50: 0 | O50: 0 | P50: - | R50: - | S50: 0 | T50: - | U50: - | V50: - | W50: - | X50: - | Y50: 125 | Z50: 63 | AA50: 125 | AB50: - | AC50: - | AE50: - | AF50: - | AG50: - | AH50: - | AI50: 125 | AJ50: 55 | AL50: 125 | AM50: 188 | AN50: 313 | AO50: 436 | AP50: 313 | AQ50: 313 | AR50: 313 | AT50: -
D51: Экофасад | F51: Модель № 6 | H51: МДФ 16 | M51: 0 | N51: 0 | O51: 0 | P51: - | R51: - | S51: 0 | T51: - | U51: - | V51: - | W51: - | X51: - | Y51: 125 | Z51: 63 | AA51: 125 | AB51: - | AC51: - | AE51: - | AF51: - | AG51: - | AH51: - | AI51: 125 | AJ51: 55 | AL51: 125 | AM51: 188 | AN51: 313 | AO51: 436 | AP51: 313 | AQ51: 313 | AR51: 313 | AT51: -
D52: Экофасад | F52: Модель № 7 | H52: МДФ 16 | M52: 0 | N52: 0 | O52: 0 | P52: - | R52: - | S52: 0 | T52: - | U52: - | V52: - | W52: - | X52: - | Y52: 125 | Z52: 63 | AA52: 125 | AB52: - | AC52: - | AE52: - | AF52: - | AG52: - | AH52: - | AI52: 125 | AJ52: 55 | AL52: 125 | AM52: 188 | AN52: 313 | AO52: 436 | AP52: 313 | AQ52: 313 | AR52: 313 | AT52: -
D53: Экофасад | F53: Модель № 8 | H53: МДФ 16 | M53: 0 | N53: 0 | O53: 0 | P53: - | R53: - | S53: 0 | T53: - | U53: - | V53: - | W53: - | X53: - | Y53: 125 | Z53: 63 | AA53: 125 | AB53: - | AC53: - | AE53: - | AF53: - | AG53: - | AH53: - | AI53: 125 | AJ53: 55 | AL53: 125 | AM53: 188 | AN53: 313 | AO53: 436 | AP53: 313 | AQ53: 313 | AR53: 313 | AT53: -
D54: Экофасад | F54: Модель № 9 | H54: МДФ 16 | M54: 0 | N54: 0 | O54: 0 | P54: - | R54: - | S54: 0 | T54: - | U54: - | V54: - | W54: - | X54: - | Y54: 125 | Z54: 63 | AA54: 125 | AB54: - | AC54: - | AE54: - | AF54: - | AG54: - | AH54: - | AI54: 125 | AJ54: 55 | AL54: 125 | AM54: 188 | AN54: 313 | AO54: 436 | AP54: 313 | AQ54: 313 | AR54: 313 | AT54: -
D55: Экофасад | F55: Модель № 10 | H55: МДФ 16 | M55: 0 | N55: 0 | O55: 0 | P55: - | R55: - | S55: 0 | T55: - | U55: - | V55: - | W55: - | X55: - | Y55: 125 | Z55: 63 | AA55: 125 | AB55: - | AC55: - | AE55: - | AF55: - | AG55: - | AH55: - | AI55: 125 | AJ55: 55 | AL55: 125 | AM55: 188 | AN55: 313 | AO55: 436 | AP55: 313 | AQ55: 313 | AR55: 313 | AT55: -
D56: Экофасад | F56: Модель № 13 | H56: МДФ 16 | M56: 0 | N56: 0 | O56: 0 | P56: - | R56: - | S56: 0 | T56: - | U56: - | V56: - | W56: - | X56: - | Y56: 125 | Z56: 63 | AA56: 125 | AB56: - | AC56: - | AE56: - | AF56: - | AG56: - | AH56: - | AI56: 125 | AJ56: 55 | AL56: 125 | AM56: 188 | AN56: 313 | AO56: 436 | AP56: 313 | AQ56: 313 | AR56: 313 | AT56: -
D57: Экофасад | F57: Модель № 14 | H57: МДФ 16 | M57: 0 | N57: 0 | O57: 0 | P57: - | R57: - | S57: 0 | T57: - | U57: - | V57: - | W57: - | X57: - | Y57: 125 | Z57: 63 | AA57: 125 | AB57: - | AC57: - | AE57: - | AF57: - | AG57: - | AH57: - | AI57: 125 | AJ57: 55 | AL57: 125 | AM57: 188 | AN57: 313 | AO57: 436 | AP57: 313 | AQ57: 313 | AR57: 313 | AT57: -
D58: Экофасад | F58: Модель № 15 | H58: МДФ 16 | M58: 0 | N58: 0 | O58: 0 | P58: - | R58: - | S58: 0 | T58: - | U58: - | V58: - | W58: - | X58: - | Y58: 125 | Z58: 63 | AA58: 125 | AB58: - | AC58: - | AE58: - | AF58: - | AG58: - | AH58: - | AI58: 125 | AJ58: 55 | AL58: 125 | AM58: 188 | AN58: 313 | AO58: 436 | AP58: 313 | AQ58: 313 | AR58: 313 | AT58: -
D59: Экофасад | F59: Модель № 16 | H59: МДФ 16 | M59: 0 | N59: 0 | O59: 0 | P59: - | R59: - | S59: 0 | T59: - | U59: - | V59: - | W59: - | X59: - | Y59: 125 | Z59: 63 | AA59: 125 | AB59: - | AC59: - | AE59: - | AF59: - | AG59: - | AH59: - | AI59: 125 | AJ59: 55 | AL59: 125 | AM59: 188 | AN59: 313 | AO59: 436 | AP59: 313 | AQ59: 313 | AR59: 313 | AT59: -
D60: Экофасад | F60: Модель № 17 | H60: МДФ 16 | M60: 0 | N60: 0 | O60: 0 | P60: - | R60: - | S60: 0 | T60: - | U60: - | V60: - | W60: - | X60: - | Y60: 125 | Z60: 63 | AA60: 125 | AB60: - | AC60: - | AE60: - | AF60: - | AG60: - | AH60: - | AI60: 125 | AJ60: 55 | AL60: 125 | AM60: 188 | AN60: 313 | AO60: 436 | AP60: 313 | AQ60: 313 | AR60: 313 | AT60: -
D61: Экофасад | F61: Модель № 18 | H61: МДФ 16 | M61: 0 | N61: 0 | O61: 0 | P61: - | R61: - | S61: 0 | T61: - | U61: - | V61: - | W61: - | X61: - | Y61: 125 | Z61: 63 | AA61: 125 | AB61: - | AC61: - | AE61: - | AF61: - | AG61: - | AH61: - | AI61: 125 | AJ61: 55 | AL61: 125 | AM61: 188 | AN61: 313 | AO61: 436 | AP61: 313 | AQ61: 313 | AR61: 313 | AT61: -
A62: 1 | D62: Панель Акрил | F62: без скруглений | H62: МДФ 18 | M62: 0 | N62: 0 | O62: 0 | P62: - | R62: - | S62: 0 | T62: - | U62: - | V62: - | W62: 840 | X62: 2625 | Y62: 125 | Z62: 63 | AA62: 125 | AB62: 250 | AC62: - | AE62: 950 | AF62: 950 | AG62: 300 | AH62: - | AI62: 125 | AJ62: 55 | AL62: 125 | AM62: 188 | AN62: 313 | AO62: 436 | AP62: 313 | AQ62: 313 | AR62: 313 | AT62: -
A63: 1 | D63: Панель CLEAF | F63: без скруглений | H63: ДСП 18 | M63: 0 | N63: 0 | O63: 0 | P63: - | R63: - | S63: 0 | T63: - | U63: - | V63: - | W63: 840 | X63: 2625 | Y63: 125 | Z63: 63 | AA63: 125 | AB63: 250 | AC63: - | AE63: 950 | AF63: 950 | AG63: 300 | AH63: - | AI63: 125 | AJ63: 55 | AL63: 125 | AM63: 188 | AN63: 313 | AO63: 436 | AP63: 313 | AQ63: 313 | AR63: 313 | AT63: -
A64: 1 | D64: Экофасад CLEAF | F64: Модель № 1 | H64: ДСП 18 | M64: 0 | N64: 0 | O64: 0 | P64: - | R64: - | S64: 0 | T64: - | U64: - | V64: - | W64: - | X64: - | Y64: 125 | Z64: 63 | AA64: 125 | AB64: - | AC64: - | AE64: - | AF64: - | AG64: - | AH64: - | AI64: 125 | AJ64: 55 | AL64: 125 | AM64: 188 | AN64: 313 | AO64: 436 | AP64: 313 | AQ64: 313 | AR64: 313 | AT64: -
D65: Экофасад CLEAF | F65: Модель № 2 | H65: ДСП 18 | M65: 0 | N65: 0 | O65: 0 | P65: - | R65: - | S65: 0 | T65: - | U65: - | V65: - | W65: - | X65: - | Y65: 125 | Z65: 63 | AA65: 125 | AB65: - | AC65: - | AE65: - | AF65: - | AG65: - | AH65: - | AI65: 125 | AJ65: 55 | AL65: 125 | AM65: 188 | AN65: 313 | AO65: 436 | AP65: 313 | AQ65: 313 | AR65: 313 | AT65: -
D66: Экофасад CLEAF | F66: Модель № 3 | H66: ДСП 18 | M66: 0 | N66: 0 | O66: 0 | P66: - | R66: - | S66: 0 | T66: - | U66: - | V66: - | W66: - | X66: - | Y66: 125 | Z66: 63 | AA66: 125 | AB66: - | AC66: - | AE66: - | AF66: - | AG66: - | AH66: - | AI66: 125 | AJ66: 55 | AL66: 125 | AM66: 188 | AN66: 313 | AO66: 436 | AP66: 313 | AQ66: 313 | AR66: 313 | AT66: -
D67: Экофасад CLEAF | F67: Модель № 4 | H67: ДСП 18 | M67: 0 | N67: 0 | O67: 0 | P67: - | R67: - | S67: 0 | T67: - | U67: - | V67: - | W67: - | X67: - | Y67: 125 | Z67: 63 | AA67: 125 | AB67: - | AC67: - | AE67: - | AF67: - | AG67: - | AH67: - | AI67: 125 | AJ67: 55 | AL67: 125 | AM67: 188 | AN67: 313 | AO67: 436 | AP67: 313 | AQ67: 313 | AR67: 313 | AT67: -
D68: Экофасад CLEAF | F68: Модель № 13 | H68: ДСП 18 | M68: 0 | N68: 0 | O68: 0 | P68: - | R68: - | S68: 0 | T68: - | U68: - | V68: - | W68: - | X68: - | Y68: 125 | Z68: 63 | AA68: 125 | AB68: - | AC68: - | AE68: - | AF68: - | AG68: - | AH68: - | AI68: 125 | AJ68: 55 | AL68: 125 | AM68: 188 | AN68: 313 | AO68: 436 | AP68: 313 | AQ68: 313 | AR68: 313 | AT68: -
D69: Экофасад CLEAF | F69: Модель № 14 | H69: ДСП 18 | M69: 0 | N69: 0 | O69: 0 | P69: - | R69: - | S69: 0 | T69: - | U69: - | V69: - | W69: - | X69: - | Y69: 125 | Z69: 63 | AA69: 125 | AB69: - | AC69: - | AE69: - | AF69: - | AG69: - | AH69: - | AI69: 125 | AJ69: 55 | AL69: 125 | AM69: 188 | AN69: 313 | AO69: 436 | AP69: 313 | AQ69: 313 | AR69: 313 | AT69: -
D70: Экофасад CLEAF | F70: Модель № 15 | H70: ДСП 18 | M70: 0 | N70: 0 | O70: 0 | P70: - | R70: - | S70: 0 | T70: - | U70: - | V70: - | W70: - | X70: - | Y70: 125 | Z70: 63 | AA70: 125 | AB70: - | AC70: - | AE70: - | AF70: - | AG70: - | AH70: - | AI70: 125 | AJ70: 55 | AL70: 125 | AM70: 188 | AN70: 313 | AO70: 436 | AP70: 313 | AQ70: 313 | AR70: 313 | AT70: -
D71: Экофасад CLEAF | F71: Модель № 16 | H71: ДСП 18 | M71: 0 | N71: 0 | O71: 0 | P71: - | R71: - | S71: 0 | T71: - | U71: - | V71: - | W71: - | X71: - | Y71: 125 | Z71: 63 | AA71: 125 | AB71: - | AC71: - | AE71: - | AF71: - | AG71: - | AH71: - | AI71: 125 | AJ71: 55 | AL71: 125 | AM71: 188 | AN71: 313 | AO71: 436 | AP71: 313 | AQ71: 313 | AR71: 313 | AT71: -
D72: Экофасад CLEAF | F72: Модель № 17 | H72: ДСП 18 | M72: 0 | N72: 0 | O72: 0 | P72: - | R72: - | S72: 0 | T72: - | U72: - | V72: - | W72: - | X72: - | Y72: 125 | Z72: 63 | AA72: 125 | AB72: - | AC72: - | AE72: - | AF72: - | AG72: - | AH72: - | AI72: 125 | AJ72: 55 | AL72: 125 | AM72: 188 | AN72: 313 | AO72: 436 | AP72: 313 | AQ72: 313 | AR72: 313 | AT72: -
D73: Экофасад CLEAF | F73: Модель № 18 | H73: ДСП 18 | M73: 0 | N73: 0 | O73: 0 | P73: - | R73: - | S73: 0 | T73: - | U73: - | V73: - | W73: - | X73: - | Y73: 125 | Z73: 63 | AA73: 125 | AB73: - | AC73: - | AE73: - | AF73: - | AG73: - | AH73: - | AI73: 125 | AJ73: 55 | AL73: 125 | AM73: 188 | AN73: 313 | AO73: 436 | AP73: 313 | AQ73: 313 | AR73: 313 | AT73: -
A76: добавить наименованеи так же | D76: Рамка под стекло | F76: МФ 33-8 серебро | H76: - | M76: - | N76: - | O76: - | P76: - | R76: - | S76: - | T76: - | U76: - | V76: - | W76: - | X76: - | Y76: - | Z76: 63 | AA76: - | AB76: - | AC76: - | AE76: - | AG76: - | AH76: 300 | AI76: - | AJ76: - | AL76: - | AM76: - | AN76: - | AO76: - | AP76: - | AQ76: - | AR76: - | AT76: -
F77: МФ 1-10 серебро | H77: - | M77: - | N77: - | O77: - | P77: - | R77: - | S77: - | T77: - | U77: - | V77: - | W77: - | X77: - | Y77: - | Z77: 63 | AA77: - | AB77: - | AC77: - | AE77: - | AG77: - | AH77: 300 | AI77: - | AJ77: - | AL77: - | AM77: - | AN77: - | AO77: - | AP77: - | AQ77: - | AR77: - | AT77: -
F78: F1-33 серебро | H78: - | M78: - | N78: - | O78: - | P78: - | R78: - | S78: - | T78: - | U78: - | V78: - | W78: - | X78: - | Y78: - | Z78: 63 | AA78: - | AB78: - | AC78: - | AE78: - | AG78: - | AH78: 300 | AI78: - | AJ78: - | AL78: - | AM78: - | AN78: - | AO78: - | AP78: - | AQ78: - | AR78: - | AT78: -
F79: F1-33 шампань | H79: - | M79: - | N79: - | O79: - | P79: - | R79: - | S79: - | T79: - | U79: - | V79: - | W79: - | X79: - | Y79: - | Z79: 63 | AA79: - | AB79: - | AC79: - | AE79: - | AG79: - | AH79: 300 | AI79: - | AJ79: - | AL79: - | AM79: - | AN79: - | AO79: - | AP79: - | AQ79: - | AR79: - | AT79: -
F80: F1-33 черный | H80: - | M80: - | N80: - | O80: - | P80: - | R80: - | S80: - | T80: - | U80: - | V80: - | W80: - | X80: - | Y80: - | Z80: 63 | AA80: - | AB80: - | AC80: - | AE80: - | AG80: - | AH80: 300 | AI80: - | AJ80: - | AL80: - | AM80: - | AN80: - | AO80: - | AP80: - | AQ80: - | AR80: - | AT80: -
F81: F1-12 серебро | H81: - | M81: - | N81: - | O81: - | P81: - | R81: - | S81: - | T81: - | U81: - | V81: - | W81: - | X81: - | Y81: - | Z81: 63 | AA81: - | AB81: - | AC81: - | AE81: - | AG81: - | AH81: 300 | AI81: - | AJ81: - | AL81: - | AM81: - | AN81: - | AO81: - | AP81: - | AQ81: - | AR81: - | AT81: -
F82: F1-12 шампань | H82: - | M82: - | N82: - | O82: - | P82: - | R82: - | S82: - | T82: - | U82: - | V82: - | W82: - | X82: - | Y82: - | Z82: 63 | AA82: - | AB82: - | AC82: - | AE82: - | AG82: - | AH82: 300 | AI82: - | AJ82: - | AL82: - | AM82: - | AN82: - | AO82: - | AP82: - | AQ82: - | AR82: - | AT82: -
F83: F1-12 золото | H83: - | M83: - | N83: - | O83: - | P83: - | R83: - | S83: - | T83: - | U83: - | V83: - | W83: - | X83: - | Y83: - | Z83: 63 | AA83: - | AB83: - | AC83: - | AE83: - | AG83: - | AH83: 300 | AI83: - | AJ83: - | AL83: - | AM83: - | AN83: - | AO83: - | AP83: - | AQ83: - | AR83: - | AT83: -
F84: F1-11 серебро | H84: - | M84: - | N84: - | O84: - | P84: - | R84: - | S84: - | T84: - | U84: - | V84: - | W84: - | X84: - | Y84: - | Z84: 63 | AA84: - | AB84: - | AC84: - | AE84: - | AG84: - | AH84: 300 | AI84: - | AJ84: - | AL84: - | AM84: - | AN84: - | AO84: - | AP84: - | AQ84: - | AR84: - | AT84: -
F85: F1-11 шампань | H85: - | M85: - | N85: - | O85: - | P85: - | R85: - | S85: - | T85: - | U85: - | V85: - | W85: - | X85: - | Y85: - | Z85: 63 | AA85: - | AB85: - | AC85: - | AE85: - | AG85: - | AH85: 300 | AI85: - | AJ85: - | AL85: - | AM85: - | AN85: - | AO85: - | AP85: - | AQ85: - | AR85: - | AT85: -
F86: F1-11 золото | H86: - | M86: - | N86: - | O86: - | P86: - | R86: - | S86: - | T86: - | U86: - | V86: - | W86: - | X86: - | Y86: - | Z86: 63 | AA86: - | AB86: - | AC86: - | AE86: - | AG86: - | AH86: 300 | AI86: - | AJ86: - | AL86: - | AM86: - | AN86: - | AO86: - | AP86: - | AQ86: - | AR86: - | AT86: -
F87: F1-10 серебро | H87: - | M87: - | N87: - | O87: - | R87: - | S87: - | T87: - | U87: - | V87: - | AB87: - | AL87: - | AM87: - | AN87: - | AO87: - | AP87: - | AQ87: - | AR87: - | AT87: -
F88: F1-10 шампань | H88: - | M88: - | N88: - | O88: - | P88: - | R88: - | S88: - | T88: - | U88: - | V88: - | W88: - | X88: - | Y88: - | Z88: 63 | AA88: - | AB88: - | AC88: - | AE88: - | AG88: - | AH88: 300 | AI88: - | AJ88: - | AL88: - | AM88: - | AN88: - | AO88: - | AP88: - | AQ88: - | AR88: - | AT88: -
F89: F1-10 золото | H89: - | M89: - | N89: - | O89: - | P89: - | R89: - | S89: - | T89: - | U89: - | V89: - | W89: - | X89: - | Y89: - | Z89: 63 | AA89: - | AB89: - | AC89: - | AE89: - | AG89: - | AH89: 300 | AI89: - | AJ89: - | AL89: - | AM89: - | AN89: - | AO89: - | AP89: - | AQ89: - | AR89: - | AT89: -
D90: Отбортовка | F90: для заказчика | H90: - | M90: - | N90: - | O90: - | P90: - | R90: - | S90: - | T90: - | U90: - | V90: - | W90: - | X90: - | Y90: - | Z90: - | AA90: - | AB90: - | AC90: - | AE90: - | AG90: - | AH90: - | AI90: - | AJ90: - | AL90: - | AM90: - | AN90: - | AO90: - | AP90: - | AQ90: - | AR90: - | AT90: -
D91: Кромка пластик | F91: для заказчика | H91: - | M91: - | N91: - | O91: - | P91: - | R91: - | S91: - | T91: - | U91: - | V91: - | W91: - | X91: - | Y91: - | Z91: - | AA91: - | AB91: - | AC91: - | AE91: - | AG91: - | AH91: - | AI91: - | AJ91: - | AL91: - | AM91: - | AN91: - | AO91: - | AP91: - | AQ91: - | AR91: - | AT91: -
M93: Кромление, цена за 1 ед. | S93: Деталировка цена за 1 ед.
A96: Упустил в прайсе | D96: Радиусный фасад | F96: Выпуклый R-280 | H96: МДФ 16 | M96: 260 | N96: 5 | O96: - | P96: - | R96: - | S96: 315 | T96: - | U96: - | V96: - | W96: - | X96: - | Y96: - | Z96: 105 | AA96: 200 | AB96: - | AC96: - | AE96: - | AG96: 1660 | AH96: - | AI96: - | AJ96: - | AL96: - | AM96: - | AN96: - | AO96: - | AP96: - | AQ96: - | AR96: - | AT96: -
F97: Выпуклый R-300 | H97: МДФ 16 | N97: 5 | O97: - | P97: - | R97: - | S97: 315 | T97: - | U97: - | V97: - | W97: - | X97: - | Y97: - | AB97: - | AC97: - | AE97: - | AH97: - | AI97: - | AJ97: - | AL97: - | AM97: - | AN97: - | AO97: - | AP97: - | AQ97: - | AR97: - | AT97: -
F98: Вогнутый R-280 | H98: МДФ 16 | N98: 5 | O98: - | P98: - | R98: - | S98: 315 | T98: - | U98: - | V98: - | W98: - | X98: - | Y98: - | AB98: - | AC98: - | AE98: - | AH98: - | AI98: - | AJ98: - | AL98: - | AM98: - | AN98: - | AO98: - | AP98: - | AQ98: - | AR98: - | AT98: -
F99: Вогнутый R-300 | H99: МДФ 16 | N99: 5 | O99: - | P99: - | R99: - | S99: 315 | T99: - | U99: - | V99: - | W99: - | X99: - | Y99: - | AB99: - | AC99: - | AE99: - | AH99: - | AI99: - | AJ99: - | AL99: - | AM99: - | AN99: - | AO99: - | AP99: - | AQ99: - | AR99: - | AT99: -
F100: Выпуклый R-280 с постформингом | H100: МДФ 16 | N100: 5 | O100: - | P100: - | R100: - | S100: 315 | T100: - | U100: - | V100: - | W100: - | X100: - | Y100: - | AB100: - | AC100: - | AE100: - | AH100: - | AI100: - | AJ100: - | AL100: - | AM100: - | AN100: - | AO100: - | AP100: - | AQ100: - | AR100: - | AT100: -
F101: Выпуклый R-300 с постформингом | H101: МДФ 16 | N101: 5 | O101: - | P101: - | R101: - | S101: 315 | T101: - | U101: - | V101: - | W101: - | X101: - | Y101: - | AB101: - | AC101: - | AE101: - | AH101: - | AI101: - | AJ101: - | AL101: - | AM101: - | AN101: - | AO101: - | AP101: - | AQ101: - | AR101: - | AT101: -
M103: Кромка пластик, цена за 1 ед. (для рад. Фасадов)
M105: кат. 1 | N105: кат. 2 | O105: кат. 3 | P105: кат. 4
M107: кат. 5 | N107: кат. 6 | O107: кат. 7
M108: 400 | N108: 400 | O108: 400

Sheet Вид_обработки (hidden)
B1: Вид обработки | C1: Пароли | D1: Права | F1: цена за кв.м. | G1: ширина | H1: длина | I1: кв.м. | J1: цена за лист, руб | K1: цена за лист в евро. | L1: курс евро | M1: 77 | O1: ДСП 26 | P1: ДСП 38 влаг. | Q1: Фанера 38 | R1: ДСП/ДВП 4/6 | S1: ДСП 8 | T1: ДСП 16 | U1: МДФ 16 | V1: Фанера 18 | W1: МДФ 18
B2: пластик | C2: 4631 | D2: Админ | O2: 400 | P2: 400 | Q2: 589 | R2: 400 | S2: 400 | T2: 0 | U2: 0 | V2: 589 | W2: -
B3: бумага | C3: 1589 | D3: Админ | O3: 0 | P3: 0 | Q3: 0 | R3: 0 | S3: 0 | T3: - | U3: - | V3: 0 | W3: -
B4: для FN белый | C4: 5876 | D4: Инженер | O4: 3413 | P4: 2338 | Q4: 589 | R4: 343 | S4: 343 | T4: 0 | U4: 0 | V4: 1766 | W4: -
B5: для FN Arpa | O5: 3884 | P5: 2830 | Q5: 3060 | R5: 2748 | S5: 2748 | T5: 1498 | U5: 1391 | V5: 3178
B6: FN комп. NTM | O6: 4943 | P6: 3938 | Q6: 4120 | R6: 3778 | S6: 3778 | T6: 2461 | U6: 2354 | V6: 4237
B7: 410 LU | C7: 6254 | D7: Кладовщик | O7: 2340 | P7: 2340 | Q7: 3178 | R7: 2340 | S7: 2340 | T7: 2340 | U7: 2340 | V7: 3060 | W7: -
B8: 39/Г | C8: 6343 | D8: Кладовщик | O8: 1440 | P8: 1440 | Q8: 1883 | R8: 1440 | S8: 1440 | T8: 1440 | U8: 1440 | V8: 1766 | W8: -
B9: 39/МТ | C9: 1511 | D9: Менеджер | O9: 1440 | P9: 1440 | Q9: 1883 | R9: 1440 | S9: 1440 | T9: 1440 | U9: 1440 | V9: 1766 | W9: -
B10: 39/ТЦ | C10: 5535 | D10: Менеджер | O10: 1440 | P10: 1440 | Q10: 1883 | R10: 1440 | S10: 1440 | T10: 1440 | U10: 1440 | V10: 1766 | W10: -
B11: 004/ТС | C11: 5520 | D11: Менеджер | O11: 1440 | P11: 1440 | Q11: 1883 | R11: 1440 | S11: 1440 | T11: 1440 | U11: 1440 | V11: 1766 | W11: -
B12: 014/Г | C12: 9238 | D12: Менеджер | O12: 1440 | P12: 1440 | Q12: 1883 | R12: 1440 | S12: 1440 | T12: 1440 | U12: 1440 | V12: 1766 | W12: -
B13: 014/Т | C13: 1285 | D13: Менеджер | O13: 1440 | P13: 1440 | Q13: 1883 | R13: 1440 | S13: 1440 | T13: 1440 | U13: 1440 | V13: 1766 | W13: -
B14: 016/Т | O14: 1440 | P14: 1440 | Q14: 1883 | R14: 1440 | S14: 1440 | T14: 1440 | U14: 1440 | V14: 1766 | W14: -
B15: 017/Г | O15: 1440 | P15: 1440 | Q15: 1883 | R15: 1440 | S15: 1440 | T15: 1440 | U15: 1440 | V15: 1766 | W15: -
B16: 017/МО | O16: 1440 | P16: 1440 | Q16: 1883 | R16: 1440 | S16: 1440 | T16: 1440 | U16: 1440 | V16: 1766 | W16: -
B17: 017/Т | O17: 1440 | P17: 1440 | Q17: 1883 | R17: 1440 | S17: 1440 | T17: 1440 | U17: 1440 | V17: 1766 | W17: -
B18: 017/ТИ | O18: 1440 | P18: 1440 | Q18: 1883 | R18: 1440 | S18: 1440 | T18: 1440 | U18: 1440 | V18: 1766 | W18: -
B19: 017/ТЦ | O19: 1440 | P19: 1440 | Q19: 1883 | R19: 1440 | S19: 1440 | T19: 1440 | U19: 1440 | V19: 1766 | W19: -
B20: 105/ТИ | O20: 1440 | P20: 1440 | Q20: 1883 | R20: 1440 | S20: 1440 | T20: 1440 | U20: 1440 | V20: 1766 | W20: -
B21: 106/ТИ | O21: 1440 | P21: 1440 | Q21: 1883 | R21: 1440 | S21: 1440 | T21: 1440 | U21: 1440 | V21: 1766 | W21: -
B22: 107/ТИ | O22: 1440 | P22: 1440 | Q22: 1883 | R22: 1440 | S22: 1440 | T22: 1440 | U22: 1440 | V22: 1766 | W22: -
B23: 520/Г | O23: 1440 | P23: 1440 | Q23: 1883 | R23: 1440 | S23: 1440 | T23: 1440 | U23: 1440 | V23: 1766 | W23: -
B24: 521/СД | O24: 1440 | P24: 1440 | Q24: 1883 | R24: 1440 | S24: 1440 | T24: 1440 | U24: 1440 | V24: 1766 | W24: -
B25: 522/СД | O25: 1440 | P25: 1440 | Q25: 1883 | R25: 1440 | S25: 1440 | T25: 1440 | U25: 1440 | V25: 1766 | W25: -
B26: 523/СД | O26: 1440 | P26: 1440 | Q26: 1883 | R26: 1440 | S26: 1440 | T26: 1440 | U26: 1440 | V26: 1766 | W26: -
B27: 681/Г | O27: 1440 | P27: 1440 | Q27: 1883 | R27: 1440 | S27: 1440 | T27: 1440 | U27: 1440 | V27: 1766 | W27: -
B28: 682/СД | O28: 1440 | P28: 1440 | Q28: 1883 | R28: 1440 | S28: 1440 | T28: 1440 | U28: 1440 | V28: 1766 | W28: -
B29: 683/ТП | O29: 1440 | P29: 1440 | Q29: 1883 | R29: 1440 | S29: 1440 | T29: 1440 | U29: 1440 | V29: 1766 | W29: -
B30: 685/Г | O30: 1440 | P30: 1440 | Q30: 1883 | R30: 1440 | S30: 1440 | T30: 1440 | U30: 1440 | V30: 1766 | W30: -
B31: 686/Г | O31: 1440 | P31: 1440 | Q31: 1883 | R31: 1440 | S31: 1440 | T31: 1440 | U31: 1440 | V31: 1766 | W31: -
B32: 686/ТП | O32: 1440 | P32: 1440 | Q32: 1883 | R32: 1440 | S32: 1440 | T32: 1440 | U32: 1440 | V32: 1766 | W32: -
B33: 688/ТП | O33: 1440 | P33: 1440 | Q33: 1883 | R33: 1440 | S33: 1440 | T33: 1440 | U33: 1440 | V33: 1766 | W33: -
B34: 690/Г | O34: 1440 | P34: 1440 | Q34: 1883 | R34: 1440 | S34: 1440 | T34: 1440 | U34: 1440 | V34: 1766 | W34: -
B35: 692/ТИ | O35: 1440 | P35: 1440 | Q35: 1883 | R35: 1440 | S35: 1440 | T35: 1440 | U35: 1440 | V35: 1766 | W35: -
B36: 693/ТИ | O36: 1440 | P36: 1440 | Q36: 1883 | R36: 1440 | S36: 1440 | T36: 1440 | U36: 1440 | V36: 1766 | W36: -
B37: 694/ТС | O37: 1440 | P37: 1440 | Q37: 1883 | R37: 1440 | S37: 1440 | T37: 1440 | U37: 1440 | V37: 1766 | W37: -
B38: 695/ТС | O38: 1440 | P38: 1440 | Q38: 1883 | R38: 1440 | S38: 1440 | T38: 1440 | U38: 1440 | V38: 1766 | W38: -
B39: 699/Г | O39: 1440 | P39: 1440 | Q39: 1883 | R39: 1440 | S39: 1440 | T39: 1440 | U39: 1440 | V39: 1766 | W39: -
B40: 701/ТС | O40: 1440 | P40: 1440 | Q40: 1883 | R40: 1440 | S40: 1440 | T40: 1440 | U40: 1440 | V40: 1766 | W40: -
B41: 702/ТС | O41: 1440 | P41: 1440 | Q41: 1883 | R41: 1440 | S41: 1440 | T41: 1440 | U41: 1440 | V41: 1766 | W41: -
B42: 704/ТС | O42: 1440 | P42: 1440 | Q42: 1883 | R42: 1440 | S42: 1440 | T42: 1440 | U42: 1440 | V42: 1766 | W42: -
B43: 706/Г | O43: 1440 | P43: 1440 | Q43: 1883 | R43: 1440 | S43: 1440 | T43: 1440 | U43: 1440 | V43: 1766 | W43: -
B44: 706/ТИ | O44: 1440 | P44: 1440 | Q44: 1883 | R44: 1440 | S44: 1440 | T44: 1440 | U44: 1440 | V44: 1766 | W44: -
B45: 706/ТС | O45: 1440 | P45: 1440 | Q45: 1883 | R45: 1440 | S45: 1440 | T45: 1440 | U45: 1440 | V45: 1766 | W45: -
B46: 707/Г | O46: 1440 | P46: 1440 | Q46: 1883 | R46: 1440 | S46: 1440 | T46: 1440 | U46: 1440 | V46: 1766 | W46: -
B47: 707/ТИ | O47: 1440 | P47: 1440 | Q47: 1883 | R47: 1440 | S47: 1440 | T47: 1440 | U47: 1440 | V47: 1766 | W47: -
B48: 707/ТС | O48: 1440 | P48: 1440 | Q48: 1883 | R48: 1440 | S48: 1440 | T48: 1440 | U48: 1440 | V48: 1766 | W48: -
B49: 708/ТИ | O49: 1440 | P49: 1440 | Q49: 1883 | R49: 1440 | S49: 1440 | T49: 1440 | U49: 1440 | V49: 1766 | W49: -
B50: 709/Г | O50: 1440 | P50: 1440 | Q50: 1883 | R50: 1440 | S50: 1440 | T50: 1440 | U50: 1440 | V50: 1766 | W50: -
B51: 709/ТС | O51: 1440 | P51: 1440 | Q51: 1883 | R51: 1440 | S51: 1440 | T51: 1440 | U51: 1440 | V51: 1766 | W51: -
B52: 710/Г | O52: 1440 | P52: 1440 | Q52: 1883 | R52: 1440 | S52: 1440 | T52: 1440 | U52: 1440 | V52: 1766 | W52: -
B53: 710/ТИ | O53: 1440 | P53: 1440 | Q53: 1883 | R53: 1440 | S53: 1440 | T53: 1440 | U53: 1440 | V53: 1766 | W53: -
B54: 710/ТС | O54: 1440 | P54: 1440 | Q54: 1883 | R54: 1440 | S54: 1440 | T54: 1440 | U54: 1440 | V54: 1766 | W54: -
B55: 711/Г | O55: 1440 | P55: 1440 | Q55: 1883 | R55: 1440 | S55: 1440 | T55: 1440 | U55: 1440 | V55: 1766 | W55: -
B56: 711/ТС | O56: 1440 | P56: 1440 | Q56: 1883 | R56: 1440 | S56: 1440 | T56: 1440 | U56: 1440 | V56: 1766 | W56: -
B57: 712/ТС | O57: 1440 | P57: 1440 | Q57: 1883 | R57: 1440 | S57: 1440 | T57: 1440 | U57: 1440 | V57: 1766 | W57: -
B58: 713/Г | O58: 1440 | P58: 1440 | Q58: 1883 | R58: 1440 | S58: 1440 | T58: 1440 | U58: 1440 | V58: 1766 | W58: -
B59: 713/ТИ | O59: 1440 | P59: 1440 | Q59: 1883 | R59: 1440 | S59: 1440 | T59: 1440 | U59: 1440 | V59: 1766 | W59: -
B60: 716/AND | O60: 1440 | P60: 1440 | Q60: 1883 | R60: 1440 | S60: 1440 | T60: 1440 | U60: 1440 | V60: 1766 | W60: -
B61: 716/Г | O61: 1440 | P61: 1440 | Q61: 1883 | R61: 1440 | S61: 1440 | T61: 1440 | U61: 1440 | V61: 1766 | W61: -
B62: 717/ТС | O62: 1440 | P62: 1440 | Q62: 1883 | R62: 1440 | S62: 1440 | T62: 1440 | U62: 1440 | V62: 1766 | W62: -
B63: 718/ТС | O63: 1440 | P63: 1440 | Q63: 1883 | R63: 1440 | S63: 1440 | T63: 1440 | U63: 1440 | V63: 1766 | W63: -
B64: 719/ТИ | O64: 1440 | P64: 1440 | Q64: 1883 | R64: 1440 | S64: 1440 | T64: 1440 | U64: 1440 | V64: 1766 | W64: -
B65: 777/ТП | O65: 1440 | P65: 1440 | Q65: 1883 | R65: 1440 | S65: 1440 | T65: 1440 | U65: 1440 | V65: 1766 | W65: -
B66: 779/Т | O66: 1440 | P66: 1440 | Q66: 1883 | R66: 1440 | S66: 1440 | T66: 1440 | U66: 1440 | V66: 1766 | W66: -
B67: 803/ТИ | O67: 1440 | P67: 1440 | Q67: 1883 | R67: 1440 | S67: 1440 | T67: 1440 | U67: 1440 | V67: 1766 | W67: -
B68: 805/ТИ | O68: 1440 | P68: 1440 | Q68: 1883 | R68: 1440 | S68: 1440 | T68: 1440 | U68: 1440 | V68: 1766 | W68: -
B69: 806/Г | O69: 1440 | P69: 1440 | Q69: 1883 | R69: 1440 | S69: 1440 | T69: 1440 | U69: 1440 | V69: 1766 | W69: -
B70: 806/Т | O70: 1440 | P70: 1440 | Q70: 1883 | R70: 1440 | S70: 1440 | T70: 1440 | U70: 1440 | V70: 1766 | W70: -
B71: 809/ТС | O71: 1440 | P71: 1440 | Q71: 1883 | R71: 1440 | S71: 1440 | T71: 1440 | U71: 1440 | V71: 1766 | W71: -
B72: 829/СД | O72: 1440 | P72: 1440 | Q72: 1883 | R72: 1440 | S72: 1440 | T72: 1440 | U72: 1440 | V72: 1766 | W72: -
B73: 844/Г | O73: 1440 | P73: 1440 | Q73: 1883 | R73: 1440 | S73: 1440 | T73: 1440 | U73: 1440 | V73: 1766 | W73: -
B74: 847/ТП | O74: 1440 | P74: 1440 | Q74: 1883 | R74: 1440 | S74: 1440 | T74: 1440 | U74: 1440 | V74: 1766 | W74: -
B75: 849/СД | O75: 1440 | P75: 1440 | Q75: 1883 | R75: 1440 | S75: 1440 | T75: 1440 | U75: 1440 | V75: 1766 | W75: -
B76: 898/ТС | O76: 1440 | P76: 1440 | Q76: 1883 | R76: 1440 | S76: 1440 | T76: 1440 | U76: 1440 | V76: 1766 | W76: -
B77: 899/ТП | O77: 1440 | P77: 1440 | Q77: 1883 | R77: 1440 | S77: 1440 | T77: 1440 | U77: 1440 | V77: 1766 | W77: -
B78: 901/Г | O78: 1440 | P78: 1440 | Q78: 1883 | R78: 1440 | S78: 1440 | T78: 1440 | U78: 1440 | V78: 1766 | W78: -
B79: 902/Т | O79: 1440 | P79: 1440 | Q79: 1883 | R79: 1440 | S79: 1440 | T79: 1440 | U79: 1440 | V79: 1766 | W79: -
B80: 905/ТС | O80: 1440 | P80: 1440 | Q80: 1883 | R80: 1440 | S80: 1440 | T80: 1440 | U80: 1440 | V80: 1766 | W80: -
B81: 910/Г | O81: 1440 | P81: 1440 | Q81: 1883 | R81: 1440 | S81: 1440 | T81: 1440 | U81: 1440 | V81: 1766 | W81: -
B82: 910/СМ | O82: 1440 | P82: 1440 | Q82: 1883 | R82: 1440 | S82: 1440 | T82: 1440 | U82: 1440 | V82: 1766 | W82: -
B83: 912/ТИ | O83: 1440 | P83: 1440 | Q83: 1883 | R83: 1440 | S83: 1440 | T83: 1440 | U83: 1440 | V83: 1766 | W83: -
B84: 920/Г | O84: 1440 | P84: 1440 | Q84: 1883 | R84: 1440 | S84: 1440 | T84: 1440 | U84: 1440 | V84: 1766 | W84: -
B85: 921/Г | O85: 1440 | P85: 1440 | Q85: 1883 | R85: 1440 | S85: 1440 | T85: 1440 | U85: 1440 | V85: 1766 | W85: -
B86: 923/ТС | O86: 1440 | P86: 1440 | Q86: 1883 | R86: 1440 | S86: 1440 | T86: 1440 | U86: 1440 | V86: 1766 | W86: -
B87: 924/ТС | O87: 1440 | P87: 1440 | Q87: 1883 | R87: 1440 | S87: 1440 | T87: 1440 | U87: 1440 | V87: 1766 | W87: -
B88: 925/Г | O88: 1440 | P88: 1440 | Q88: 1883 | R88: 1440 | S88: 1440 | T88: 1440 | U88: 1440 | V88: 1766 | W88: -
B89: 926/Г | O89: 1440 | P89: 1440 | Q89: 1883 | R89: 1440 | S89: 1440 | T89: 1440 | U89: 1440 | V89: 1766 | W89: -
B90: 927/Г | O90: 1440 | P90: 1440 | Q90: 1883 | R90: 1440 | S90: 1440 | T90: 1440 | U90: 1440 | V90: 1766 | W90: -
B91: 928/ТС | O91: 1440 | P91: 1440 | Q91: 1883 | R91: 1440 | S91: 1440 | T91: 1440 | U91: 1440 | V91: 1766 | W91: -
B92: 929/ТС | O92: 1440 | P92: 1440 | Q92: 1883 | R92: 1440 | S92: 1440 | T92: 1440 | U92: 1440 | V92: 1766 | W92: -
B93: 1113/Т | O93: 1440 | P93: 1440 | Q93: 1883 | R93: 1440 | S93: 1440 | T93: 1440 | U93: 1440 | V93: 1766 | W93: -
B94: 1113/Г | O94: 1440 | P94: 1440 | Q94: 1883 | R94: 1440 | S94: 1440 | T94: 1440 | U94: 1440 | V94: 1766 | W94: -
B95: 1113/МО | O95: 1440 | P95: 1440 | Q95: 1883 | R95: 1440 | S95: 1440 | T95: 1440 | U95: 1440 | V95: 1766 | W95: -
B96: 1113/ТИ | O96: 1440 | P96: 1440 | Q96: 1883 | R96: 1440 | S96: 1440 | T96: 1440 | U96: 1440 | V96: 1766 | W96: -
B97: 1113/ТЦ | O97: 1440 | P97: 1440 | Q97: 1883 | R97: 1440 | S97: 1440 | T97: 1440 | U97: 1440 | V97: 1766 | W97: -
B98: 1117/Т | O98: 1440 | P98: 1440 | Q98: 1883 | R98: 1440 | S98: 1440 | T98: 1440 | U98: 1440 | V98: 1766 | W98: -
B99: 1117/Г | O99: 1440 | P99: 1440 | Q99: 1883 | R99: 1440 | S99: 1440 | T99: 1440 | U99: 1440 | V99: 1766 | W99: -
B100: 1118/Г | O100: 1440 | P100: 1440 | Q100: 1883 | R100: 1440 | S100: 1440 | T100: 1440 | U100: 1440 | V100: 1766 | W100: -
B101: 1118/ТИ | O101: 1440 | P101: 1440 | Q101: 1883 | R101: 1440 | S101: 1440 | T101: 1440 | U101: 1440 | V101: 1766 | W101: -
B102: 1118/ТЦ | O102: 1440 | P102: 1440 | Q102: 1883 | R102: 1440 | S102: 1440 | T102: 1440 | U102: 1440 | V102: 1766 | W102: -
B103: 1139/Г | O103: 1440 | P103: 1440 | Q103: 1883 | R103: 1440 | S103: 1440 | T103: 1440 | U103: 1440 | V103: 1766 | W103: -
B104: 1139/Т | O104: 1440 | P104: 1440 | Q104: 1883 | R104: 1440 | S104: 1440 | T104: 1440 | U104: 1440 | V104: 1766 | W104: -
B105: 1140/Г | O105: 1440 | P105: 1440 | Q105: 1883 | R105: 1440 | S105: 1440 | T105: 1440 | U105: 1440 | V105: 1766 | W105: -
B106: 1147/Г | O106: 1440 | P106: 1440 | Q106: 1883 | R106: 1440 | S106: 1440 | T106: 1440 | U106: 1440 | V106: 1766 | W106: -
B107: 1147/Т | O107: 1440 | P107: 1440 | Q107: 1883 | R107: 1440 | S107: 1440 | T107: 1440 | U107: 1440 | V107: 1766 | W107: -
B108: 1148/ТЦ | O108: 1440 | P108: 1440 | Q108: 1883 | R108: 1440 | S108: 1440 | T108: 1440 | U108: 1440 | V108: 1766 | W108: -
B109: 1304/Г | O109: 1440 | P109: 1440 | Q109: 1883 | R109: 1440 | S109: 1440 | T109: 1440 | U109: 1440 | V109: 1766 | W109: -
B110: 1304/Т | O110: 1440 | P110: 1440 | Q110: 1883 | R110: 1440 | S110: 1440 | T110: 1440 | U110: 1440 | V110: 1766 | W110: -
B111: 2459/Г | O111: 1440 | P111: 1440 | Q111: 1883 | R111: 1440 | S111: 1440 | T111: 1440 | U111: 1440 | V111: 1766 | W111: -
B112: 2459/Т | O112: 1440 | P112: 1440 | Q112: 1883 | R112: 1440 | S112: 1440 | T112: 1440 | U112: 1440 | V112: 1766 | W112: -
B113: 2539/Г | O113: 1440 | P113: 1440 | Q113: 1883 | R113: 1440 | S113: 1440 | T113: 1440 | U113: 1440 | V113: 1766 | W113: -
B114: 2715/Г | O114: 1440 | P114: 1440 | Q114: 1883 | R114: 1440 | S114: 1440 | T114: 1440 | U114: 1440 | V114: 1766 | W114: -
B115: 2715/Т | O115: 1440 | P115: 1440 | Q115: 1883 | R115: 1440 | S115: 1440 | T115: 1440 | U115: 1440 | V115: 1766 | W115: -
B116: 2719/Г | O116: 1440 | P116: 1440 | Q116: 1883 | R116: 1440 | S116: 1440 | T116: 1440 | U116: 1440 | V116: 1766 | W116: -
B117: 2719/Т | O117: 1440 | P117: 1440 | Q117: 1883 | R117: 1440 | S117: 1440 | T117: 1440 | U117: 1440 | V117: 1766 | W117: -
B118: 2721/Г | O118: 1440 | P118: 1440 | Q118: 1883 | R118: 1440 | S118: 1440 | T118: 1440 | U118: 1440 | V118: 1766 | W118: -
B119: 2722/Г | O119: 1440 | P119: 1440 | Q119: 1883 | R119: 1440 | S119: 1440 | T119: 1440 | U119: 1440 | V119: 1766 | W119: -
B120: 2722/Т | O120: 1440 | P120: 1440 | Q120: 1883 | R120: 1440 | S120: 1440 | T120: 1440 | U120: 1440 | V120: 1766 | W120: -
B121: 2722/ТЦ | O121: 1440 | P121: 1440 | Q121: 1883 | R121: 1440 | S121: 1440 | T121: 1440 | U121: 1440 | V121: 1766 | W121: -
B122: 2726/Г | O122: 1440 | P122: 1440 | Q122: 1883 | R122: 1440 | S122: 1440 | T122: 1440 | U122: 1440 | V122: 1766 | W122: -
B123: 2727/Г | O123: 1440 | P123: 1440 | Q123: 1883 | R123: 1440 | S123: 1440 | T123: 1440 | U123: 1440 | V123: 1766 | W123: -
B124: 2727/ТЦ | O124: 1440 | P124: 1440 | Q124: 1883 | R124: 1440 | S124: 1440 | T124: 1440 | U124: 1440 | V124: 1766 | W124: -
B125: 2730/Г | O125: 1440 | P125: 1440 | Q125: 1883 | R125: 1440 | S125: 1440 | T125: 1440 | U125: 1440 | V125: 1766 | W125: -
B126: 2730/Т | O126: 1440 | P126: 1440 | Q126: 1883 | R126: 1440 | S126: 1440 | T126: 1440 | U126: 1440 | V126: 1766 | W126: -
B127: 2741/Г | O127: 1440 | P127: 1440 | Q127: 1883 | R127: 1440 | S127: 1440 | T127: 1440 | U127: 1440 | V127: 1766 | W127: -
B128: 2741/Т | O128: 1440 | P128: 1440 | Q128: 1883 | R128: 1440 | S128: 1440 | T128: 1440 | U128: 1440 | V128: 1766 | W128: -
B129: 2742/Г | O129: 1440 | P129: 1440 | Q129: 1883 | R129: 1440 | S129: 1440 | T129: 1440 | U129: 1440 | V129: 1766 | W129: -
B130: 2742/Т | O130: 1440 | P130: 1440 | Q130: 1883 | R130: 1440 | S130: 1440 | T130: 1440 | U130: 1440 | V130: 1766 | W130: -
B131: 2743/Г | O131: 1440 | P131: 1440 | Q131: 1883 | R131: 1440 | S131: 1440 | T131: 1440 | U131: 1440 | V131: 1766 | W131: -
B132: 2754/Г | O132: 1440 | P132: 1440 | Q132: 1883 | R132: 1440 | S132: 1440 | T132: 1440 | U132: 1440 | V132: 1766 | W132: -
B133: 2754/Т | O133: 1440 | P133: 1440 | Q133: 1883 | R133: 1440 | S133: 1440 | T133: 1440 | U133: 1440 | V133: 1766 | W133: -
B134: 2754/ТЦ | O134: 1440 | P134: 1440 | Q134: 1883 | R134: 1440 | S134: 1440 | T134: 1440 | U134: 1440 | V134: 1766 | W134: -
B135: 2760/Г | O135: 1440 | P135: 1440 | Q135: 1883 | R135: 1440 | S135: 1440 | T135: 1440 | U135: 1440 | V135: 1766 | W135: -
B136: 2762/Г | O136: 1440 | P136: 1440 | Q136: 1883 | R136: 1440 | S136: 1440 | T136: 1440 | U136: 1440 | V136: 1766 | W136: -
B137: 2762/Т | O137: 1440 | P137: 1440 | Q137: 1883 | R137: 1440 | S137: 1440 | T137: 1440 | U137: 1440 | V137: 1766 | W137: -
B138: 3006/ТП | O138: 1440 | P138: 1440 | Q138: 1883 | R138: 1440 | S138: 1440 | T138: 1440 | U138: 1440 | V138: 1766 | W138: -
B139: 6591/Г | O139: 1440 | P139: 1440 | Q139: 1883 | R139: 1440 | S139: 1440 | T139: 1440 | U139: 1440 | V139: 1766 | W139: -
B140: 6591/МТ | O140: 1440 | P140: 1440 | Q140: 1883 | R140: 1440 | S140: 1440 | T140: 1440 | U140: 1440 | V140: 1766 | W140: -
B141: 9115/СД | O141: 1440 | P141: 1440 | Q141: 1883 | R141: 1440 | S141: 1440 | T141: 1440 | U141: 1440 | V141: 1766 | W141: -
B142: 9727/ТП | O142: 1440 | P142: 1440 | Q142: 1883 | R142: 1440 | S142: 1440 | T142: 1440 | U142: 1440 | V142: 1766 | W142: -
B143: 9729/ТП | O143: 1440 | P143: 1440 | Q143: 1883 | R143: 1440 | S143: 1440 | T143: 1440 | U143: 1440 | V143: 1766 | W143: -
B144: 9738/СД | O144: 1440 | P144: 1440 | Q144: 1883 | R144: 1440 | S144: 1440 | T144: 1440 | U144: 1440 | V144: 1766 | W144: -
B145: 9740/Г | O145: 1440 | P145: 1440 | Q145: 1883 | R145: 1440 | S145: 1440 | T145: 1440 | U145: 1440 | V145: 1766 | W145: -
B146: 9740/ТП | O146: 1440 | P146: 1440 | Q146: 1883 | R146: 1440 | S146: 1440 | T146: 1440 | U146: 1440 | V146: 1766 | W146: -
B147: 9742/МТ | O147: 1440 | P147: 1440 | Q147: 1883 | R147: 1440 | S147: 1440 | T147: 1440 | U147: 1440 | V147: 1766 | W147: -
B148: 9745/СД | O148: 1440 | P148: 1440 | Q148: 1883 | R148: 1440 | S148: 1440 | T148: 1440 | U148: 1440 | V148: 1766 | W148: -
B149: 9746/СД | O149: 1440 | P149: 1440 | Q149: 1883 | R149: 1440 | S149: 1440 | T149: 1440 | U149: 1440 | V149: 1766 | W149: -
B150: 9747/СД | O150: 1440 | P150: 1440 | Q150: 1883 | R150: 1440 | S150: 1440 | T150: 1440 | U150: 1440 | V150: 1766 | W150: -
B151: 9906/СД | O151: 1440 | P151: 1440 | Q151: 1883 | R151: 1440 | S151: 1440 | T151: 1440 | U151: 1440 | V151: 1766 | W151: -
B152: 9906/ТП | O152: 1440 | P152: 1440 | Q152: 1883 | R152: 1440 | S152: 1440 | T152: 1440 | U152: 1440 | V152: 1766 | W152: -
B153: 410/L (Абет) | O153: 2340 | P153: 2340 | Q153: 3178 | R153: 2340 | S153: 2340 | T153: 2340 | U153: 2340 | V153: 3060 | W153: -
B154: 0001/CORALLO | O154: 2340 | P154: 2340 | Q154: 3178 | R154: 2340 | S154: 2340 | T154: 2340 | U154: 2340 | V154: 3060 | W154: -
B155: 0001/ERRE | O155: 2140 | P155: 2140 | Q155: 2825 | R155: 2140 | S155: 2140 | T155: 2140 | U155: 2140 | V155: 2589 | W155: -
B156: 0001/LUCIDA | O156: 1440 | P156: 1440 | Q156: 1883 | R156: 1440 | S156: 1440 | T156: 1440 | U156: 1440 | V156: 1766 | W156: -
B157: 0001/MIKA | O157: 2340 | P157: 2340 | Q157: 3178 | R157: 2340 | S157: 2340 | T157: 2340 | U157: 2340 | V157: 3060 | W157: -
B158: 0028/LUCIDA | O158: 2140 | P158: 2140 | Q158: 2825 | R158: 2140 | S158: 2140 | T158: 2140 | U158: 2140 | V158: 2589 | W158: -
B159: 0200/ERRE | O159: 2140 | P159: 2140 | Q159: 2825 | R159: 2140 | S159: 2140 | T159: 2140 | U159: 2140 | V159: 2589 | W159: -
B160: 0200/LUCIDA | O160: 2140 | P160: 2140 | Q160: 2825 | R160: 2140 | S160: 2140 | T160: 2140 | U160: 2140 | V160: 2589 | W160: -
B161: 0204/LUCIDA | O161: 2140 | P161: 2140 | Q161: 2825 | R161: 2140 | S161: 2140 | T161: 2140 | U161: 2140 | V161: 2589 | W161: -
B162: 0211/ERRE | O162: 2140 | P162: 2140 | Q162: 2825 | R162: 2140 | S162: 2140 | T162: 2140 | U162: 2140 | V162: 2589 | W162: -
B163: 0214/LUCIDA | O163: 1440 | P163: 1440 | Q163: 1883 | R163: 1440 | S163: 1440 | T163: 1440 | U163: 1440 | V163: 1766 | W163: -
B164: 0225/ERRE | O164: 2140 | P164: 2140 | Q164: 2825 | R164: 2140 | S164: 2140 | T164: 2140 | U164: 2140 | V164: 2589 | W164: -
B165: 0225/LUCIDA | O165: 2140 | P165: 2140 | Q165: 2825 | R165: 2140 | S165: 2140 | T165: 2140 | U165: 2140 | V165: 2589 | W165: -
B166: 0254/ERRE | O166: 2140 | P166: 2140 | Q166: 2825 | R166: 2140 | S166: 2140 | T166: 2140 | U166: 2140 | V166: 2589 | W166: -
B167: 0254/LUCIDA | O167: 2140 | P167: 2140 | Q167: 2825 | R167: 2140 | S167: 2140 | T167: 2140 | U167: 2140 | V167: 2589 | W167: -
B168: 0500/LUCIDA | O168: 2140 | P168: 2140 | Q168: 2825 | R168: 2140 | S168: 2140 | T168: 2140 | U168: 2140 | V168: 2589 | W168: -
B169: 0509/ERRE | O169: 2140 | P169: 2140 | Q169: 2825 | R169: 2140 | S169: 2140 | T169: 2140 | U169: 2140 | V169: 2589 | W169: -
B170: 0509/LUCIDA | O170: 1440 | P170: 1440 | Q170: 1883 | R170: 1440 | S170: 1440 | T170: 1440 | U170: 1440 | V170: 1766 | W170: -
B171: 0509/NAKED | O171: 2340 | P171: 2340 | Q171: 3178 | R171: 2340 | S171: 2340 | T171: 2340 | U171: 2340 | V171: 3060 | W171: -
B172: 0509/LOSA | O172: 2340 | P172: 2340 | Q172: 3178 | R172: 2340 | S172: 2340 | T172: 2340 | U172: 2340 | V172: 3060 | W172: -
B173: 0536/LUCIDA | O173: 2140 | P173: 2140 | Q173: 2825 | R173: 2140 | S173: 2140 | T173: 2140 | U173: 2140 | V173: 2589 | W173: -
B174: 0538/LUCIDA | O174: 2140 | P174: 2140 | Q174: 2825 | R174: 2140 | S174: 2140 | T174: 2140 | U174: 2140 | V174: 2589 | W174: -
B175: 0549/LUCIDA | O175: 2140 | P175: 2140 | Q175: 2825 | R175: 2140 | S175: 2140 | T175: 2140 | U175: 2140 | V175: 2589 | W175: -
B176: 0553/ERRE | O176: 2140 | P176: 2140 | Q176: 2825 | R176: 2140 | S176: 2140 | T176: 2140 | U176: 2140 | V176: 2589 | W176: -
B177: 0553/LUCIDA | O177: 2140 | P177: 2140 | Q177: 2825 | R177: 2140 | S177: 2140 | T177: 2140 | U177: 2140 | V177: 2589 | W177: -
B178: 0553/MIKA | O178: 2340 | P178: 2340 | Q178: 3178 | R178: 2340 | S178: 2340 | T178: 2340 | U178: 2340 | V178: 3060 | W178: -
B179: 0559/LUCIDA | O179: 2140 | P179: 2140 | Q179: 2825 | R179: 2140 | S179: 2140 | T179: 2140 | U179: 2140 | V179: 2589 | W179: -
B180: 0561/CORALLO | O180: 2340 | P180: 2340 | Q180: 3178 | R180: 2340 | S180: 2340 | T180: 2340 | U180: 2340 | V180: 3060 | W180: -
B181: 0561/ERRE | O181: 2140 | P181: 2140 | Q181: 2825 | R181: 2140 | S181: 2140 | T181: 2140 | U181: 2140 | V181: 2589 | W181: -
B182: 0561/LUCIDA | O182: 1440 | P182: 1440 | Q182: 1883 | R182: 1440 | S182: 1440 | T182: 1440 | U182: 1440 | V182: 1766 | W182: -
B183: 0564/LUCIDA | O183: 2140 | P183: 2140 | Q183: 2825 | R183: 2140 | S183: 2140 | T183: 2140 | U183: 2140 | V183: 2589 | W183: -
B184: 0570/LUCIDA | O184: 2140 | P184: 2140 | Q184: 2825 | R184: 2140 | S184: 2140 | T184: 2140 | U184: 2140 | V184: 2589 | W184: -
B185: 0571/ERRE | O185: 2140 | P185: 2140 | Q185: 2825 | R185: 2140 | S185: 2140 | T185: 2140 | U185: 2140 | V185: 2589 | W185: -
B186: 0571/LUCIDA | O186: 1440 | P186: 1440 | Q186: 1883 | R186: 1440 | S186: 1440 | T186: 1440 | U186: 1440 | V186: 1766 | W186: -
B187: 0573/LUCIDA | O187: 2140 | P187: 2140 | Q187: 2825 | R187: 2140 | S187: 2140 | T187: 2140 | U187: 2140 | V187: 2589 | W187: -
B188: 0593/ERRE | O188: 2140 | P188: 2140 | Q188: 2825 | R188: 2140 | S188: 2140 | T188: 2140 | U188: 2140 | V188: 2589 | W188: -
B189: 0593/LUCIDA | O189: 2140 | P189: 2140 | Q189: 2825 | R189: 2140 | S189: 2140 | T189: 2140 | U189: 2140 | V189: 2589 | W189: -
B190: 0594/LUCIDA | O190: 1440 | P190: 1440 | Q190: 1883 | R190: 1440 | S190: 1440 | T190: 1440 | U190: 1440 | V190: 1766 | W190: -
B191: 0595/ERRE | O191: 2140 | P191: 2140 | Q191: 2825 | R191: 2140 | S191: 2140 | T191: 2140 | U191: 2140 | V191: 2589 | W191: -
B192: 0595/LUCIDA | O192: 2140 | P192: 2140 | Q192: 2825 | R192: 2140 | S192: 2140 | T192: 2140 | U192: 2140 | V192: 2589 | W192: -
B193: 0605/ERRE | O193: 2140 | P193: 2140 | Q193: 2825 | R193: 2140 | S193: 2140 | T193: 2140 | U193: 2140 | V193: 2589 | W193: -
B194: 0605/LUCIDA | O194: 2140 | P194: 2140 | Q194: 2825 | R194: 2140 | S194: 2140 | T194: 2140 | U194: 2140 | V194: 2589 | W194: -
B195: 0619/ERRE | O195: 2140 | P195: 2140 | Q195: 2825 | R195: 2140 | S195: 2140 | T195: 2140 | U195: 2140 | V195: 2589 | W195: -
B196: 0619/LUCIDA | O196: 2140 | P196: 2140 | Q196: 2825 | R196: 2140 | S196: 2140 | T196: 2140 | U196: 2140 | V196: 2589 | W196: -
B197: 0637/ERRE | O197: 2140 | P197: 2140 | Q197: 2825 | R197: 2140 | S197: 2140 | T197: 2140 | U197: 2140 | V197: 2589 | W197: -
B198: 0648/ERRE | O198: 2140 | P198: 2140 | Q198: 2825 | R198: 2140 | S198: 2140 | T198: 2140 | U198: 2140 | V198: 2589 | W198: -
B199: 0648/LUCIDA | O199: 2140 | P199: 2140 | Q199: 2825 | R199: 2140 | S199: 2140 | T199: 2140 | U199: 2140 | V199: 2589 | W199: -
B200: 0660/ERRE | O200: 2140 | P200: 2140 | Q200: 2825 | R200: 2140 | S200: 2140 | T200: 2140 | U200: 2140 | V200: 2589 | W200: -
... 362 more rows

Sheet Акция (hidden)
D1: Изделия | E1: Описание | F1: материал | G1: ширина | H1: длина | K1: артикул пластика | L1: вид обратки | M1: цена за шт.

Sheet Кромка_ПВХ_3D (hidden)
B1: Кромка ПВХ | E1: Кромка 3D | J1: Ширина для материала
B2: Наименвоание | C2: цена за м.п. | E2: Наименвоание | F2: цена за м.п. | J2: материал | K2: ширина
B3: SF 263 V - 45*2 | C3: 175 | E3: DC 001 R - 43*2 | F3: 317 | J3: ДСП 4/6 | K3: 15
B4: DC 564 K - 42*1 | C4: 150 | E4: DC 077 R - 43*2 | F4: 317 | J4: ДСП 8 | K4: 15
B5: SF 319 V - 45*2 | C5: 175 | E5: DC 103 R - 43*2 | F5: 317 | J5: ДСП 16 | K5: 22
B6: SF 319 V - 23*1 | C6: 69 | E6: DC 297 R - 43*2 | F6: 317 | J6: МДФ 16 | K6: 22
B7: SF 263 V - 23*1 | C7: 69 | E7: DC 700 R - 43*2 | F7: 317 | J7: ДСП 26 | K7: 32
B8: SF 35 K 3 - 23*1 | C8: 109 | E8: DC 702 R - 43*2 | F8: 317 | J8: ДСП 38 | K8: 45
B9: SF 498 V - 23*1 | C9: 69 | E9: DC 015 R - 43*2 | F9: 317
B10: SF 686 W - 23*1 | C10: 69 | E10: DC 144 R - 43*2 | F10: 317 | J10: ДСП 38 влаг. | K10: 45
B11: SF 85 M 7 - 23*1 | C11: 78 | E11: DC 145 R - 43*2 | F11: 317 | J11: ДСП/ДВП 4/6 | K11: 15
B12: SF 944 U - 23*1 | C12: 78 | E12: DC 19 R 6 - 43*1.3 | F12: 345
B13: SF 949 Y - 23*1 | C13: 78 | E13: DC 006 R - 23*2 | F13: 182
B14: SF 309 V - 23*1 | C14: 109 | E14: DC 077 R - 23*2 | F14: 182
B15: DC 73 M 9 - 23*1 | C15: 109 | E15: DC 142 R - 23*2 | F15: 182
B16: DC 796 H - 23*1 | C16: 109 | E16: DC 702 R - 23*2 | F16: 182
B17: SF 76 N9 - 23*1 | C17: 78 | E17: DC 144 R - 23*2 | F17: 182
B18: SF 62 N6 - 23*1 | C18: 69 | E18: DC 19 R 8 - 23*1 | F18: 182
B19: DC 848 U - 23*1 | C19: 78 | E19: DC 103 R - 23*2 | F19: 182
B20: SF 274 V - 23*1 | C20: 78 | E20: DC 145 R - 23*2 | F20: 182
B21: DC 481 V - 23*1 | C21: 78 | E21: DC 700 R - 23*2 | F21: 182
B22: SF 106 W - 23*1 | C22: 69 | E22: DC 48 R 1 - 43*2 | F22: 317
B23: SF 570 V - 23*1 | C23: 78 | E23: DC 19 R 8 - 43*1.3 | F23: 286
B24: DC 731 H - 23*1 | C24: 109 | E24: DC 700 R - 23*1 | F24: 138
B25: DC 856 H - 23*1 | C25: 109 | E25: DC 210 R - 43*2 | F25: 317
B26: SF 514 W - 23*1 | C26: 109 | E26: SF 5000 - 23*1 | F26: 65
B27: SF 287 H - 23*1 | C27: 78 | E27: SF 5070 - 23*1 | F27: 65
B28: DC 552 Y - 23*1 | C28: 78 | E28: SF 5010 - 23*1 | F28: 65
B29: SF 858 Y - 23*1 | C29: 78 | E29: SF 5065 - 23*1 | F29: 65
B30: SF 929 H - 23*1 | C30: 78 | E30: SF 5041 - 23*1 | F30: 65
B31: SF 72 N 1 - 23*1 | C31: 78 | E31: SF 5045 - 23*1 | F31: 65
B32: SF 31 L 5 - 23*1 | C32: 109 | E32: SF 5050 - 23*1 | F32: 65
B33: DC 40 J 7 - 23*1 | C33: 109 | E33: SF 5052 - 23*1 | F33: 65
B34: DC 783 H - 23*1 | C34: 109 | E34: SF 5080 - 23*1 | F34: 65
B35: DC 46 P 8 - 23*1 | C35: 109 | E35: SF 5082 - 23*1 | F35: 65
B36: DC 47 K 2 - 21.5*1 | C36: 109 | E36: DC 3 R 00 - 43*1.8 | F36: 386
B37: DC 13 L 5 - 23*1 | C37: 109 | E37: DC 3 R 01 - 43*1.8 | F37: 386
B38: SF 006 W - 23*1 | C38: 78 | E38: DC 2 R 44 - 43*1.8 | F38: 386
B39: SF 6346 - 45*2 | C39: 105 | E39: 2155W - 45*1.3 | F39: 243.78
B40: DC 502 L - 45*2 | C40: 142 | E40: TC 5500 - 23*1 | F40: 93
B41: DC 913 P - 45*2 | C41: 142 | E41: TC 5148 - 23*1 | F41: 93
B42: DC 253 U - 45*2 | C42: 142
B43: SF 6000 - 22*0.8 | C43: 21
B44: SF 6000 - 22*2 | C44: 42
B45: SF 6000 - 35*2 | C45: 81
B46: SF 6000 - 42*2 | C46: 84
B47: SF 6070 - 22*0.8 | C47: 22
B48: SF 6070 - 35*2 | C48: 81
B49: SF 6070 - 42*2 | C49: 97
B50: SF 6011 - 22*0.8 | C50: 26
B51: SF 6011 - 35*2 | C51: 81
B52: SF 6011 - 42*2 | C52: 84
B53: SF 6041 - 22*0.8 | C53: 22
B54: SF 6051 - 22*0.8 | C54: 22
B55: SF 6050 - 22*0.8 | C55: 22
B56: SF 6982 - 22*0.8 | C56: 22
B57: SF 6081 - 22*0.8 | C57: 22
B58: SF 6080 - 22*0.8 | C58: 22
B59: SF 6062 - 22*0.8 | C59: 22
B60: SF 6005 - 22*0.8 | C60: 26
B61: SF 6006 - 22*0.8 | C61: 26
B62: SF 6058 - 22*0.8 | C62: 26
B63: SF 6424 - 22*0.8 | C63: 26
B64: SF 6620 - 22*0.8 | C64: 26
B65: SF 6555 - 22*0.8 | C65: 26
B66: SF 6770 - 22*0.8 | C66: 26
B67: SF 6301 - 22*0.8 | C67: 26
B68: SF 6756 - 22*0.8 | C68: 26
B69: SF 6751 - 22*0.8 | C69: 26
B70: SF 6500 - 22*0.8 | C70: 26
B71: SF 6760 - 22*0.8 | C71: 26
B72: SF 6903 - 22*0.8 | C72: 26
B73: SF 6400 - 22*0.8 | C73: 26
B74: SF 6300 - 22*0.8 | C74: 26
B75: SF 6755 - 22*0.8 | C75: 26
B76: SF 6016 - 22*0.8 | C76: 26
B77: SF 6017 - 22*0.8 | C77: 26
B78: SF 6019 - 22*0.8 | C78: 26
B79: SF 6010 - 22*0.8 | C79: 26
B80: SF 6010 - 35*2 | C80: 81
B81: SF 6010 - 42*2 | C81: 97
B82: SF 6080 - 35*2 | C82: 81
B83: SF 1008 - 22*0.8 | C83: 22
B84: SF 6018 - 22*0.8 | C84: 26
B85: SF 6120 - 22*0.8 | C85: 26
B86: SF 6429 - 22*0.8 | C86: 26
B87: SF 6434 - 22*0.8 | C87: 26
B88: SF 6624 - 22*0.8 | C88: 26
B89: SF 6752 - 22*0.8 | C89: 26
B90: SF 6753 - 22*0.8 | C90: 26
B91: SF 6905 - 22*0.8 | C91: 22
B92: DC 65 U3 - 23*0.8 | C92: 52
B93: DC 65 U3 - 43*0.8 | C93: 123
B94: 1596W - 45*1.3 | C94: 178.06
B95: SF 15.17 - 22*1 | C95: 20
B96: SF 15.15 - 22*1 | C96: 20
B97: SF 17.13 - 22*1 | C97: 20
B98: SF 6070 - 25*0.8 | C98: 25
B99: SF 6010 - 25*0.8 | C99: 25
B100: SF 15.12 - 22*1 | C100: 20
B101: SF 16.01 - 22*1 | C101: 20
B102: SF 16.03 - 22*1 | C102: 20
B103: SF 17.05 - 22*1 | C103: 20
B104: SF 17.12 - 22*1 | C104: 20
B105: SF 18.01 - 22*1 | C105: 20
B106: SF 23.01 - 22*1 | C106: 20
B107: SF 26.02 - 22*1 | C107: 20
B108: SF 28.01 - 22*1 | C108: 20
B109: SF 15.01 - 22*1 | C109: 20
B110: SF 502.01 - 22*1 | C110: 20
B111: SF 505.01 - 22*1 | C111: 20
B112: SF 508.01 - 22*1 | C112: 20
B113: SF 513.01 - 22*1 | C113: 20
B114: SF 503.01 - 22*1 | C114: 20
B115: SF 15.12 - 42*2 | C115: 72
B116: SF 15.15 - 42*2 | C116: 83
B117: SF 15.17 - 42*2 | C117: 80
B118: SF 15.01 - 42*2 | C118: 92
B119: SF 16.01 - 42*2 | C119: 92
B120: SF 26.02 - 42*2 | C120: 84
B121: SF 15.13 - 22*1 | C121: 20
B122: SF 504.01 - 22*1 | C122: 20
B123: SF 21.01 - 22*1 | C123: 20
B124: SF 502.01 - 45*2 | C124: 72
B125: SF 15.13 - 42*2 | C125: 78
B126: SF 15.11 - 22*1 | C126: 20
B127: SF 15.19 - 22*1 | C127: 20
B128: SF 15.20 - 22*1 | C128: 20
B129: SF 15.24 - 22*1 | C129: 20
B130: SF 22.05 - 22*1 | C130: 20
B131: SF 39.01 - 22*1 | C131: 20
B132: SF 40.01 - 22*1 | C132: 20
B133: SF 42.01 - 22*1 | C133: 20
B134: SF 43.02 - 22*1 | C134: 20
B135: SF 45.01 - 22*1 | C135: 20
B136: SF 15.20 - 42*2 | C136: 81
B137: SF 15.24 - 42*2 | C137: 83
B138: SF 17.05 - 42*2 | C138: 84
B139: SF 28.01 - 42*2 | C139: 84
B140: SF 39.01 - 42*2 | C140: 88
B141: SF 40.01 - 42*2 | C141: 76
B142: SF 42.01 - 42*2 | C142: 72
B143: SF 43.02 - 42*2 | C143: 92
B144: SF 45.01 - 42*2 | C144: 77
B145: SF 514.01 - 42*2 | C145: 84
B146: SF 508.01 - 42*2 | C146: 72
B147: SF 503.01 - 42*2 | C147: 72
B148: SF 504.01 - 42*2 | C148: 72
B149: SF 514.01 - 22*1 | C149: 20
B150: SF 84 M 9 - 23*1 | C150: 80
B151: DC 83 K 8 - 23*1 | C151: 109
B152: DC 91 U 2 - 23*1 | C152: 109
B153: DC 62 P4 - 23*1 | C153: 109
B154: DC 48 X 6 - 23*1 | C154: 109
B155: DC 91 U 5 - 23*1 | C155: 109
B156: DC 57 M 1 - 23*1 | C156: 109
B157: DC 38 W 5 - 23*1 | C157: 109
B158: DC 46 X 0 - 23*1 | C158: 109
B159: DC 46 X 9 - 23*1 | C159: 83.64
B160: DC 56 M 9 - 23*1 | C160: 109
B161: SF 04 C7 - 23*1 | C161: 78
B162: SF 10 B7 - 23*1 | C162: 62
B163: SF 18 A9 - 23*1 | C163: 73
B164: SF 24 C1 - 23*1 | C164: 78
B165: SF 24 C2 - 23*1 | C165: 62
B166: SF 793 С - 23*1 | C166: 109
B167: SF 1158 - 23*1 | C167: 78
B168: DC 91 U4 - 23*1 | C168: 82
B169: DC 30 U0 - 23*1 | C169: 82
B170: SF 58 M3 - 23*1 | C170: 82
B171: SF 702 H - 23*1 | C171: 82
B172: SF 85 M8 - 23*1 | C172: 82
B173: SF 354 Y - 43*1 | C173: 123
B174: SF 65 U6 - 43*1 | C174: 123
B175: SF 72 N1 - 43*1 | C175: 123
B176: SF 952 Y - 43*1 | C176: 123
B177: SF 82 N8 - 43*1 | C177: 123
B178: SF 62 V1 - 43*1 | C178: 123
B179: SF 31 L5 - 43*1 | C179: 123
B180: DC 67 V1 - 43*1 | C180: 150
B181: DC 62 V4 - 43*1 | C181: 150
B182: DC 67 V2 - 43*1 | C182: 150
B183: DC 66 V7 - 43*1 | C183: 150
B184: DC 73 V7 - 43*1 | C184: 150
B185: DC 62 V2 - 43*1 | C185: 150
B186: DC 90 W2 - 43*1 | C186: 150
B187: DC 20 V0 - 43*1 | C187: 127
B188: DC 02 K7 - 43*1 | C188: 150
B189: DC 74 V7 - 43*1 | C189: 150
B190: DC 30 U0 - 43*1 | C190: 123
B191: DC 47 K2 - 43*1 | C191: 150
B192: DC 08 X5 - 43*1 | C192: 139
B193: DC 08 X4 - 43*1 | C193: 139
B194: DC 08 X6 - 43*1 | C194: 139
B195: SF 40 C7 - 43*1 | C195: 123
B196: SF 40 C6 - 43*1 | C196: 123
B197: LK09 - 22*1 | C197: 53
B198: 0509/LOSA - 43*1.3 | C198: 248
B199: 3408/3410/LOSA - 43*1.3 | C199: 162
B200: 3420/LOSA - 43*1.3 | C200: 187
... 100 more rows

Sheet Алюм (hidden)
D1: Кромка для кромления выреза под стекло | G1: Алюм. Профиль для выреза под стекло
D2: Наименвоание | E2: цена за м.п. | G2: Наименвоание | H2: цена за м.п.
D3: DC 619 P - 19*0.4 | E3: 6.03 | G3: ДР 1-03 Серебро | H3: 89
D4: DC 642 U - 19*0.4 | E4: 6.03 | G4: ДР 1-03 Золото | H4: 108
D5: DC 802 U - 19*0.4 | E5: 6.03 | G5: ДР 1-03 Шампань | H5: 105
D6: DC 55 K2 - 19*0.4 | E6: 6.03 | G6: ДР 1-04 Серебро | H6: 89
D7: DC 72 J5 - 19*0.4 | E7: 6.03 | G7: ДР 1-04 Золото | H7: 108
D8: DC 991 H - 19*0.4 | E8: 6.03 | G8: ДР 1-04 Шампань | H8: 108
D9: SF 6346 - 19*0.4 | E9: 8 | G9: ДР 1-04 Черный матовый | H9: 116
D10: SF 0707 - 19*0.4 | E10: 4.27 | G10: ДР 1-06 Шампань | H10: 135
D11: DC 44 K1 - 19*0.4 | E11: 6.03 | G11: ДР 1-06 Коньяк | H11: 100
D12: DC 8525 - 19*0.4 | E12: 6.03 | G12: ДР 1-06 Серебро | H12: 84
D13: DC 502 L - 19*0.4 | E13: 6.03 | G13: ДР 1-06 Золото | H13: 100
D14: DC 703 Q - 19*0.4 | E14: 6.03 | G14: ДР 1-09 Серебро | H14: 95
D15: DC 790 M - 19*0.4 | E15: 6.03 | G15: М 1-03 Серебро | H15: 79
D16: DC 329 P - 19*0.4 | E16: 6.03 | G16: М 1-04 Серебро | H16: 78
D17: K 008-29 - 19*0.4 | E17: 1.9
D18: K 012-02 - 19*0.4 | E18: 1.94
D19: K 016-15 - 19*0.4 | E19: 1.94
D20: 5106 - 19*0.4 | E20: 3.06
D21: 3104 - 19*0.4 | E21: 3.06
D22: DC 74 N 7 - 19*0.4 | E22: 6.03
D23: DC 74 N 9 - 19*0.4 | E23: 6.03
D24: DC 55 K 0 - 19*0.4 | E24: 6.03
D25: DC 353 H - 19*0.4 | E25: 11
D26: DC 793 H - 19*0.4 | E26: 5.91
D27: DC 663 X - 19*0.4 | E27: 6.03
D28: DC 85 P1 - 19*0.4 | E28: 5.91
D29: DC 09 P5 - 19*0.45 | E29: 6.03
D30: DC 43 Q 1 / DC 95 N 6 - 19*0.45 | E30: 6.03
D31: DC 60 N6 - 19*0.45 | E31: 6.03
D32: SF 404 C - 19*0.45 | E32: 6.03
D33: DC 361 H - 19*0.4 | E33: 5.91
D34: SF 430 E - 19*0.4 | E34: 4.85
D35: SF 070 B - 19*0.4 | E35: 4.85
D36: DC 005 H - 19*0.4 | E36: 6.03
D37: DC 12 N 0 - 19*0.45 | E37: 5.91
D38: DC 16 L2 - 19*0.4 | E38: 6.03
D39: DC 47 L0 - 19*0.4 | E39: 6.03
D40: DC 954 M - 19*0.4 | E40: 5.91
D41: DC 7008 - 19*0.4 | E41: 6.03
D42: DC 6763 - 19*0.4 | E42: 6.03
D43: DC 7239 - 19*0.4 | E43: 6.03
D44: DC 337 W - 19*0.4 | E44: 6.03
D45: DC 308 Y - 19*0.4 | E45: 6.03
D46: DC 58 L2 - 19*0.4 | E46: 6.03
D47: DC 38 M7 - 19*0.4 | E47: 6.03
D48: DC 04 L7 - 19*0.4 | E48: 6.03
D49: DC 109 M - 19*0.4 | E49: 5.91
D50: SF 6000 - 19*0.8 | E50: 19
D51: SF 6070 - 19*0.8 | E51: 19
D52: SF 6041 - 19*0.8 | E52: 19
D53: SF 6051 - 19*0.8 | E53: 19
D54: SF 6050 - 19*0.8 | E54: 19
D55: SF 6982 - 19*0.8 | E55: 19
D56: SF 6081 - 19*0.8 | E56: 19
D57: SF 6080 - 19*0.8 | E57: 19
D58: SF 6062 - 19*0.8 | E58: 19
D59: SF 6005 - 19*0.8 | E59: 22
D60: SF 6006 - 19*0.8 | E60: 22
D61: SF 6058 - 19*0.8 | E61: 22
D62: SF 6424 - 19*0.8 | E62: 22
D63: SF 6620 - 19*0.8 | E63: 22
D64: SF 6555 - 19*0.8 | E64: 22
D65: SF 6770 - 19*0.8 | E65: 22
D66: SF 6301 - 19*0.8 | E66: 22
D67: SF 6756 - 19*0.8 | E67: 22
D68: SF 6751 - 19*0.8 | E68: 22
D69: SF 6500 - 19*0.8 | E69: 22
D70: SF 6760 - 19*0.8 | E70: 22
D71: SF 6903 - 19*0.8 | E71: 22
D72: SF 6400 - 19*0.8 | E72: 22
D73: SF 6300 - 19*0.8 | E73: 22
D74: SF 6755 - 19*0.8 | E74: 22
D75: SF 1720 - 19*0.8 | E75: 9
D76: SF 6019 - 19*0.8 | E76: 22
D77: SF 6010 - 19*0.8 | E77: 19
D78: SF 1008 - 19*0.8 | E78: 11
D79: SF 6018 - 19*0.8 | E79: 22
D80: SF 6346/1 - 19*0.4 | E80: 5.92
D81: 701 - 19*0.4 | E81: 5
D82: SF 6346 - 19*0.4 | E82: 5.92
D83: F186 - 19*0.8 | E83: 35
D84: SF 6346 - 19*0.4 | E84: 8
D85: H1145 - 19*0.4 | E85: 15
D86: H1151 - 19*0.8 | E86: 33

Sheet Сырец (hidden)
D1: Сырец
D2: Наименвоание | E2: цена за м.кв.
D3: ДСП 38 | E3: 2050
D4: ДСП 26 | E4: 1600
D5: ДСП 16 | E5: 1100
D6: МДФ 16 | E6: 1250
D7: ДСП 8 | E7: 600
D8: ДСП 6 | E8: 500
D9: ДВП 4 | E9: 200
D10: Фанера 18 | E10: 3100
D11: Фанера 38 | E11: 5500

Sheet podp
A1: ЗАКАЗ № | C1: 88 | J1: г. Краснодар,
A2: Заказчик | J2: тел.
A3: Адрес
A4: Тел./факс, эл-ка
A5: Контактное лицо | J5: taurus_plastik@mail.ru
J6: www.taurus-plastik.ru
L18: =SUM(L17) -> 0
B21: Заказ оформил(а)
C22: (подпись с расшифровкой) | J22: Упаковка | L22: 0
J23: Вес
J24: Срочность | K24: 0 | L24: 0
B25: Дата оформления | D25: Дата изготовления | H25: 17:00 | J25: Скидка | K25: 0 | L25: 0
J26: ИТОГО ПО ЗАКАЗУ: | L26: 13762.60683
B28: Форма оплаты | D28: Предоплата, руб. | I28: Остаток, руб.
A30: Я, подписавшийся/подписавшаяся под заказом, проверил(а) заказ и полностью согласен/согласна с вышеперечисленными параметрами: количеством, размерами, ассортиментом, комплектацией, наименованиями, артикулами используемых материалов, перечисленными работами, ценами и сроками. Я осведомлен(а) и согласен/согласна с тем, что: - при получении товара Я или мой представитель (человек, которому я доверил(а) получить товар вместо меня) должны тщательно проверить поверхность изготовленных изделий на отсутствие царапин и вздутий, края отдеталированных или закромленных изделий - на отсутствие сколов, а также количество, наименования, цвета и размеры получаемых изделий; - вывоз товара со склада должен быть осуществлен не позднее семи календарных дней после даты готовности товара; по истечению указанного срока стоимость хранения товара составляет 1% от суммы всего товара в сутки; - обмену и возврату не подлежат изделия: с механическими повреждениями (царапины, сколы, потертости и т.д.), изделия, которые подвергались дополнительной обработке с моей стороны (деталировка, фрезеровка, кромление, обработка алюминиевым профилем, всевозможные вырезы), готовые изделия надлежащего качества, технические параметры и характеристики которых полностью соответствуют заказ, проверенному и подписанному обеими сторонами.
A34: _____________ _______________________________/ __________________________________________ (дата) (Подпись) (Расшифровка)

Sheet 1 (hidden)
BV26: 1 | BW26: 1 | BX26: 1 | BY26: 1 | BZ26: 1 | CA26: 1 | CB26: 1 | CC26: 1 | CD26: 1 | CE26: 1 | CF26: 1 | CG26: 1 | CH26: 1 | CI26: 1 | CJ26: 1 | CK26: 1 | CL26: 1 | CM26: 1 | CN26: 1 | CO26: 1 | CP26: 1 | CQ26: 1 | CR26: 1 | CS26: 1 | CT26: 1 | CU26: 1
BV27: 6 | BW27: 6 | BX27: 6 | BY27: 6 | BZ27: 6 | CA27: 6 | CB27: 6 | CC27: 6 | CD27: 6 | CE27: 6 | CF27: 6 | CG27: 6 | CH27: 6 | CI27: 6 | CJ27: 6 | CK27: 6 | CL27: 6 | CM27: 6 | CN27: 6 | CO27: 6 | CP27: 6 | CQ27: 6 | CR27: 6 | CS27: 6 | CT27: 6 | CU27: 6
BV28: 1 | BW28: 1 | BX28: 1 | BY28: 1 | BZ28: 1 | CA28: 1 | CB28: 1 | CC28: 1 | CD28: 1 | CE28: 1 | CF28: 1 | CG28: 1 | CH28: 1 | CI28: 1 | CJ28: 1 | CK28: 1 | CL28: 1 | CM28: 1 | CN28: 1 | CO28: 1 | CP28: 1 | CQ28: 1 | CR28: 1 | CS28: 1 | CT28: 1 | CU28: 1
BV29: 1 | BW29: 1 | BX29: 1 | BY29: 1 | BZ29: 1 | CA29: 1 | CB29: 1 | CC29: 1 | CD29: 1 | CE29: 1 | CF29: 1 | CG29: 1 | CH29: 1 | CI29: 1 | CJ29: 1 | CK29: 1 | CL29: 1 | CM29: 1 | CN29: 1 | CO29: 1 | CP29: 1 | CQ29: 1 | CR29: 1 | CS29: 1 | CT29: 1 | CU29: 1
BV30: 6 | BW30: 6 | BX30: 6 | BY30: 6 | BZ30: 6 | CA30: 6 | CB30: 6 | CC30: 6 | CD30: 6 | CE30: 6 | CF30: 6 | CG30: 6 | CH30: 6 | CI30: 6 | CJ30: 6 | CK30: 6 | CL30: 6 | CM30: 6 | CN30: 6 | CO30: 6 | CP30: 6 | CQ30: 6 | CR30: 6 | CS30: 6 | CT30: 6 | CU30: 6
BV31: 1 | BW31: 1 | BX31: 1 | BY31: 1 | BZ31: 1 | CA31: 1 | CB31: 1 | CC31: 1 | CD31: 1 | CE31: 1 | CF31: 1 | CG31: 1 | CH31: 1 | CI31: 1 | CJ31: 1 | CK31: 1 | CL31: 1 | CM31: 1 | CN31: 1 | CO31: 1 | CP31: 1 | CQ31: 1 | CR31: 1 | CS31: 1 | CT31: 1 | CU31: 1
BV32: 1 | BW32: 1 | BX32: 1 | BY32: 1 | BZ32: 1 | CA32: 1 | CB32: 1 | CC32: 1 | CD32: 1 | CE32: 1 | CF32: 1 | CG32: 1 | CH32: 1 | CI32: 1 | CJ32: 1 | CK32: 1 | CL32: 1 | CM32: 1 | CN32: 1 | CO32: 1 | CP32: 1 | CQ32: 1 | CR32: 1 | CS32: 1 | CT32: 1 | CU32: 1
BV33: 6 | BW33: 6 | BX33: 6 | BY33: 6 | BZ33: 6 | CA33: 6 | CB33: 6 | CC33: 6 | CD33: 6 | CE33: 6 | CF33: 6 | CG33: 6 | CH33: 6 | CI33: 6 | CJ33: 6 | CK33: 6 | CL33: 6 | CM33: 6 | CN33: 6 | CO33: 6 | CP33: 6 | CQ33: 6 | CR33: 6 | CS33: 6 | CT33: 6 | CU33: 6
BV34: 1 | BW34: 1 | BX34: 1 | BY34: 1 | BZ34: 1 | CA34: 1 | CB34: 1 | CC34: 1 | CD34: 1 | CE34: 1 | CF34: 1 | CG34: 1 | CH34: 1 | CI34: 1 | CJ34: 1 | CK34: 1 | CL34: 1 | CM34: 1 | CN34: 1 | CO34: 1 | CP34: 1 | CQ34: 1 | CR34: 1 | CS34: 1 | CT34: 1 | CU34: 1
BV35: 1 | BW35: 1 | BX35: 1 | BY35: 1 | BZ35: 1 | CA35: 1 | CB35: 1 | CC35: 1 | CD35: 1 | CE35: 1 | CF35: 1 | CG35: 1 | CH35: 1 | CI35: 1 | CJ35: 1 | CK35: 1 | CL35: 1 | CM35: 1 | CN35: 1 | CO35: 1 | CP35: 1 | CQ35: 1 | CR35: 1 | CS35: 1 | CT35: 1 | CU35: 1
BV36: 6 | BW36: 6 | BX36: 6 | BY36: 6 | BZ36: 6 | CA36: 6 | CB36: 6 | CC36: 6 | CD36: 6 | CE36: 6 | CF36: 6 | CG36: 6 | CH36: 6 | CI36: 6 | CJ36: 6 | CK36: 6 | CL36: 6 | CM36: 6 | CN36: 6 | CO36: 6 | CP36: 6 | CQ36: 6 | CR36: 6 | CS36: 6 | CT36: 6 | CU36: 6
BV37: 1 | BW37: 1 | BX37: 1 | BY37: 1 | BZ37: 1 | CA37: 1 | CB37: 1 | CC37: 1 | CD37: 1 | CE37: 1 | CF37: 1 | CG37: 1 | CH37: 1 | CI37: 1 | CJ37: 1 | CK37: 1 | CL37: 1 | CM37: 1 | CN37: 1 | CO37: 1 | CP37: 1 | CQ37: 1 | CR37: 1 | CS37: 1 | CT37: 1 | CU37: 1
BV38: 1 | BW38: 1 | BX38: 1 | BY38: 1 | BZ38: 1 | CA38: 1 | CB38: 1 | CC38: 1 | CD38: 1 | CE38: 1 | CF38: 1 | CG38: 1 | CH38: 1 | CI38: 1 | CJ38: 1 | CK38: 1 | CL38: 1 | CM38: 1 | CN38: 1 | CO38: 1 | CP38: 1 | CQ38: 1 | CR38: 1 | CS38: 1 | CT38: 1 | CU38: 1
BV39: 6 | BW39: 6 | BX39: 6 | BY39: 6 | BZ39: 6 | CA39: 6 | CB39: 6 | CC39: 6 | CD39: 6 | CE39: 6 | CF39: 6 | CG39: 6 | CH39: 6 | CI39: 6 | CJ39: 6 | CK39: 6 | CL39: 6 | CM39: 6 | CN39: 6 | CO39: 6 | CP39: 6 | CQ39: 6 | CR39: 6 | CS39: 6 | CT39: 6 | CU39: 6
BV40: 1 | BW40: 1 | BX40: 1 | BY40: 1 | BZ40: 1 | CA40: 1 | CB40: 1 | CC40: 1 | CD40: 1 | CE40: 1 | CF40: 1 | CG40: 1 | CH40: 1 | CI40: 1 | CJ40: 1 | CK40: 1 | CL40: 1 | CM40: 1 | CN40: 1 | CO40: 1 | CP40: 1 | CQ40: 1 | CR40: 1 | CS40: 1 | CT40: 1 | CU40: 1
BV41: 1 | BW41: 1 | BX41: 1 | BY41: 1 | BZ41: 1 | CA41: 1 | CB41: 1 | CC41: 1 | CD41: 1 | CE41: 1 | CF41: 1 | CG41: 1 | CH41: 1 | CI41: 1 | CJ41: 1 | CK41: 1 | CL41: 1 | CM41: 1 | CN41: 1 | CO41: 1 | CP41: 1 | CQ41: 1 | CR41: 1 | CS41: 1 | CT41: 1 | CU41: 1
BV42: 6 | BW42: 6 | BX42: 6 | BY42: 6 | BZ42: 6 | CA42: 6 | CB42: 6 | CC42: 6 | CD42: 6 | CE42: 6 | CF42: 6 | CG42: 6 | CH42: 6 | CI42: 6 | CJ42: 6 | CK42: 6 | CL42: 6 | CM42: 6 | CN42: 6 | CO42: 6 | CP42: 6 | CQ42: 6 | CR42: 6 | CS42: 6 | CT42: 6 | CU42: 6
BV43: 1 | BW43: 1 | BX43: 1 | BY43: 1 | BZ43: 1 | CA43: 1 | CB43: 1 | CC43: 1 | CD43: 1 | CE43: 1 | CF43: 1 | CG43: 1 | CH43: 1 | CI43: 1 | CJ43: 1 | CK43: 1 | CL43: 1 | CM43: 1 | CN43: 1 | CO43: 1 | CP43: 1 | CQ43: 1 | CR43: 1 | CS43: 1 | CT43: 1 | CU43: 1
BV44: 1 | BW44: 1 | BX44: 1 | BY44: 1 | BZ44: 1 | CA44: 1 | CB44: 1 | CC44: 1 | CD44: 1 | CE44: 1 | CF44: 1 | CG44: 1 | CH44: 1 | CI44: 1 | CJ44: 1 | CK44: 1 | CL44: 1 | CM44: 1 | CN44: 1 | CO44: 1 | CP44: 1 | CQ44: 1 | CR44: 1 | CS44: 1 | CT44: 1 | CU44: 1
BV45: 6 | BW45: 6 | BX45: 6 | BY45: 6 | BZ45: 6 | CA45: 6 | CB45: 6 | CC45: 6 | CD45: 6 | CE45: 6 | CF45: 6 | CG45: 6 | CH45: 6 | CI45: 6 | CJ45: 6 | CK45: 6 | CL45: 6 | CM45: 6 | CN45: 6 | CO45: 6 | CP45: 6 | CQ45: 6 | CR45: 6 | CS45: 6 | CT45: 6 | CU45: 6
BV46: 1 | BW46: 1 | BX46: 1 | BY46: 1 | BZ46: 1 | CA46: 1 | CB46: 1 | CC46: 1 | CD46: 1 | CE46: 1 | CF46: 1 | CG46: 1 | CH46: 1 | CI46: 1 | CJ46: 1 | CK46: 1 | CL46: 1 | CM46: 1 | CN46: 1 | CO46: 1 | CP46: 1 | CQ46: 1 | CR46: 1 | CS46: 1 | CT46: 1 | CU46: 1
BV47: 1 | BW47: 1 | BX47: 1 | BY47: 1 | BZ47: 1 | CA47: 1 | CB47: 1 | CC47: 1 | CD47: 1 | CE47: 1 | CF47: 1 | CG47: 1 | CH47: 1 | CI47: 1 | CJ47: 1 | CK47: 1 | CL47: 1 | CM47: 1 | CN47: 1 | CO47: 1 | CP47: 1 | CQ47: 1 | CR47: 1 | CS47: 1 | CT47: 1 | CU47: 1
BV48: 6 | BW48: 6 | BX48: 6 | BY48: 6 | BZ48: 6 | CA48: 6 | CB48: 6 | CC48: 6 | CD48: 6 | CE48: 6 | CF48: 6 | CG48: 6 | CH48: 6 | CI48: 6 | CJ48: 6 | CK48: 6 | CL48: 6 | CM48: 6 | CN48: 6 | CO48: 6 | CP48: 6 | CQ48: 6 | CR48: 6 | CS48: 6 | CT48: 6 | CU48: 6
BV49: 1 | BW49: 1 | BX49: 1 | BY49: 1 | BZ49: 1 | CA49: 1 | CB49: 1 | CC49: 1 | CD49: 1 | CE49: 1 | CF49: 1 | CG49: 1 | CH49: 1 | CI49: 1 | CJ49: 1 | CK49: 1 | CL49: 1 | CM49: 1 | CN49: 1 | CO49: 1 | CP49: 1 | CQ49: 1 | CR49: 1 | CS49: 1 | CT49: 1 | CU49: 1
BV50: 1 | BW50: 1 | BX50: 1 | BY50: 1 | BZ50: 1 | CA50: 1 | CB50: 1 | CC50: 1 | CD50: 1 | CE50: 1 | CF50: 1 | CG50: 1 | CH50: 1 | CI50: 1 | CJ50: 1 | CK50: 1 | CL50: 1 | CM50: 1 | CN50: 1 | CO50: 1 | CP50: 1 | CQ50: 1 | CR50: 1 | CS50: 1 | CT50: 1 | CU50: 1
BV51: 6 | BW51: 6 | BX51: 6 | BY51: 6 | BZ51: 6 | CA51: 6 | CB51: 6 | CC51: 6 | CD51: 6 | CE51: 6 | CF51: 6 | CG51: 6 | CH51: 6 | CI51: 6 | CJ51: 6 | CK51: 6 | CL51: 6 | CM51: 6 | CN51: 6 | CO51: 6 | CP51: 6 | CQ51: 6 | CR51: 6 | CS51: 6 | CT51: 6 | CU51: 6
BV52: 1 | BW52: 1 | BX52: 1 | BY52: 1 | BZ52: 1 | CA52: 1 | CB52: 1 | CC52: 1 | CD52: 1 | CE52: 1 | CF52: 1 | CG52: 1 | CH52: 1 | CI52: 1 | CJ52: 1 | CK52: 1 | CL52: 1 | CM52: 1 | CN52: 1 | CO52: 1 | CP52: 1 | CQ52: 1 | CR52: 1 | CS52: 1 | CT52: 1 | CU52: 1
BV53: 1 | BW53: 1 | BX53: 1 | BY53: 1 | BZ53: 1 | CA53: 1 | CB53: 1 | CC53: 1 | CD53: 1 | CE53: 1 | CF53: 1 | CG53: 1 | CH53: 1 | CI53: 1 | CJ53: 1 | CK53: 1 | CL53: 1 | CM53: 1 | CN53: 1 | CO53: 1 | CP53: 1 | CQ53: 1 | CR53: 1 | CS53: 1 | CT53: 1 | CU53: 1
BV54: 6 | BW54: 6 | BX54: 6 | BY54: 6 | BZ54: 6 | CA54: 6 | CB54: 6 | CC54: 6 | CD54: 6 | CE54: 6 | CF54: 6 | CG54: 6 | CH54: 6 | CI54: 6 | CJ54: 6 | CK54: 6 | CL54: 6 | CM54: 6 | CN54: 6 | CO54: 6 | CP54: 6 | CQ54: 6 | CR54: 6 | CS54: 6 | CT54: 6 | CU54: 6
BV55: 1 | BW55: 1 | BX55: 1 | BY55: 1 | BZ55: 1 | CA55: 1 | CB55: 1 | CC55: 1 | CD55: 1 | CE55: 1 | CF55: 1 | CG55: 1 | CH55: 1 | CI55: 1 | CJ55: 1 | CK55: 1 | CL55: 1 | CM55: 1 | CN55: 1 | CO55: 1 | CP55: 1 | CQ55: 1 | CR55: 1 | CS55: 1 | CT55: 1 | CU55: 1
BV56: 1 | BW56: 1 | BX56: 1 | BY56: 1 | BZ56: 1 | CA56: 1 | CB56: 1 | CC56: 1 | CD56: 1 | CE56: 1 | CF56: 1 | CG56: 1 | CH56: 1 | CI56: 1 | CJ56: 1 | CK56: 1 | CL56: 1 | CM56: 1 | CN56: 1 | CO56: 1 | CP56: 1 | CQ56: 1 | CR56: 1 | CS56: 1 | CT56: 1 | CU56: 1
BV57: 6 | BW57: 6 | BX57: 6 | BY57: 6 | BZ57: 6 | CA57: 6 | CB57: 6 | CC57: 6 | CD57: 6 | CE57: 6 | CF57: 6 | CG57: 6 | CH57: 6 | CI57: 6 | CJ57: 6 | CK57: 6 | CL57: 6 | CM57: 6 | CN57: 6 | CO57: 6 | CP57: 6 | CQ57: 6 | CR57: 6 | CS57: 6 | CT57: 6 | CU57: 6
BV58: 1 | BW58: 1 | BX58: 1 | BY58: 1 | BZ58: 1 | CA58: 1 | CB58: 1 | CC58: 1 | CD58: 1 | CE58: 1 | CF58: 1 | CG58: 1 | CH58: 1 | CI58: 1 | CJ58: 1 | CK58: 1 | CL58: 1 | CM58: 1 | CN58: 1 | CO58: 1 | CP58: 1 | CQ58: 1 | CR58: 1 | CS58: 1 | CT58: 1 | CU58: 1
BV59: 1 | BW59: 1 | BX59: 1 | BY59: 1 | BZ59: 1 | CA59: 1 | CB59: 1 | CC59: 1 | CD59: 1 | CE59: 1 | CF59: 1 | CG59: 1 | CH59: 1 | CI59: 1 | CJ59: 1 | CK59: 1 | CL59: 1 | CM59: 1 | CN59: 1 | CO59: 1 | CP59: 1 | CQ59: 1 | CR59: 1 | CS59: 1 | CT59: 1 | CU59: 1
BV60: 6 | BW60: 6 | BX60: 6 | BY60: 6 | BZ60: 6 | CA60: 6 | CB60: 6 | CC60: 6 | CD60: 6 | CE60: 6 | CF60: 6 | CG60: 6 | CH60: 6 | CI60: 6 | CJ60: 6 | CK60: 6 | CL60: 6 | CM60: 6 | CN60: 6 | CO60: 6 | CP60: 6 | CQ60: 6 | CR60: 6 | CS60: 6 | CT60: 6 | CU60: 6
BV61: 1 | BW61: 1 | BX61: 1 | BY61: 1 | BZ61: 1 | CA61: 1 | CB61: 1 | CC61: 1 | CD61: 1 | CE61: 1 | CF61: 1 | CG61: 1 | CH61: 1 | CI61: 1 | CJ61: 1 | CK61: 1 | CL61: 1 | CM61: 1 | CN61: 1 | CO61: 1 | CP61: 1 | CQ61: 1 | CR61: 1 | CS61: 1 | CT61: 1 | CU61: 1
BV62: 1 | BW62: 1 | BX62: 1 | BY62: 1 | BZ62: 1 | CA62: 1 | CB62: 1 | CC62: 1 | CD62: 1 | CE62: 1 | CF62: 1 | CG62: 1 | CH62: 1 | CI62: 1 | CJ62: 1 | CK62: 1 | CL62: 1 | CM62: 1 | CN62: 1 | CO62: 1 | CP62: 1 | CQ62: 1 | CR62: 1 | CS62: 1 | CT62: 1 | CU62: 1
BV63: 6 | BW63: 6 | BX63: 6 | BY63: 6 | BZ63: 6 | CA63: 6 | CB63: 6 | CC63: 6 | CD63: 6 | CE63: 6 | CF63: 6 | CG63: 6 | CH63: 6 | CI63: 6 | CJ63: 6 | CK63: 6 | CL63: 6 | CM63: 6 | CN63: 6 | CO63: 6 | CP63: 6 | CQ63: 6 | CR63: 6 | CS63: 6 | CT63: 6 | CU63: 6
BV64: 1 | BW64: 1 | BX64: 1 | BY64: 1 | BZ64: 1 | CA64: 1 | CB64: 1 | CC64: 1 | CD64: 1 | CE64: 1 | CF64: 1 | CG64: 1 | CH64: 1 | CI64: 1 | CJ64: 1 | CK64: 1 | CL64: 1 | CM64: 1 | CN64: 1 | CO64: 1 | CP64: 1 | CQ64: 1 | CR64: 1 | CS64: 1 | CT64: 1 | CU64: 1
BV65: 1 | BW65: 1 | BX65: 1 | BY65: 1 | BZ65: 1 | CA65: 1 | CB65: 1 | CC65: 1 | CD65: 1 | CE65: 1 | CF65: 1 | CG65: 1 | CH65: 1 | CI65: 1 | CJ65: 1 | CK65: 1 | CL65: 1 | CM65: 1 | CN65: 1 | CO65: 1 | CP65: 1 | CQ65: 1 | CR65: 1 | CS65: 1 | CT65: 1 | CU65: 1
BV66: 6 | BW66: 6 | BX66: 6 | BY66: 6 | BZ66: 6 | CA66: 6 | CB66: 6 | CC66: 6 | CD66: 6 | CE66: 6 | CF66: 6 | CG66: 6 | CH66: 6 | CI66: 6 | CJ66: 6 | CK66: 6 | CL66: 6 | CM66: 6 | CN66: 6 | CO66: 6 | CP66: 6 | CQ66: 6 | CR66: 6 | CS66: 6 | CT66: 6 | CU66: 6

Sheet numer_ (hidden)
A1: 88

Sheet Лист1 (hidden)

Sheet Лист2 (hidden)
